,Directorate,Supplier Name,Supplier Invoice No,Payment Date,Gross Invoice Value,Vat Amount,Vendor Id,Purpose of Expenditure,Description,Redact flag,Year,Period
1,Community and Housing,SOUTHPARK RESIDENTIAL HOME,894665,26-Oct-22,2965.2,0,19,Older People Placements - East,321017              Social Community Care Supplies & Services - Adult,A,2022,7
2,Community and Housing,SOUTHPARK RESIDENTIAL HOME,894904,26-Oct-22,2965.2,0,19,Older People Placements - East,321017              Social Community Care Supplies & Services - Adult,A,2022,7
3,Community and Housing,SOUTHPARK RESIDENTIAL HOME,894999,26-Oct-22,2965.2,0,19,Older People Placements - East,321017              Social Community Care Supplies & Services - Adult,A,2022,7
4,Community and Housing,POLISH CITIZENS COMMITTEE,894750,26-Oct-22,2937.76,0,71,Older People Placements - East,321017              Nursing & Residential Care Homes,A,2022,7
5,Community and Housing,ST TERESA`S HOME FOR THE ELDERLY,894767,26-Oct-22,3080,0,362,Older People Placements - East,321017              Nursing & Residential Care Homes,A,2022,7
6,Community and Housing,ST TERESA`S HOME FOR THE ELDERLY,894986,26-Oct-22,2443.16,0,362,Older People Placements - East,321017              Nursing & Residential Care Homes,A,2022,7
7,Corporate Services,KAPPA LAMBDA SQUARED LTD,13371,24-Oct-22,10070.94,1678.49,506,Business Systems,270000              Information Communication Technology,A,2022,7
8,Community and Housing,THE WHITE HOUSE NURSING HOME,894981,26-Oct-22,3396,0,611,Older People Placements - East,321000              Social Community Care Supplies & Services - Adult,A,2022,7
9,Corporate Services,Quadient,92905451,07-Oct-22,3342.3,557.05,793,Post services,300000              Mail Services,A,2022,7
10,Corporate Services,Quadient,84049993,12-Oct-22,5062.3,10,793,Post services,300000              Mail Services,A,2022,7
11,Community and Housing,The Wimbledon Guild of Social Welfare,OCT22-MAR23GRANT,10-Oct-22,48500,0,802,Grants to Voluntary Orgs,190000              Facilities & Management Services,A,2022,7
12,Community and Housing,The Wimbledon Guild of Social Welfare,OCT22.MAR23GRANT,10-Oct-22,42075,0,802,Grants to Voluntary Orgs,190000              Facilities & Management Services,A,2022,7
13,Community and Housing,The Wimbledon Guild of Social Welfare,OCT22/MAR23GRANT,06-Oct-22,15000,0,802,UKRAINE,190000              Facilities & Management Services,A,2022,7
14,Unassigned,PERSEID SCHOOL,SCHOOLS 2223/7 A,06-Oct-22,569603.28,0,983,Schools,170000              Education,A,2022,7
15,Community and Housing,SUTTON NURSING HOMES LTD,894618,26-Oct-22,3056.44,0,1208,Older People Placements - East,321017              Nursing & Residential Care Homes,A,2022,7
16,Community and Housing,SUTTON NURSING HOMES LTD,894700,26-Oct-22,3087.16,0,1208,Older People Placements - East,321017              Nursing & Residential Care Homes,A,2022,7
17,Environment and Regeneration,LONDON BOROUGH OF CROYDON,3018462,18-Oct-22,196145.5,31085.88,1258,PARK OPERATIONS,OLA,A,2022,7
18,Unassigned,LONDON BOROUGH OF CROYDON,3018542,18-Oct-22,28260,4710,1258,Environment and Regeneration,OLA,A,2022,7
19,Corporate Services,L.B OF RICHMOND UPON THAMES,RC376792128M06D,12-Oct-22,5350,0,1353,SLLP Client Income,OLA,A,2022,7
20,Unassigned,MELROSE SPECIAL SCHOOL,SCHOOLS 2223/7 A,06-Oct-22,391739.2,0,1393,Schools,170000              Education,A,2022,7
21,"Children, Schools and Family",MELROSE SPECIAL SCHOOL,HAFSUM22-P3,18-Oct-22,865,0,1393,Holiday Act Food Prog grntfnd,170000              Education,A,2022,7
22,Unassigned,WILLIAM MORRIS PRIMARY SCHOOL,SCHOOLS 2223/7 A,06-Oct-22,189825.69,0,1416,Schools,170000              Education,A,2022,7
23,Unassigned,ST THOMAS OF CANTERBURY PRIMARY,SCHOOLS 2223/7 A,06-Oct-22,242147.35,0,1418,Schools,170000              Education,A,2022,7
24,Unassigned,PRIORY C OF E MIDDLE SCHOOL,SCHOOLS 2223/7 A,06-Oct-22,120849.91,0,1420,Schools,170000              Education,A,2022,7
25,Unassigned,LIBERTY PRIMARY SCHOOL,SCHOOLS 2223/7 A,06-Oct-22,245730.04,0,1424,Schools,170000              Education,A,2022,7
26,Unassigned,HILLCROSS PRIMARY SCHOOL,SCHOOLS 2223/7 A,06-Oct-22,195859.38,0,1425,Schools,170000              Education,A,2022,7
27,Unassigned,CRANMER PRIMARY SCHOOL,SCHOOLS 2223/7 A,06-Oct-22,303236.64,0,1426,Schools,170000              Education,A,2022,7
28,Unassigned,WIMBLEDON COLLEGE SCHOOL,SCHOOLS 2223/7 A,06-Oct-22,749918.35,0,1428,Schools,170000              Education,A,2022,7
29,Unassigned,URSULINE HIGH SCHOOL,SCHOOLS 2223/7 A,06-Oct-22,761812.21,0,1429,Schools,170000              Education,A,2022,7
30,"Children, Schools and Family",URSULINE HIGH SCHOOL,HAFSUM22-P3,18-Oct-22,1500,0,1429,Holiday Act Food Prog grntfnd,170000              Education,A,2022,7
31,"Children, Schools and Family",URSULINE HIGH SCHOOL,HAFOCT22-P1,20-Oct-22,1200,0,1429,Holiday Act Food Prog grntfnd,170000              Education,A,2022,7
32,Unassigned,RUTLISH SCHOOL,SCHOOLS 2223/7 A,06-Oct-22,780807.23,0,1431,Schools,170000              Education,A,2022,7
33,Unassigned,RICARDS LODGE SECONDARY SCHOOL,SCHOOLS 2223/7 A,06-Oct-22,711316.29,0,1433,Schools,170000              Education,A,2022,7
34,"Children, Schools and Family",RICARDS LODGE SECONDARY SCHOOL,VSPP+CARMEN20102,20-Oct-22,5880,0,1433,PupilPremium- Virtual School,170000              Education,A,2022,7
35,Unassigned,WIMBLEDON PARK PRIMARY SCHOOL,SCHOOLS 2223/7 A,06-Oct-22,229599.08,0,1436,Schools,170000              Education,A,2022,7
36,Unassigned,ST TERESA'S R C PRIMARY SCHOOL,SCHOOLS 2223/7 A,06-Oct-22,222063.09,0,1438,Schools,170000              Education,A,2022,7
37,Unassigned,ST MARYS CATHOLIC PRIMARY SCHOOL,SCHOOLS 2223/7 A,06-Oct-22,150075.14,0,1439,Schools,170000              Education,A,2022,7
38,Unassigned,ST MARKS PRIMARY SCHOOL,SCHOOLS 2223/7 A,06-Oct-22,143663.49,0,1440,Schools,170000              Education,A,2022,7
39,Unassigned,ST JOHN FISHER RC PRIMARY SCH.,SCHOOLS 2223/7 A,06-Oct-22,165649.6,0,1441,Schools,170000              Education,A,2022,7
40,Unassigned,SINGLEGATE PRIMARY SCHOOL,SCHOOLS 2223/7 A,06-Oct-22,280710.21,0,1442,Schools,170000              Education,A,2022,7
41,Unassigned,SHERWOOD PRIMARY SCHOOL,SCHOOLS 2223/7 A,06-Oct-22,183596.92,0,1443,Schools,170000              Education,A,2022,7
42,Unassigned,POPLAR PRIMARY SCHOOL,SCHOOLS 2223/7 A,06-Oct-22,297126.73,0,1444,Schools,170000              Education,A,2022,7
43,Unassigned,PELHAM PRIMARY SCHOOL,SCHOOLS 2223/7 A,06-Oct-22,180450,0,1445,Schools,170000              Education,A,2022,7
44,Unassigned,MORDEN PRIMARY SCHOOL,SCHOOLS 2223/7 A,06-Oct-22,141421.78,0,1446,Schools,170000              Education,A,2022,7
45,Unassigned,MERTON PARK PRIMARY SCHOOL,SCHOOLS 2223/7 A,06-Oct-22,91054.91,0,1447,Schools,170000              Education,A,2022,7
46,Unassigned,MERTON PARK PRIMARY SCHOOL,21PRE000002,14-Oct-22,5583,0,1447,Corporate Services,170000              Education,A,2022,7
47,Unassigned,MERTON ABBEY PRIMARY SCHOOL,SCHOOLS 2223/7 A,06-Oct-22,141729.98,0,1448,Schools,170000              Education,A,2022,7
48,Unassigned,LONESOME PRIMARY SCHOOL,SCHOOLS 2223/7 A,06-Oct-22,210185.1,0,1450,Schools,170000              Education,A,2022,7
49,Unassigned,LINKS PRIMARY SCHOOL,SCHOOLS 2223/7 A,06-Oct-22,186448.25,0,1451,Schools,170000              Education,A,2022,7
50,"Children, Schools and Family",LINKS PRIMARY SCHOOL,HAFOCT22-P1,20-Oct-22,1000,0,1451,Holiday Act Food Prog grntfnd,170000              Education,A,2022,7
51,Unassigned,JOSEPH HOOD PRIMARY SCHOOL,SCHOOLS 2223/7 A,06-Oct-22,173822.12,0,1452,Schools,170000              Education,A,2022,7
52,"Children, Schools and Family",JOSEPH HOOD PRIMARY SCHOOL,JH-22/23-15,11-Oct-22,866,0,1452,MIASS Info Advice and Support,170000              Education,A,2022,7
53,Unassigned,HOLY TRINITY C OF E PRIMARY SCHOOL,SCHOOLS 2223/7 A,06-Oct-22,174485.09,0,1453,Schools,170000              Education,A,2022,7
54,Unassigned,HOLLYMOUNT PRIMARY SCHOOL,SCHOOLS 2223/7 A,06-Oct-22,178871.82,0,1454,Schools,170000              Education,A,2022,7
55,Unassigned,HATFEILD PRIMARY SCHOOL,SCHOOLS 2223/7 A,06-Oct-22,242513.64,0,1455,Schools,170000              Education,A,2022,7
56,Unassigned,HASLEMERE PRIMARY SCHOOL,SCHOOLS 2223/7 A,06-Oct-22,235697.34,0,1456,Schools,170000              Education,A,2022,7
57,Unassigned,GARFIELD PRIMARY SCHOOL,SCHOOLS 2223/7 A,06-Oct-22,161537.61,0,1460,Schools,170000              Education,A,2022,7
58,Unassigned,BOND PRIMARY SCHOOL,SCHOOLS 2223/7 A,06-Oct-22,231497.17,0,1462,Schools,170000              Education,A,2022,7
59,Unassigned,BISHOP GILPIN C OF E PRIMARY,SCHOOLS 2223/7 A,06-Oct-22,168476.32,0,1463,Schools,170000              Education,A,2022,7
60,Unassigned,ABBOTSBURY PRIMARY SCHOOL,SCHOOLS 2223/7 A,06-Oct-22,209363.85,0,1467,Schools,170000              Education,A,2022,7
61,Unassigned,WIMBLEDON CHASE PRIMARY SCHOOL,SCHOOLS 2223/7 A,06-Oct-22,311435.77,0,1469,Schools,170000              Education,A,2022,7
62,Unassigned,GORRINGE PARK PRIMARY SCHOOL,SCHOOLS 2223/7 A,06-Oct-22,213127.89,0,1470,Schools,170000              Education,A,2022,7
63,Unassigned,RAYNES PARK SECONDARY SCHOOL,SCHOOLS 2223/7 A,06-Oct-22,799293.99,0,1471,Schools,170000              Education,A,2022,7
64,Unassigned,SS PETER AND PAUL RC PRIMARY SCH,SCHOOLS 2223/7 A,06-Oct-22,173848.81,0,1472,Schools,170000              Education,A,2022,7
65,Unassigned,DUNDONALD PRIMARY SCHOOL,SCHOOLS 2223/7 A,06-Oct-22,171401.15,0,1473,Schools,170000              Education,A,2022,7
66,Environment and Regeneration,DUNDONALD PRIMARY SCHOOL,DPS0052,10-Oct-22,3673.12,0,1473,Park Utilities,170000              Education,A,2022,7
67,Unassigned,DUNDONALD PRIMARY SCHOOL,21PRE000009,20-Oct-22,4738,0,1473,Corporate Services,170000              Education,A,2022,7
68,Community and Housing,MERTON MENCAP,OCT22-MAR23GRANT,10-Oct-22,24284.5,0,1519,Grants to Voluntary Orgs,200000              Financial Services,A,2022,7
69,Unassigned,ALL SAINTS C OF E PRIMARY SCH,SCHOOLS 2223/7 A,06-Oct-22,179021.74,0,1680,Schools,170000              Education,A,2022,7
70,"Children, Schools and Family",REDACTED PERSONAL DATA,888091,07-Oct-22,514.75,0,1801,Placements Under 18,321100              Social Community Care Supplies & Services - Children,R,2022,7
71,"Children, Schools and Family",REDACTED PERSONAL DATA,891334,14-Oct-22,514.75,0,1801,Placements Under 18,321100              Social Community Care Supplies & Services - Children,R,2022,7
72,"Children, Schools and Family",REDACTED PERSONAL DATA,893510,21-Oct-22,514.75,0,1801,Placements Under 18,321100              Social Community Care Supplies & Services - Children,R,2022,7
73,"Children, Schools and Family",REDACTED PERSONAL DATA,895543,28-Oct-22,514.75,0,1801,Placements Under 18,321100              Social Community Care Supplies & Services - Children,R,2022,7
74,Corporate Services,CIVICA UK LIMITED,C/BN253696,24-Oct-22,4784.89,797.48,1873,Benefits Administration,270000              Information Communication Technology,A,2022,7
75,"Children, Schools and Family",THE CHILDRENS TRUST,4958,18-Oct-22,7805.18,0,1980,Non-Delegated Statements,170000              Education,A,2022,7
76,"Children, Schools and Family",THE CHILDRENS TRUST,4959,18-Oct-22,3237.33,0,1980,Non-Delegated Statements,170000              Education,A,2022,7
77,"Children, Schools and Family",THE CHILDRENS TRUST,4960,18-Oct-22,6149.78,0,1980,Non-Delegated Statements,170000              Education,A,2022,7
78,"Children, Schools and Family",THE CHILDRENS TRUST,4864,14-Oct-22,2314,0,1980,Child Disabilities - Placement,170000              Education,A,2022,7
79,Community and Housing,THE FRANCES TAYLOR FOUNDATION,894685,26-Oct-22,3812.04,0,2011,Learning Disabilities Placemnt,321017              Nursing & Residential Care Homes,A,2022,7
80,"Children, Schools and Family",ST JOSEPHS SCHOOL,T0002800,12-Oct-22,37837.67,0,2017,Non-Delegated Statements,170000              Education,A,2022,7
81,Unassigned,SACRED HEART R C PRIMARY SCH.,SCHOOLS 2223/7 A,06-Oct-22,158677.26,0,2076,Schools,170000              Education,A,2022,7
82,Community and Housing,GENEVA ROAD LIMITED,300922JW,13-Oct-22,721.01,120.17,2198,Older People Placements - East,321000              Social Community Care Supplies & Services - Adult,A,2022,7
83,Corporate Services,LONDON BOROUGH OF SUTTON,"""SLLPINCOMEM0622",14-Oct-22,7565,0,2313,SLLP Client Income,OLA,A,2022,7
84,Community and Housing,LONDON BOROUGH OF SUTTON,3190481629,24-Oct-22,20536.18,0,2313,Com Care Placement Contingency,OLA,A,2022,7
85,"Children, Schools and Family",The Link Primary School,DI118104428,24-Oct-22,20562.99,0,2329,Non-Delegated Statements,200000              Financial Services,A,2022,7
86,"Children, Schools and Family",The Link Primary School,DI118104429,24-Oct-22,47264.65,0,2329,Non-Delegated Statements,200000              Financial Services,A,2022,7
87,"Children, Schools and Family",The Link Primary School,DI118104431,24-Oct-22,18666.66,0,2329,Non-Delegated Statements,200000              Financial Services,A,2022,7
88,"Children, Schools and Family",The Link Primary School,DI118104430,24-Oct-22,8806.34,0,2329,Non-Delegated Statements,200000              Financial Services,A,2022,7
89,Community and Housing,FREEWAYS TRUST LTD,894598,26-Oct-22,3229.2,0,2474,Learning Disabilities Placemnt,321017              Nursing & Residential Care Homes,A,2022,7
90,Unassigned,WIMBLEDON AND PUTNEY COMMON,2.0221E+11,24-Oct-22,37623.1,0,10566,WPCC,PRECEPT,A,2022,7
91,Community and Housing,THAMES WATER UTILITIES LTD,900047179092OCT2,27-Oct-22,612.7,0,10691,Meadowsweet Res Home,370000              Utilities,A,2022,7
92,Community and Housing,CLOYDA LTD,894862,26-Oct-22,3294.48,0,10762,Older People Placements - East,321017              Nursing & Residential Care Homes,A,2022,7
93,Community and Housing,CHEGWORTH N.H. (BAYSWIFT LTD),894822,26-Oct-22,3056.4,0,11057,Learning Disabilities Placemnt,321000              Social Community Care Supplies & Services - Adult,A,2022,7
94,"Children, Schools and Family",REDACTED PERSONAL DATA,888040,07-Oct-22,580.36,0,11130,Placements Under 18,321100              Social Community Care Supplies & Services - Children,R,2022,7
95,"Children, Schools and Family",REDACTED PERSONAL DATA,891282,14-Oct-22,580.36,0,11130,Placements Under 18,321100              Social Community Care Supplies & Services - Children,R,2022,7
96,"Children, Schools and Family",REDACTED PERSONAL DATA,893455,21-Oct-22,580.36,0,11130,Placements Under 18,321100              Social Community Care Supplies & Services - Children,R,2022,7
97,"Children, Schools and Family",REDACTED PERSONAL DATA,895491,28-Oct-22,580.36,0,11130,Placements Under 18,321100              Social Community Care Supplies & Services - Children,R,2022,7
98,Community and Housing,ASHCROFT CARE SERVICES,894821,26-Oct-22,6161.24,0,13287,Learning Disabilities Placemnt,321017              Nursing & Residential Care Homes,A,2022,7
99,Community and Housing,SHARE COMMUNITY LTD,230802A,03-Oct-22,630,0,13487,Learning Disabilities Placemnt,321017              Nursing & Residential Care Homes,A,2022,7
100,Community and Housing,SHARE COMMUNITY LTD,230815,03-Oct-22,520,0,13487,Learning Disabilities Placemnt,321017              Nursing & Residential Care Homes,A,2022,7
101,Community and Housing,SHARE COMMUNITY LTD,230812,03-Oct-22,1020,0,13487,Learning Disabilities Placemnt,321017              Nursing & Residential Care Homes,A,2022,7
102,Community and Housing,SHARE COMMUNITY LTD,230815A,03-Oct-22,840,0,13487,Learning Disabilities Placemnt,321017              Nursing & Residential Care Homes,A,2022,7
103,Community and Housing,SHARE COMMUNITY LTD,230831A,06-Oct-22,675,0,13487,Learning Disabilities Placemnt,321017              Nursing & Residential Care Homes,A,2022,7
104,Community and Housing,FITZROY SUPPORT,894929,26-Oct-22,8304.28,0,13535,Learning Disabilities Placemnt,321017              Nursing & Residential Care Homes,A,2022,7
105,Community and Housing,CANTERBURY OAST TRUST LTD,894611,26-Oct-22,2541.24,0,13566,Learning Disabilities Placemnt,321017              Nursing & Residential Care Homes,A,2022,7
106,Community and Housing,MACINTYRE,894624,26-Oct-22,5776,0,13585,Learning Disabilities Placemnt,321017              Nursing & Residential Care Homes,A,2022,7
107,Community and Housing,MACINTYRE,894795,26-Oct-22,5641.36,0,13585,Learning Disabilities Placemnt,321017              Nursing & Residential Care Homes,A,2022,7
108,Community and Housing,MACINTYRE,894898,26-Oct-22,5641.36,0,13585,Older People Placements - East,321017              Nursing & Residential Care Homes,A,2022,7
109,Community and Housing,MACINTYRE,894927,26-Oct-22,4825.24,0,13585,Learning Disabilities Placemnt,321017              Nursing & Residential Care Homes,A,2022,7
110,Community and Housing,KENT AUTISTIC TRUST,894905,26-Oct-22,7494.72,0,13670,Learning Disabilities Placemnt,321017              Nursing & Residential Care Homes,A,2022,7
111,Environment and Regeneration,ROBERT MORGAN AND SONS LTD,STOUTHALLRENTSEP,06-Oct-22,4125,0,14355,Other Misc Props,200000              Financial Services,A,2022,7
112,Community and Housing,WANDLE HOUSING ASSOCIATION LTD,AIN10199,20-Oct-22,1333.93,0,14419,LD Fieldwork SW,250000              Housing Management,A,2022,7
113,Community and Housing,UNITED RESPONSE,VSMR791381BA,18-Oct-22,4837.78,806.3,14616,Learning Disabilities Placemnt,321000              Social Community Care Supplies & Services - Adult,A,2022,7
114,Community and Housing,UNITED RESPONSE,VSMR791381BO,18-Oct-22,4837.78,806.3,14616,Learning Disabilities Placemnt,321000              Social Community Care Supplies & Services - Adult,A,2022,7
115,Community and Housing,UNITED RESPONSE,VSMR791381ST,18-Oct-22,4837.78,806.3,14616,Learning Disabilities Placemnt,321000              Social Community Care Supplies & Services - Adult,A,2022,7
116,Community and Housing,UNITED RESPONSE,VSMR791381SV,18-Oct-22,4837.78,806.3,14616,Learning Disabilities Placemnt,321000              Social Community Care Supplies & Services - Adult,A,2022,7
117,Community and Housing,UNITED RESPONSE,VSMR791381RW,18-Oct-22,4837.78,806.3,14616,Learning Disabilities Placemnt,321000              Social Community Care Supplies & Services - Adult,A,2022,7
118,Environment and Regeneration,MERTON CHAMBER OF COMMERCE,19972,07-Oct-22,3000,500,15375,HLF Canons,180000              Environmental Services,A,2022,7
119,Environment and Regeneration,MERTON CHAMBER OF COMMERCE,20133,31-Oct-22,963.6,160.6,15375,Physical Regeneration,180000              Environmental Services,A,2022,7
120,Corporate Services,KINGSTON CORPORATION,M06LEGAL22/23,14-Oct-22,6650,0,21573,SLLP Client Income,180000              Environmental Services,A,2022,7
121,Corporate Services,I J BEIM AND ASSOCIATES LTD,12524,28-Oct-22,636.78,106.13,24949,SLLP - Disbursements,280000              Legal Services,A,2022,7
122,Environment and Regeneration,MITCHAM COMMON CONSERVATORS,MP6,25-Oct-22,2086.5,0,28571,Parks & Recreation Grounds,190000              Facilities & Management Services,A,2022,7
123,Environment and Regeneration,MITCHAM COMMON CONSERVATORS,MERTON6,25-Oct-22,8638.5,0,28571,Parks & Recreation Grounds,190000              Facilities & Management Services,A,2022,7
124,Community and Housing,MERTON AND MORDEN GUILD,OCT22-MAR23GRANT,06-Oct-22,25600,0,29632,Transformation Project,290000              Arts & Leisure Services,A,2022,7
125,Community and Housing,TRINITY COURT NURSING HOME,887724,12-Oct-22,6549.02,0,30306,Older People Placements - East,321017              Nursing & Residential Care Homes,A,2022,7
126,Community and Housing,TRINITY COURT NURSING HOME,894662,26-Oct-22,2861.6,0,30306,Older People Placements - East,321017              Nursing & Residential Care Homes,A,2022,7
127,Community and Housing,TRINITY COURT NURSING HOME,894796,26-Oct-22,2985.6,0,30306,Older People Placements - East,321017              Nursing & Residential Care Homes,A,2022,7
128,Community and Housing,TRINITY COURT NURSING HOME,894828,26-Oct-22,3063.24,0,30306,Older People Placements - East,321017              Nursing & Residential Care Homes,A,2022,7
129,Community and Housing,TRINITY COURT NURSING HOME,894842,26-Oct-22,3313.84,0,30306,Phys/Sens Placements - East,321017              Nursing & Residential Care Homes,A,2022,7
130,Community and Housing,TRINITY COURT NURSING HOME,894849,26-Oct-22,3986.36,0,30306,Older People Placements - East,321017              Nursing & Residential Care Homes,A,2022,7
131,Community and Housing,TRINITY COURT NURSING HOME,894864,26-Oct-22,3135.72,0,30306,Older People Placements - East,321017              Nursing & Residential Care Homes,A,2022,7
132,Community and Housing,TRINITY COURT NURSING HOME,894903,26-Oct-22,2985.6,0,30306,Older People Placements - East,321017              Nursing & Residential Care Homes,A,2022,7
133,Community and Housing,TRINITY COURT NURSING HOME,894910,26-Oct-22,2861.6,0,30306,Older People Placements - East,321017              Nursing & Residential Care Homes,A,2022,7
134,Community and Housing,TRINITY COURT NURSING HOME,894919,26-Oct-22,3063.24,0,30306,Older People Placements - East,321017              Nursing & Residential Care Homes,A,2022,7
135,Community and Housing,TRINITY COURT NURSING HOME,894978,26-Oct-22,2985.6,0,30306,Older People Placements - East,321017              Nursing & Residential Care Homes,A,2022,7
136,Community and Housing,TRINITY COURT NURSING HOME,895004,26-Oct-22,2876.32,0,30306,Older People Placements - East,321017              Nursing & Residential Care Homes,A,2022,7
137,Community and Housing,TRINITY COURT NURSING HOME,895006,26-Oct-22,3149.6,0,30306,Older People Placements - East,321017              Nursing & Residential Care Homes,A,2022,7
138,Community and Housing,TRINITY COURT NURSING HOME,895008,26-Oct-22,2521.12,0,30306,Older People Placements - East,321017              Nursing & Residential Care Homes,A,2022,7
139,Community and Housing,HAYDON PARK LODGE,894617,26-Oct-22,4680,0,31434,Learning Disabilities Placemnt,321017              Nursing & Residential Care Homes,A,2022,7
140,Community and Housing,HAYDON PARK LODGE,894748,26-Oct-22,3485,0,31434,Learning Disabilities Placemnt,321017              Nursing & Residential Care Homes,A,2022,7
141,Community and Housing,HAYDON PARK LODGE,894776,26-Oct-22,4591.44,0,31434,Learning Disabilities Placemnt,321017              Nursing & Residential Care Homes,A,2022,7
142,Community and Housing,HAYDON PARK LODGE,894850,26-Oct-22,5070.76,0,31434,Learning Disabilities Placemnt,321017              Nursing & Residential Care Homes,A,2022,7
143,Community and Housing,HAYDON PARK LODGE,894894,26-Oct-22,4420.08,0,31434,Learning Disabilities Placemnt,321017              Nursing & Residential Care Homes,A,2022,7
144,Community and Housing,Barchester Healthcare Wimbledon Beaumont,894709,26-Oct-22,3000,0,33384,Older People Placements - East,321017              Nursing & Residential Care Homes,A,2022,7
145,Community and Housing,COMFORT CARE SERVICES (UK) LTD,SU1051/911,03-Oct-22,3295,0,34932,Mental Health Placements,321000              Social Community Care Supplies & Services - Adult,A,2022,7
146,Community and Housing,COMFORT CARE SERVICES (UK) LTD,SU1041/765,03-Oct-22,1579.5,0,34932,Mental Health Placements,321000              Social Community Care Supplies & Services - Adult,A,2022,7
147,Community and Housing,COMFORT CARE SERVICES (UK) LTD,SU1051/1068,03-Oct-22,3295,0,34932,Mental Health Placements,321000              Social Community Care Supplies & Services - Adult,A,2022,7
148,Community and Housing,COMFORT CARE SERVICES (UK) LTD,SU1051/987,03-Oct-22,3295,0,34932,Mental Health Placements,321000              Social Community Care Supplies & Services - Adult,A,2022,7
149,Community and Housing,COMFORT CARE SERVICES (UK) LTD,SU1051/951,03-Oct-22,3295,0,34932,Mental Health Placements,321000              Social Community Care Supplies & Services - Adult,A,2022,7
150,Community and Housing,COMFORT CARE SERVICES (UK) LTD,SU1051/1045,04-Oct-22,3295,0,34932,Mental Health Placements,321000              Social Community Care Supplies & Services - Adult,A,2022,7
151,Community and Housing,COMFORT CARE SERVICES (UK) LTD,SU1102/1309,06-Oct-22,2383.72,0,34932,Mental Health Placements,321000              Social Community Care Supplies & Services - Adult,A,2022,7
152,Community and Housing,COMFORT CARE SERVICES (UK) LTD,SU1102/1337,06-Oct-22,2383.72,0,34932,Mental Health Placements,321000              Social Community Care Supplies & Services - Adult,A,2022,7
153,Community and Housing,COMFORT CARE SERVICES (UK) LTD,SU1102/1393,06-Oct-22,2383.72,0,34932,Mental Health Placements,321000              Social Community Care Supplies & Services - Adult,A,2022,7
154,Community and Housing,COMFORT CARE SERVICES (UK) LTD,SU0208/1429,24-Oct-22,2380,0,34932,Mental Health Placements,321000              Social Community Care Supplies & Services - Adult,A,2022,7
155,Community and Housing,COMFORT CARE SERVICES (UK) LTD,SU0291/1025,24-Oct-22,2380,0,34932,Mental Health Placements,321000              Social Community Care Supplies & Services - Adult,A,2022,7
156,Community and Housing,COMFORT CARE SERVICES (UK) LTD,SU0184/878,24-Oct-22,2380,0,34932,Mental Health Placements,321000              Social Community Care Supplies & Services - Adult,A,2022,7
157,Community and Housing,COMFORT CARE SERVICES (UK) LTD,SU1102/1423,24-Oct-22,2380,0,34932,Mental Health Placements,321000              Social Community Care Supplies & Services - Adult,A,2022,7
158,Community and Housing,COMFORT CARE SERVICES (UK) LTD,SU1051/1106-1107,24-Oct-22,3295,0,34932,Mental Health Placements,321000              Social Community Care Supplies & Services - Adult,A,2022,7
159,Community and Housing,COMFORT CARE SERVICES (UK) LTD,SU0266/1365,24-Oct-22,2380,0,34932,Mental Health Placements,321000              Social Community Care Supplies & Services - Adult,A,2022,7
160,Community and Housing,COMFORT CARE SERVICES (UK) LTD,SU0210/1024,24-Oct-22,2380,0,34932,Mental Health Placements,321000              Social Community Care Supplies & Services - Adult,A,2022,7
161,Community and Housing,COMFORT CARE SERVICES (UK) LTD,SU0201/1313,24-Oct-22,2380,0,34932,Mental Health Placements,321000              Social Community Care Supplies & Services - Adult,A,2022,7
162,Community and Housing,COMFORT CARE SERVICES (UK) LTD,SU0146/1312,24-Oct-22,2380,0,34932,Mental Health Placements,321000              Social Community Care Supplies & Services - Adult,A,2022,7
163,Community and Housing,COMFORT CARE SERVICES (UK) LTD,SU0294/1419,24-Oct-22,2380,0,34932,Mental Health Placements,321000              Social Community Care Supplies & Services - Adult,A,2022,7
164,Community and Housing,COMFORT CARE SERVICES (UK) LTD,SU0133/1023,24-Oct-22,2380,0,34932,Mental Health Placements,321000              Social Community Care Supplies & Services - Adult,A,2022,7
165,Community and Housing,COMFORT CARE SERVICES (UK) LTD,SU0298/879,24-Oct-22,2380,0,34932,Mental Health Placements,321000              Social Community Care Supplies & Services - Adult,A,2022,7
166,Community and Housing,COMFORT CARE SERVICES (UK) LTD,SU1102/1374,06-Oct-22,2383.72,0,34932,Mental Health Placements,321000              Social Community Care Supplies & Services - Adult,A,2022,7
167,Community and Housing,COMFORT CARE SERVICES (UK) LTD,SU0091/265,24-Oct-22,871.36,0,34932,Mental Health Placements,321000              Social Community Care Supplies & Services - Adult,A,2022,7
168,Community and Housing,COMFORT CARE SERVICES (UK) LTD,SU1102/1254,14-Oct-22,2383.72,0,34932,Mental Health Placements,321000              Social Community Care Supplies & Services - Adult,A,2022,7
169,Community and Housing,COMFORT CARE SERVICES (UK) LTD,SU0091/263,20-Oct-22,871.36,0,34932,Mental Health Placements,321000              Social Community Care Supplies & Services - Adult,A,2022,7
170,Community and Housing,COMFORT CARE SERVICES (UK) LTD,SU0266/1341,20-Oct-22,2380,0,34932,Mental Health Placements,321000              Social Community Care Supplies & Services - Adult,A,2022,7
171,Community and Housing,COMFORT CARE SERVICES (UK) LTD,SU10417770,24-Oct-22,1632.15,0,34932,Mental Health Placements,321000              Social Community Care Supplies & Services - Adult,A,2022,7
172,"Children, Schools and Family",BUSY BEES DAY NURSERY - MORDEN,P1 22 SENDIF,03-Oct-22,504,0,35564,EARLY YEARS NURSERY GRANTS,170000              Education,A,2022,7
173,Capital,THAMES WATER UTILITIES LTD [SN38 2TW],CBO2201063,03-Oct-22,1692,282,35875,Wimbledon Area Regeneration,370000              Utilities,A,2022,7
174,Unassigned,ST MATTHEW'S C OF E PRIMARY,SCHOOLS 2223/7 A,06-Oct-22,81983.37,0,36050,Schools,170000              Education,A,2022,7
175,Community and Housing,AGE UK MERTON,OCT22-MAR23GRANT,10-Oct-22,23126.55,0,37401,Grants to Voluntary Orgs,190000              Facilities & Management Services,A,2022,7
176,Community and Housing,AGE UK MERTON,OCT22/MAR23GRANT,05-Oct-22,13302.5,0,37401,Com Care Placement Contingency,190000              Facilities & Management Services,A,2022,7
177,Community and Housing,AGE UK MERTON,OCT22 MAR23GRANT,05-Oct-22,60678,0,37401,Social Care/Community Fund,190000              Facilities & Management Services,A,2022,7
178,Community and Housing,AGE UK MERTON,OCT22.MAR23GRANT,10-Oct-22,44225,0,37401,Grants to Voluntary Orgs,190000              Facilities & Management Services,A,2022,7
179,"Children, Schools and Family",CLEAPSS,INV-7270,26-Oct-22,3134.88,0,44299,School Improvement DSG HNB,200000              Financial Services,A,2022,7
180,Community and Housing,JESMUND CARE LTD,894847,26-Oct-22,4000,0,46751,Older People Placements - East,321017              Nursing & Residential Care Homes,A,2022,7
181,Community and Housing,JESMUND CARE LTD,894963,26-Oct-22,3600,0,46751,Older People Placements - East,321017              Nursing & Residential Care Homes,A,2022,7
182,Community and Housing,REDACTED PERSONAL DATA,888605,12-Oct-22,4900.28,0,50448,Older People Placements - East,DIRECT PAYMENTS,R,2022,7
183,Community and Housing,LINKAGE COMMUNITY TR.LONG-STAY,894884,26-Oct-22,3340.08,0,52552,Learning Disabilities Placemnt,321017              Nursing & Residential Care Homes,A,2022,7
184,Community and Housing,RUTLAND HOUSE CARE HOME,894766,26-Oct-22,3156,0,53424,Older People Placements - East,321017              Nursing & Residential Care Homes,A,2022,7
185,Community and Housing,CLIFTON MANOR,894993,26-Oct-22,4022.16,0,56118,Learning Disabilities Placemnt,321017              Nursing & Residential Care Homes,A,2022,7
186,Community and Housing,PARK LODGE,894730,26-Oct-22,2940,0,56878,Learning Disabilities Placemnt,321017              Nursing & Residential Care Homes,A,2022,7
187,Community and Housing,PARK LODGE,894826,26-Oct-22,3026.8,0,56878,Learning Disabilities Placemnt,321017              Nursing & Residential Care Homes,A,2022,7
188,Unassigned,CRICKET GREEN SCHOOL,SCHOOLS 2223/7 A,06-Oct-22,688895.56,0,57057,Schools,170000              Education,A,2022,7
189,Community and Housing,MERTON VOLUNTARY SERV COUNCIL,OCT22-MAR23GRANT,06-Oct-22,12400,0,57560,Transformation Project,190000              Facilities & Management Services,A,2022,7
190,Corporate Services,JADE SECURITY SERVICE LTD,4354,24-Oct-22,2858.39,476.4,57563,Cash Collections,200000              Financial Services,A,2022,7
191,"Children, Schools and Family",CANBURY SCHOOL LIMITED,3973,13-Oct-22,7425.34,0,57830,Non-Delegated Statements,170000              Education,A,2022,7
192,Community and Housing,WALSINGHAM,894702,26-Oct-22,5486.52,0,58466,Learning Disabilities Placemnt,321017              Nursing & Residential Care Homes,A,2022,7
193,Community and Housing,WALSINGHAM,894882,26-Oct-22,5486.4,0,58466,Learning Disabilities Placemnt,321017              Nursing & Residential Care Homes,A,2022,7
194,Community and Housing,WALSINGHAM,894938,26-Oct-22,5552.64,0,58466,Learning Disabilities Placemnt,321017              Nursing & Residential Care Homes,A,2022,7
195,Community and Housing,WALSINGHAM,894943,26-Oct-22,5476.12,0,58466,Learning Disabilities Placemnt,321017              Nursing & Residential Care Homes,A,2022,7
196,Community and Housing,CARE UK,894596,26-Oct-22,3229.52,0,58851,Older People Placements - East,321017              Nursing & Residential Care Homes,A,2022,7
197,Community and Housing,CARE UK,894615,26-Oct-22,3800,0,58851,Older People Placements - East,321017              Nursing & Residential Care Homes,A,2022,7
198,Community and Housing,CARE UK,894653,26-Oct-22,3229.52,0,58851,Older People Placements - East,321017              Nursing & Residential Care Homes,A,2022,7
199,Community and Housing,CARE UK,894774,26-Oct-22,3264.32,0,58851,Older People Placements - East,321017              Nursing & Residential Care Homes,A,2022,7
200,Community and Housing,CARE UK,894874,26-Oct-22,3229.52,0,58851,Older People Placements - East,321017              Nursing & Residential Care Homes,A,2022,7
201,Community and Housing,CARE UK,894949,26-Oct-22,3736,0,58851,Older People Placements - East,321017              Nursing & Residential Care Homes,A,2022,7
202,Community and Housing,CARE UK,894958,26-Oct-22,4000,0,58851,Older People Placements - East,321017              Nursing & Residential Care Homes,A,2022,7
203,Community and Housing,CARE UK,894961,26-Oct-22,3229.52,0,58851,Older People Placements - East,321017              Nursing & Residential Care Homes,A,2022,7
204,Community and Housing,CARE UK,894967,26-Oct-22,3143.16,0,58851,Older People Placements - East,321017              Nursing & Residential Care Homes,A,2022,7
205,"Children, Schools and Family",ST MICHAEL'S FELLOWSHIP,C3031/2100,04-Oct-22,7427.44,0,59560,Placements Under 18,280000              Legal Services,A,2022,7
206,"Children, Schools and Family",ST MICHAEL'S FELLOWSHIP,C3037/2100,04-Oct-22,28781.33,0,59560,Placements Under 18,280000              Legal Services,A,2022,7
207,Community and Housing,FRIENDS IN ST HELIER,OCT22-MAR23GRANT,06-Oct-22,21000,0,61126,Transformation Project,200000              Financial Services,A,2022,7
208,Community and Housing,RUSHTON WORKWEAR LTD,49392,18-Oct-22,972,162,62131,Com Care Placement Contingency,140000              Clothing,A,2022,7
209,Environment and Regeneration,EDE'S (U.K.) LTD,INV24652,20-Oct-22,1263.6,210.6,62345,Parks & Recreation Grounds,190000              Facilities & Management Services,A,2022,7
210,Community and Housing,BARONS LODGE NURSING HOME,894658,26-Oct-22,1716,0,62371,Mental Health Placements,321017              Nursing & Residential Care Homes,A,2022,7
211,Community and Housing,BARONS LODGE NURSING HOME,894844,26-Oct-22,3502,0,62371,Mental Health Placements,321017              Nursing & Residential Care Homes,A,2022,7
212,Community and Housing,BARONS LODGE NURSING HOME,894855,26-Oct-22,4200,0,62371,Mental Health Placements,321017              Nursing & Residential Care Homes,A,2022,7
213,Community and Housing,BARONS LODGE NURSING HOME,894909,26-Oct-22,2678,0,62371,Learning Disabilities Placemnt,321017              Nursing & Residential Care Homes,A,2022,7
214,Community and Housing,BARONS LODGE NURSING HOME,894915,26-Oct-22,4360,0,62371,Mental Health Placements,321017              Nursing & Residential Care Homes,A,2022,7
215,Community and Housing,BARONS LODGE NURSING HOME,894920,26-Oct-22,4360,0,62371,Older People Placements - East,321017              Nursing & Residential Care Homes,A,2022,7
216,Community and Housing,BARONS LODGE NURSING HOME,894922,26-Oct-22,3807.2,0,62371,Learning Disabilities Placemnt,321017              Nursing & Residential Care Homes,A,2022,7
217,Community and Housing,BARONS LODGE NURSING HOME,894955,26-Oct-22,3502,0,62371,Older People Placements - East,321017              Nursing & Residential Care Homes,A,2022,7
218,Community and Housing,SANCTUARY CARE LTD,894626,26-Oct-22,3117.52,0,63458,Learning Disabilities Placemnt,321017              Nursing & Residential Care Homes,A,2022,7
219,Community and Housing,THE REGARD PARTNERSHIP LTD,894609,26-Oct-22,6220.72,0,63796,Learning Disabilities Placemnt,321017              Nursing & Residential Care Homes,A,2022,7
220,Community and Housing,THE REGARD PARTNERSHIP LTD,894699,26-Oct-22,6010.48,0,63796,Learning Disabilities Placemnt,321017              Nursing & Residential Care Homes,A,2022,7
221,Community and Housing,THE REGARD PARTNERSHIP LTD,894715,26-Oct-22,9681.96,0,63796,Learning Disabilities Placemnt,321017              Nursing & Residential Care Homes,A,2022,7
222,Community and Housing,THE REGARD PARTNERSHIP LTD,894728,26-Oct-22,5765,0,63796,Learning Disabilities Placemnt,321017              Nursing & Residential Care Homes,A,2022,7
223,Community and Housing,THE REGARD PARTNERSHIP LTD,894833,26-Oct-22,6126.52,0,63796,Learning Disabilities Placemnt,321017              Nursing & Residential Care Homes,A,2022,7
224,Community and Housing,THE REGARD PARTNERSHIP LTD,894939,26-Oct-22,4901.24,0,63796,Learning Disabilities Placemnt,321017              Nursing & Residential Care Homes,A,2022,7
225,Community and Housing,NAS SERVICES LIMITED,ACR2383058,11-Oct-22,1893.6,315.6,68929,Mental Health Placements,321100              Social Community Care Supplies & Services - Children,A,2022,7
226,Community and Housing,NAS SERVICES LIMITED,ASU2382001,31-Oct-22,4546.8,757.8,68929,Mental Health Placements,321100              Social Community Care Supplies & Services - Children,A,2022,7
227,Corporate Services,GALLERY 128,LBM0019,03-Oct-22,1392.67,232.11,72941,Democracy Services,190000              Facilities & Management Services,A,2022,7
228,"Children, Schools and Family",ETHELBERT SPECIALIST HOMES LTD,BH/0922/615,05-Oct-22,6568.63,0,72942,Placements Under 18,321100              Social Community Care Supplies & Services - Children,A,2022,7
229,Community and Housing,CARETECH UK. LIMITED,97207,17-Oct-22,1239.6,206.6,74201,JMC  Day Centre,321000              Social Community Care Supplies & Services - Adult,A,2022,7
230,Community and Housing,BRANDON TRUST,894620,26-Oct-22,4054,0,76126,Learning Disabilities Placemnt,321017              Nursing & Residential Care Homes,A,2022,7
231,Unassigned,LONDON BOROUGH OF SUTTON,BAILIFFSEP2022,06-Oct-22,140568.94,0,76615,Corporate Services,OLA,A,2022,7
232,Community and Housing,LONDON BOROUGH OF SUTTON,3190481825,18-Oct-22,6467,0,76615,PH - Elderly Care Pilot,OLA,A,2022,7
233,Community and Housing,LONDON BOROUGH OF SUTTON,3190475200,20-Oct-22,6467,0,76615,PH - Elderly Care Pilot,OLA,A,2022,7
234,Unassigned,POST OFFICE LTD,MERTON22/23PO12,14-Oct-22,17434.6,0,77066,Adults Social Care,200000              Financial Services,A,2022,7
235,Community and Housing,ABBEY HOUSE RESIDENTIAL HOMES,894621,26-Oct-22,2859.72,0,78937,Older People Placements - East,321017              Nursing & Residential Care Homes,A,2022,7
236,Community and Housing,ABBEY HOUSE RESIDENTIAL HOMES,894642,26-Oct-22,3337.76,0,78937,Older People Placements - East,321017              Nursing & Residential Care Homes,A,2022,7
237,Community and Housing,ABBEY HOUSE RESIDENTIAL HOMES,894645,26-Oct-22,5520,0,78937,Mental Health Placements,321017              Nursing & Residential Care Homes,A,2022,7
238,Unassigned,TRANSPORT FOR LONDON,MERTONQ22022,17-Oct-22,295088.96,0,79197,Capital,PRECEPT,A,2022,7
239,"Children, Schools and Family",SOUTHWARK COUNCIL,10010922305,25-Oct-22,327801,0,81552,Fostering Recruit/Assessment,OLA,A,2022,7
240,Community and Housing,REDACTED PERSONAL DATA,888447,12-Oct-22,5088.12,0,81639,Older People Placements - East,DIRECT PAYMENTS,R,2022,7
241,Corporate Services,IRON MOUNTAIN (UK) LTD,17147603,24-Oct-22,780.06,130.01,82409,IT-Telecomms,270000              Information Communication Technology,A,2022,7
242,Environment and Regeneration,S.GRUNDON (WASTE) LTD.,W15B044,18-Oct-22,666.72,111.12,82593,Waste Disposal,180000              Environmental Services,A,2022,7
243,Corporate Services,REDACTED PERSONAL DATA,INVJD155,21-Oct-22,1050,175,83383,SLLP - Disbursements,280000              Legal Services,R,2022,7
244,Corporate Services,REDACTED PERSONAL DATA,INVJD156,21-Oct-22,2205,367.5,83383,SLLP - Disbursements,280000              Legal Services,R,2022,7
245,Unassigned,MALMESBURY PRIMARY SCHOOL,SCHOOLS 2223/7 A,06-Oct-22,233490.64,0,83593,Schools,170000              Education,A,2022,7
246,Community and Housing,ALLSOP AND FRANCIS LTD,144853,10-Oct-22,3482.4,580.4,85114,Meadowsweet Res Home,"390000              Works - Construction, Repair & Maintenance",A,2022,7
247,Environment and Regeneration,NEWSQUEST MEDIA GROUP LTD,40772727,17-Oct-22,521.86,86.98,85566,Development Control,190000              Facilities & Management Services,A,2022,7
248,Environment and Regeneration,NEWSQUEST MEDIA GROUP LTD,40786513,17-Oct-22,521.86,86.98,85566,Development Control,190000              Facilities & Management Services,A,2022,7
249,Environment and Regeneration,NEWSQUEST MEDIA GROUP LTD,40670048,27-Oct-22,608.83,101.47,85566,Development Control,190000              Facilities & Management Services,A,2022,7
250,Environment and Regeneration,NEWSQUEST MEDIA GROUP LTD,40720597,27-Oct-22,565.34,94.22,85566,Development Control,190000              Facilities & Management Services,A,2022,7
251,Environment and Regeneration,DAWSON RENTALS BUS AND COACH,951611,24-Oct-22,1186.26,197.71,86003,Transport-Contract Hire,180000              Environmental Services,A,2022,7
252,Environment and Regeneration,DAWSON RENTALS BUS AND COACH,950377,26-Oct-22,1186.26,197.71,86003,Transport-Contract Hire,180000              Environmental Services,A,2022,7
253,"Children, Schools and Family",LONDON GRID FOR LEARNING TRUST,2020013489,25-Oct-22,558,93,90449, Schools IT Support,270000              Information Communication Technology,A,2022,7
254,"Children, Schools and Family",LONDON GRID FOR LEARNING TRUST,2020013491,25-Oct-22,1080,180,90449, Schools IT Support,270000              Information Communication Technology,A,2022,7
255,"Children, Schools and Family",LONDON GRID FOR LEARNING TRUST,2020013490,25-Oct-22,1438.8,239.8,90449, Schools IT Support,270000              Information Communication Technology,A,2022,7
256,Community and Housing,SUPREME CARE SERVICES LIMITED,85461B,06-Oct-22,1291.06,0,91840,Older People Placements - East,321000              Social Community Care Supplies & Services - Adult,A,2022,7
257,Community and Housing,SUPREME CARE SERVICES LIMITED,85435B,06-Oct-22,2732.84,0,91840,Older People Placements - East,321000              Social Community Care Supplies & Services - Adult,A,2022,7
258,Community and Housing,SUPREME CARE SERVICES LIMITED,85424A,06-Oct-22,2755.78,0,91840,Older People Placements - East,321000              Social Community Care Supplies & Services - Adult,A,2022,7
259,Community and Housing,SUPREME CARE SERVICES LIMITED,85461A,06-Oct-22,2802.95,0,91840,Older People Placements - East,321000              Social Community Care Supplies & Services - Adult,A,2022,7
260,Community and Housing,SUPREME CARE SERVICES LIMITED,85434C,06-Oct-22,1310.56,0,91840,Older People Placements - East,321000              Social Community Care Supplies & Services - Adult,A,2022,7
261,Community and Housing,SUPREME CARE SERVICES LIMITED,85435F,06-Oct-22,1115.01,0,91840,Older People Placements - East,321000              Social Community Care Supplies & Services - Adult,A,2022,7
262,Community and Housing,SUPREME CARE SERVICES LIMITED,85409E,06-Oct-22,1191.03,0,91840,Older People Placements - East,321000              Social Community Care Supplies & Services - Adult,A,2022,7
263,Community and Housing,SUPREME CARE SERVICES LIMITED,85461D,06-Oct-22,543.19,0,91840,Older People Placements - East,321000              Social Community Care Supplies & Services - Adult,A,2022,7
264,Community and Housing,SUPREME CARE SERVICES LIMITED,85460,06-Oct-22,756.63,0,91840,Older People Placements - East,321000              Social Community Care Supplies & Services - Adult,A,2022,7
265,Community and Housing,SUPREME CARE SERVICES LIMITED,85459,07-Oct-22,836.92,0,91840,Older People Placements - East,321000              Social Community Care Supplies & Services - Adult,A,2022,7
266,Community and Housing,SUPREME CARE SERVICES LIMITED,85457,07-Oct-22,3026.52,0,91840,Older People Placements - East,321000              Social Community Care Supplies & Services - Adult,A,2022,7
267,Community and Housing,SUPREME CARE SERVICES LIMITED,85435A,07-Oct-22,747.04,0,91840,Older People Placements - East,321000              Social Community Care Supplies & Services - Adult,A,2022,7
268,Community and Housing,SUPREME CARE SERVICES LIMITED,85456,07-Oct-22,756.63,0,91840,Older People Placements - East,321000              Social Community Care Supplies & Services - Adult,A,2022,7
269,Community and Housing,SUPREME CARE SERVICES LIMITED,85409B,07-Oct-22,542.08,0,91840,Older People Placements - East,321000              Social Community Care Supplies & Services - Adult,A,2022,7
270,Community and Housing,SUPREME CARE SERVICES LIMITED,85461E,11-Oct-22,730.42,0,91840,Older People Placements - East,321000              Social Community Care Supplies & Services - Adult,A,2022,7
271,Community and Housing,SUPREME CARE SERVICES LIMITED,85434D,11-Oct-22,728.76,0,91840,Older People Placements - East,321000              Social Community Care Supplies & Services - Adult,A,2022,7
272,Community and Housing,SUPREME CARE SERVICES LIMITED,85435D,11-Oct-22,637.75,0,91840,Older People Placements - East,321000              Social Community Care Supplies & Services - Adult,A,2022,7
273,Community and Housing,SUPREME CARE SERVICES LIMITED,85409D,11-Oct-22,739.68,0,91840,Older People Placements - East,321000              Social Community Care Supplies & Services - Adult,A,2022,7
274,Community and Housing,SUPREME CARE SERVICES LIMITED,85320B,14-Oct-22,731.57,0,91840,Older People Placements - East,321000              Social Community Care Supplies & Services - Adult,A,2022,7
275,Community and Housing,SUPREME CARE SERVICES LIMITED,85381A,14-Oct-22,854.56,0,91840,Older People Placements - East,321000              Social Community Care Supplies & Services - Adult,A,2022,7
276,Community and Housing,SUPREME CARE SERVICES LIMITED,85409G,14-Oct-22,720.61,0,91840,Older People Placements - East,321000              Social Community Care Supplies & Services - Adult,A,2022,7
277,Community and Housing,SUPREME CARE SERVICES LIMITED,85380B,14-Oct-22,712.86,0,91840,Older People Placements - East,321000              Social Community Care Supplies & Services - Adult,A,2022,7
278,Community and Housing,SUPREME CARE SERVICES LIMITED,85434G,14-Oct-22,1041.45,0,91840,Older People Placements - East,321000              Social Community Care Supplies & Services - Adult,A,2022,7
279,Community and Housing,SUPREME CARE SERVICES LIMITED,85461G,14-Oct-22,1068.13,0,91840,Older People Placements - East,321000              Social Community Care Supplies & Services - Adult,A,2022,7
280,Community and Housing,SUPREME CARE SERVICES LIMITED,85318,14-Oct-22,989.52,0,91840,Older People Placements - East,321000              Social Community Care Supplies & Services - Adult,A,2022,7
281,Community and Housing,SUPREME CARE SERVICES LIMITED,85347C,18-Oct-22,1234.08,0,91840,Older People Placements - East,321000              Social Community Care Supplies & Services - Adult,A,2022,7
282,Community and Housing,SUPREME CARE SERVICES LIMITED,85493,20-Oct-22,2767.07,0,91840,Older People Placements - East,321000              Social Community Care Supplies & Services - Adult,A,2022,7
283,Community and Housing,SUPREME CARE SERVICES LIMITED,85490,24-Oct-22,848.39,0,91840,Older People Placements - East,321000              Social Community Care Supplies & Services - Adult,A,2022,7
284,Community and Housing,SUPREME CARE SERVICES LIMITED,85482,24-Oct-22,569.87,0,91840,Older People Placements - East,321000              Social Community Care Supplies & Services - Adult,A,2022,7
285,Community and Housing,SUPREME CARE SERVICES LIMITED,85483,24-Oct-22,3026.52,0,91840,Older People Placements - East,321000              Social Community Care Supplies & Services - Adult,A,2022,7
286,Community and Housing,SUPREME CARE SERVICES LIMITED,85485,24-Oct-22,756.63,0,91840,Older People Placements - East,321000              Social Community Care Supplies & Services - Adult,A,2022,7
287,Community and Housing,SUPREME CARE SERVICES LIMITED,85486,24-Oct-22,1321.48,0,91840,Older People Placements - East,321000              Social Community Care Supplies & Services - Adult,A,2022,7
288,Community and Housing,SUPREME CARE SERVICES LIMITED,85487,24-Oct-22,1081.92,0,91840,Older People Placements - East,321000              Social Community Care Supplies & Services - Adult,A,2022,7
289,Community and Housing,SUPREME CARE SERVICES LIMITED,85494,24-Oct-22,662.28,0,91840,Older People Placements - East,321000              Social Community Care Supplies & Services - Adult,A,2022,7
290,Community and Housing,SUPREME CARE SERVICES LIMITED,85458A,24-Oct-22,788.19,0,91840,Older People Placements - East,321000              Social Community Care Supplies & Services - Adult,A,2022,7
291,Community and Housing,SUPREME CARE SERVICES LIMITED,85494A,24-Oct-22,910.18,0,91840,Older People Placements - East,321000              Social Community Care Supplies & Services - Adult,A,2022,7
292,Community and Housing,THE GARWOOD FOUNDATION,MWBHOCT22,18-Oct-22,700.53,0,92268,Older People Placements - East,321000              Social Community Care Supplies & Services - Adult,A,2022,7
293,Community and Housing,Allied Healthcare,1235/77,21-Oct-22,630.85,0,92896,Older People Placements - East,321000              Social Community Care Supplies & Services - Adult,A,2022,7
294,Community and Housing,Allied Healthcare,1235/20,21-Oct-22,743,0,92896,Learning Disabilities Placemnt,321000              Social Community Care Supplies & Services - Adult,A,2022,7
295,Community and Housing,Allied Healthcare,1235/48,21-Oct-22,573.5,0,92896,Older People Placements - East,321000              Social Community Care Supplies & Services - Adult,A,2022,7
296,Community and Housing,Allied Healthcare,1235/64,21-Oct-22,700.46,0,92896,Older People Placements - East,321000              Social Community Care Supplies & Services - Adult,A,2022,7
297,Community and Housing,Allied Healthcare,1235/61,21-Oct-22,731.75,0,92896,Older People Placements - East,321000              Social Community Care Supplies & Services - Adult,A,2022,7
298,Community and Housing,Allied Healthcare,1235/65,21-Oct-22,1058.06,0,92896,Older People Placements - East,321000              Social Community Care Supplies & Services - Adult,A,2022,7
299,Community and Housing,Allied Healthcare,1235/91,21-Oct-22,2004.73,0,92896,Older People Placements - East,321000              Social Community Care Supplies & Services - Adult,A,2022,7
300,Community and Housing,Allied Healthcare,1235/42,21-Oct-22,1041.52,0,92896,Older People Placements - East,321000              Social Community Care Supplies & Services - Adult,A,2022,7
301,Community and Housing,Allied Healthcare,1235/11,21-Oct-22,4257.97,0,92896,Phys/Sens Placements - East,321000              Social Community Care Supplies & Services - Adult,A,2022,7
302,Community and Housing,Allied Healthcare,1235/36,21-Oct-22,575.49,0,92896,Older People Placements - East,321000              Social Community Care Supplies & Services - Adult,A,2022,7
303,Community and Housing,Allied Healthcare,1235/1,21-Oct-22,1261.13,0,92896,Older People Placements - East,321000              Social Community Care Supplies & Services - Adult,A,2022,7
304,Community and Housing,Allied Healthcare,1235/54,21-Oct-22,2744.68,0,92896,Older People Placements - East,321000              Social Community Care Supplies & Services - Adult,A,2022,7
305,Community and Housing,Allied Healthcare,1235/38,21-Oct-22,1647.75,0,92896,Older People Placements - East,321000              Social Community Care Supplies & Services - Adult,A,2022,7
306,Community and Housing,Allied Healthcare,1235/26,21-Oct-22,1708.05,0,92896,Learning Disabilities Placemnt,321000              Social Community Care Supplies & Services - Adult,A,2022,7
307,Community and Housing,Allied Healthcare,1235/44,21-Oct-22,2724.95,0,92896,Older People Placements - East,321000              Social Community Care Supplies & Services - Adult,A,2022,7
308,Community and Housing,Allied Healthcare,1235/6,21-Oct-22,1672.74,0,92896,Older People Placements - East,321000              Social Community Care Supplies & Services - Adult,A,2022,7
309,Community and Housing,Allied Healthcare,1235/31,21-Oct-22,1887.04,0,92896,Older People Placements - East,321000              Social Community Care Supplies & Services - Adult,A,2022,7
310,Community and Housing,Allied Healthcare,1235/80,21-Oct-22,2656.48,0,92896,Older People Placements - East,321000              Social Community Care Supplies & Services - Adult,A,2022,7
311,Community and Housing,Allied Healthcare,1235/13,21-Oct-22,1306.17,0,92896,Older People Placements - East,321000              Social Community Care Supplies & Services - Adult,A,2022,7
312,Community and Housing,Allied Healthcare,1235/43,21-Oct-22,642.32,0,92896,Older People Placements - East,321000              Social Community Care Supplies & Services - Adult,A,2022,7
313,Community and Housing,Allied Healthcare,1235/71,21-Oct-22,2546.27,0,92896,Older People Placements - East,321000              Social Community Care Supplies & Services - Adult,A,2022,7
314,Community and Housing,Allied Healthcare,1235/32,21-Oct-22,1056.73,0,92896,Older People Placements - East,321000              Social Community Care Supplies & Services - Adult,A,2022,7
315,Community and Housing,Allied Healthcare,1235/5,21-Oct-22,1377.89,0,92896,Older People Placements - East,321000              Social Community Care Supplies & Services - Adult,A,2022,7
316,Community and Housing,Allied Healthcare,1235/46,21-Oct-22,2345.84,0,92896,Phys/Sens Placements - East,321000              Social Community Care Supplies & Services - Adult,A,2022,7
317,Community and Housing,Allied Healthcare,1235/22,21-Oct-22,738.6,0,92896,Older People Placements - East,321000              Social Community Care Supplies & Services - Adult,A,2022,7
318,Community and Housing,Allied Healthcare,1235/40,21-Oct-22,663.01,0,92896,Older People Placements - East,321000              Social Community Care Supplies & Services - Adult,A,2022,7
319,Community and Housing,Allied Healthcare,1235/89,21-Oct-22,1468.06,0,92896,Older People Placements - East,321000              Social Community Care Supplies & Services - Adult,A,2022,7
320,Community and Housing,Allied Healthcare,1235/15,21-Oct-22,530.04,0,92896,Older People Placements - East,321000              Social Community Care Supplies & Services - Adult,A,2022,7
321,Community and Housing,Allied Healthcare,1235/59,21-Oct-22,647.01,0,92896,Older People Placements - East,321000              Social Community Care Supplies & Services - Adult,A,2022,7
322,Community and Housing,Allied Healthcare,1235/30,21-Oct-22,1834.45,0,92896,Older People Placements - East,321000              Social Community Care Supplies & Services - Adult,A,2022,7
323,Community and Housing,Allied Healthcare,1235/53,21-Oct-22,2778.72,0,92896,Older People Placements - East,321000              Social Community Care Supplies & Services - Adult,A,2022,7
324,Community and Housing,Allied Healthcare,1235/79,21-Oct-22,1389.36,0,92896,Older People Placements - East,321000              Social Community Care Supplies & Services - Adult,A,2022,7
325,Community and Housing,Allied Healthcare,1235/85,21-Oct-22,710.14,0,92896,Older People Placements - East,321000              Social Community Care Supplies & Services - Adult,A,2022,7
326,Community and Housing,Allied Healthcare,1235/68,21-Oct-22,525.87,0,92896,Older People Placements - East,321000              Social Community Care Supplies & Services - Adult,A,2022,7
327,Community and Housing,Allied Healthcare,1235/84,21-Oct-22,2675.74,0,92896,Older People Placements - East,321000              Social Community Care Supplies & Services - Adult,A,2022,7
328,Community and Housing,Allied Healthcare,1235/27,21-Oct-22,720.55,0,92896,Older People Placements - East,321000              Social Community Care Supplies & Services - Adult,A,2022,7
329,Community and Housing,Allied Healthcare,1235/76,21-Oct-22,1012.39,0,92896,Older People Placements - East,321000              Social Community Care Supplies & Services - Adult,A,2022,7
330,Community and Housing,Allied Healthcare,1235/9,21-Oct-22,1913.3,0,92896,Older People Placements - East,321000              Social Community Care Supplies & Services - Adult,A,2022,7
331,Community and Housing,Allied Healthcare,1235/23,21-Oct-22,748.16,0,92896,Older People Placements - East,321000              Social Community Care Supplies & Services - Adult,A,2022,7
332,Community and Housing,Allied Healthcare,1235/4,21-Oct-22,810.54,0,92896,Older People Placements - East,321000              Social Community Care Supplies & Services - Adult,A,2022,7
333,Community and Housing,CARE MANAGEMENT GROUP,894602,26-Oct-22,4593.88,0,93533,Mental Health Placements,321017              Nursing & Residential Care Homes,A,2022,7
334,Community and Housing,CARE MANAGEMENT GROUP,894654,26-Oct-22,6572.16,0,93533,Learning Disabilities Placemnt,321017              Nursing & Residential Care Homes,A,2022,7
335,Community and Housing,CARE MANAGEMENT GROUP,894668,26-Oct-22,6279.2,0,93533,Learning Disabilities Placemnt,321017              Nursing & Residential Care Homes,A,2022,7
336,Community and Housing,CARE MANAGEMENT GROUP,894772,26-Oct-22,5936.6,0,93533,Learning Disabilities Placemnt,321017              Nursing & Residential Care Homes,A,2022,7
337,Community and Housing,CARE MANAGEMENT GROUP,894811,26-Oct-22,8733.64,0,93533,Phys/Sens Placements - East,321017              Nursing & Residential Care Homes,A,2022,7
338,Community and Housing,CARE MANAGEMENT GROUP,894845,26-Oct-22,7712.12,0,93533,Learning Disabilities Placemnt,321017              Nursing & Residential Care Homes,A,2022,7
339,Community and Housing,CARE MANAGEMENT GROUP,894970,26-Oct-22,7974.36,0,93533,Learning Disabilities Placemnt,321017              Nursing & Residential Care Homes,A,2022,7
340,Community and Housing,A AND R CARE LTD,894661,26-Oct-22,3300,0,94357,Older People Placements - East,321017              Nursing & Residential Care Homes,A,2022,7
341,Community and Housing,A AND R CARE LTD,894906,26-Oct-22,3400,0,94357,Older People Placements - East,321017              Nursing & Residential Care Homes,A,2022,7
342,Community and Housing,A AND R CARE LTD,894936,26-Oct-22,3809.6,0,94357,Older People Placements - East,321017              Nursing & Residential Care Homes,A,2022,7
343,Community and Housing,A AND R CARE LTD,894996,26-Oct-22,3824.32,0,94357,Phys/Sens Placements - East,321017              Nursing & Residential Care Homes,A,2022,7
344,Unassigned,JCDECAUX UNITED KINGDOM,A/R REFUND,18-Oct-22,31028.8,0,94678,Corporate Accountancy,190000              Facilities & Management Services,A,2022,7
345,Community and Housing,CARERS SUPPORT MERTON,OCT22-MAR23GRANT,10-Oct-22,15000,0,95795,Grants to Voluntary Orgs,290000              Arts & Leisure Services,A,2022,7
346,Community and Housing,CARERS SUPPORT MERTON,OCT22.MAR23GRANT,05-Oct-22,138109.5,0,95795,Grants to Voluntary Orgs,290000              Arts & Leisure Services,A,2022,7
347,Community and Housing,COMMONSIDE COMMUNITY DEV TRUST,OCT22-MAR23GRANT,05-Oct-22,19842,0,95839,Galpins Road Support,321000              Social Community Care Supplies & Services - Adult,A,2022,7
348,Community and Housing,COMMONSIDE COMMUNITY DEV TRUST,OCT22MAR23GRANT,06-Oct-22,25000,0,95839,Transformation Project,321000              Social Community Care Supplies & Services - Adult,A,2022,7
349,Community and Housing,COMMONSIDE COMMUNITY DEV TRUST,OCT22.MAR23GRANT,06-Oct-22,65000,0,95839,UKRAINE,321000              Social Community Care Supplies & Services - Adult,A,2022,7
350,"Children, Schools and Family",COMMONSIDE COMMUNITY DEV TRUST,HAFSUM22-P3,18-Oct-22,6805,0,95839,Holiday Act Food Prog grntfnd,321000              Social Community Care Supplies & Services - Adult,A,2022,7
351,Community and Housing,Aspens Charities Ltd,34951,20-Oct-22,17318.36,0,96019,Learning Disabilities Placemnt,321017              Nursing & Residential Care Homes,A,2022,7
352,Community and Housing,Aspens Charities Ltd,34952,20-Oct-22,17318.36,0,96019,Learning Disabilities Placemnt,321017              Nursing & Residential Care Homes,A,2022,7
353,Community and Housing,Aspens Charities Ltd,894794,26-Oct-22,8954.28,0,96019,Learning Disabilities Placemnt,321017              Nursing & Residential Care Homes,A,2022,7
354,Community and Housing,REDACTED PERSONAL DATA,888452,12-Oct-22,4260.16,0,96859,Learning Disabilities Placemnt,DIRECT PAYMENTS,R,2022,7
355,Community and Housing,THE ABBEYFIELD SOCIETY,889807,12-Oct-22,8428.57,0,97539,Older People Placements - East,321000              Social Community Care Supplies & Services - Adult,A,2022,7
356,Community and Housing,THE ABBEYFIELD SOCIETY,894923,26-Oct-22,4000,0,97539,Older People Placements - East,321000              Social Community Care Supplies & Services - Adult,A,2022,7
357,Community and Housing,Rosenmanor Ltd,894789,26-Oct-22,2924.24,0,97808,Mental Health Placements,321017              Nursing & Residential Care Homes,A,2022,7
358,Community and Housing,MERTON COMMUNITY TRANSPORT,16621,03-Oct-22,2128.8,354.8,98164,Learning Disabilities Placemnt,360000              Passenger Transport,A,2022,7
359,Community and Housing,MERTON COMMUNITY TRANSPORT,OCT22-MAR23GRANT,05-Oct-22,17500,0,98164,Com Care Placement Contingency,360000              Passenger Transport,A,2022,7
360,Community and Housing,MERTON COMMUNITY TRANSPORT,16694,24-Oct-22,1108.8,184.8,98164,Learning Disabilities Placemnt,360000              Passenger Transport,A,2022,7
361,Community and Housing,MERTON COMMUNITY TRANSPORT,16679,24-Oct-22,1584,264,98164,Learning Disabilities Placemnt,360000              Passenger Transport,A,2022,7
362,Community and Housing,Evolve Housing + Support,3143,04-Oct-22,24985.25,0,98536,Supporting People (HRS),321000              Social Community Care Supplies & Services - Adult,A,2022,7
363,Community and Housing,Evolve Housing + Support,3144,04-Oct-22,22732.75,0,98536,Supporting People (HRS),321000              Social Community Care Supplies & Services - Adult,A,2022,7
364,"Children, Schools and Family",Evolve Housing + Support,3150,18-Oct-22,2200,0,98536,UASC Care Leavers Over 18,321000              Social Community Care Supplies & Services - Adult,A,2022,7
365,"Children, Schools and Family",Evolve Housing + Support,3151,18-Oct-22,2200,0,98536,UASC Care Leavers Over 18,321000              Social Community Care Supplies & Services - Adult,A,2022,7
366,"Children, Schools and Family",Evolve Housing + Support,3152,18-Oct-22,1480,0,98536,UASC Care Leavers Over 18,321000              Social Community Care Supplies & Services - Adult,A,2022,7
367,"Children, Schools and Family",Evolve Housing + Support,3153,18-Oct-22,1480,0,98536,Placements Over 18,321000              Social Community Care Supplies & Services - Adult,A,2022,7
368,"Children, Schools and Family",Evolve Housing + Support,3149,21-Oct-22,2200,0,98536,UASC Care Leavers Over 18,321000              Social Community Care Supplies & Services - Adult,A,2022,7
369,Community and Housing,ROYAL MENCAP SOCIETY,3720288,19-Oct-22,2613.96,0,98713,Learning Disabilities Placemnt,321000              Social Community Care Supplies & Services - Adult,A,2022,7
370,Community and Housing,ROYAL MENCAP SOCIETY,3720287,19-Oct-22,2290.96,0,98713,Learning Disabilities Placemnt,321000              Social Community Care Supplies & Services - Adult,A,2022,7
371,"Children, Schools and Family",REDACTED PERSONAL DATA,889061,10-Oct-22,869.5,0,101120,Fostering Recruit/Assessment,290000              Arts & Leisure Services,R,2022,7
372,"Children, Schools and Family",REDACTED PERSONAL DATA,893681,24-Oct-22,869.5,0,101120,Fostering Recruit/Assessment,290000              Arts & Leisure Services,R,2022,7
373,Unassigned,WEST WIMBLEDON PRIMARY SCHOOL,SCHOOLS 2223/7 A,06-Oct-22,259367.2,0,101674,Schools,170000              Education,A,2022,7
374,Community and Housing,HILLDALE AND NORTHVIEW,894753,26-Oct-22,2072.52,0,103592,Older People Placements - East,321000              Social Community Care Supplies & Services - Adult,A,2022,7
375,Community and Housing,BUPA CARE HOMES,890226,12-Oct-22,11512.34,0,105027,Older People Placements - East,321017              Nursing & Residential Care Homes,A,2022,7
376,Community and Housing,BUPA CARE HOMES,890355,12-Oct-22,2114.51,0,105027,Older People Placements - East,321017              Nursing & Residential Care Homes,A,2022,7
377,Community and Housing,BUPA CARE HOMES,891113,14-Oct-22,1174.73,0,105027,Older People Placements - East,321017              Nursing & Residential Care Homes,A,2022,7
378,Community and Housing,BUPA CARE HOMES,894604,26-Oct-22,1174.73,0,105027,Older People Placements - East,321017              Nursing & Residential Care Homes,A,2022,7
379,Community and Housing,BUPA CARE HOMES,894627,26-Oct-22,3154.12,0,105027,Older People Placements - East,321017              Nursing & Residential Care Homes,A,2022,7
380,Community and Housing,BUPA CARE HOMES,894632,26-Oct-22,3289.24,0,105027,Older People Placements - East,321017              Nursing & Residential Care Homes,A,2022,7
381,Community and Housing,BUPA CARE HOMES,894634,26-Oct-22,3289.24,0,105027,Older People Placements - East,321017              Nursing & Residential Care Homes,A,2022,7
382,Community and Housing,BUPA CARE HOMES,894660,26-Oct-22,3154.12,0,105027,Older People Placements - East,321017              Nursing & Residential Care Homes,A,2022,7
383,Community and Housing,BUPA CARE HOMES,894701,26-Oct-22,2703.53,0,105027,Older People Placements - East,321017              Nursing & Residential Care Homes,A,2022,7
384,Community and Housing,BUPA CARE HOMES,894706,26-Oct-22,3289.24,0,105027,Older People Placements - East,321017              Nursing & Residential Care Homes,A,2022,7
385,Community and Housing,BUPA CARE HOMES,894718,26-Oct-22,3154.12,0,105027,Older People Placements - East,321017              Nursing & Residential Care Homes,A,2022,7
386,Community and Housing,BUPA CARE HOMES,894739,26-Oct-22,3154.12,0,105027,Older People Placements - East,321017              Nursing & Residential Care Homes,A,2022,7
387,Community and Housing,BUPA CARE HOMES,894762,26-Oct-22,3154.12,0,105027,Older People Placements - East,321017              Nursing & Residential Care Homes,A,2022,7
388,Community and Housing,BUPA CARE HOMES,894820,26-Oct-22,3154.12,0,105027,Older People Placements - East,321017              Nursing & Residential Care Homes,A,2022,7
389,Community and Housing,BUPA CARE HOMES,894834,26-Oct-22,3289.24,0,105027,Older People Placements - East,321017              Nursing & Residential Care Homes,A,2022,7
390,Community and Housing,BUPA CARE HOMES,894837,26-Oct-22,3154.12,0,105027,Older People Placements - East,321017              Nursing & Residential Care Homes,A,2022,7
391,Community and Housing,BUPA CARE HOMES,894880,26-Oct-22,3289.24,0,105027,Older People Placements - East,321017              Nursing & Residential Care Homes,A,2022,7
392,Community and Housing,BUPA CARE HOMES,894888,26-Oct-22,4321.08,0,105027,Phys/Sens Placements - East,321017              Nursing & Residential Care Homes,A,2022,7
393,Community and Housing,BUPA CARE HOMES,894900,26-Oct-22,3569.4,0,105027,Older People Placements - East,321017              Nursing & Residential Care Homes,A,2022,7
394,Community and Housing,BUPA CARE HOMES,894932,26-Oct-22,3154.12,0,105027,Older People Placements - East,321017              Nursing & Residential Care Homes,A,2022,7
395,Community and Housing,BUPA CARE HOMES,894962,26-Oct-22,3289.24,0,105027,Older People Placements - East,321017              Nursing & Residential Care Homes,A,2022,7
396,Community and Housing,BUPA CARE HOMES,895014,26-Oct-22,3154.12,0,105027,Older People Placements - East,321017              Nursing & Residential Care Homes,A,2022,7
397,Community and Housing,BUPA CARE HOMES,831871,27-Oct-22,6687.48,0,105027,Older People Placements - East,321017              Nursing & Residential Care Homes,A,2022,7
398,Community and Housing,REDACTED PERSONAL DATA,888481,12-Oct-22,2689.24,0,105300,Learning Disabilities Placemnt,DIRECT PAYMENTS,R,2022,7
399,Capital,ASCENDIT LIFTS LTD,39105,21-Oct-22,5267,0,107196,Disabled Facilities Grant,"390000              Works - Construction, Repair & Maintenance",A,2022,7
400,Community and Housing,REDACTED PERSONAL DATA,891416,18-Oct-22,789.04,0,110403,MH Housing Support Placements,321000              Social Community Care Supplies & Services - Adult,R,2022,7
401,Community and Housing,REDACTED PERSONAL DATA,891418,18-Oct-22,1052.04,0,110403,Learning Disabilities Placemnt,321000              Social Community Care Supplies & Services - Adult,R,2022,7
402,Community and Housing,REDACTED PERSONAL DATA,891419,18-Oct-22,780.68,0,110403,MH Housing Support Placements,321000              Social Community Care Supplies & Services - Adult,R,2022,7
403,Community and Housing,REDACTED PERSONAL DATA,891432,18-Oct-22,780.68,0,110403,MH Housing Support Placements,321000              Social Community Care Supplies & Services - Adult,R,2022,7
404,Community and Housing,REDACTED PERSONAL DATA,891433,18-Oct-22,789.04,0,110403,MH Housing Support Placements,321000              Social Community Care Supplies & Services - Adult,R,2022,7
405,Community and Housing,REDACTED PERSONAL DATA,891443,18-Oct-22,1235.28,0,110403,Phys/Sens Placements - East,321000              Social Community Care Supplies & Services - Adult,R,2022,7
406,Community and Housing,REDACTED PERSONAL DATA,891447,18-Oct-22,780.68,0,110403,Mental Health Placements,321000              Social Community Care Supplies & Services - Adult,R,2022,7
407,Community and Housing,REDACTED PERSONAL DATA,891451,18-Oct-22,780.68,0,110403,MH Housing Support Placements,321000              Social Community Care Supplies & Services - Adult,R,2022,7
408,Community and Housing,REDACTED PERSONAL DATA,891464,18-Oct-22,780.68,0,110403,MH Housing Support Placements,321000              Social Community Care Supplies & Services - Adult,R,2022,7
409,Community and Housing,REDACTED PERSONAL DATA,891465,18-Oct-22,780.68,0,110403,Mental Health Placements,321000              Social Community Care Supplies & Services - Adult,R,2022,7
410,Community and Housing,REDACTED PERSONAL DATA,891467,18-Oct-22,520.48,0,110403,MH Housing Support Placements,321000              Social Community Care Supplies & Services - Adult,R,2022,7
411,Community and Housing,REDACTED PERSONAL DATA,891468,18-Oct-22,1040.92,0,110403,Phys/Sens Placements - East,321000              Social Community Care Supplies & Services - Adult,R,2022,7
412,Community and Housing,REDACTED PERSONAL DATA,891470,18-Oct-22,2240,0,110403,Mental Health Placements,321000              Social Community Care Supplies & Services - Adult,R,2022,7
413,Community and Housing,REDACTED PERSONAL DATA,891424,18-Oct-22,780.68,0,110406,LD Housing Support Placements,321000              Social Community Care Supplies & Services - Adult,R,2022,7
414,"Children, Schools and Family",REDACTED PERSONAL DATA,893442,21-Oct-22,534.75,0,111277,Placements Under 18,321100              Social Community Care Supplies & Services - Children,R,2022,7
415,"Children, Schools and Family",REDACTED PERSONAL DATA,889134,10-Oct-22,580.68,0,112660,Fostering Recruit/Assessment,321100              Social Community Care Supplies & Services - Children,R,2022,7
416,Environment and Regeneration,CHARTERED INST.OF ENVIR.HEALTH,PS009906,25-Oct-22,960,160,112693, EH Commercial Food - RSP,200000              Financial Services,A,2022,7
417,Community and Housing,MEADBANK NURSING CENTRE,894815,26-Oct-22,4110.6,0,113139,Phys/Sens Placements - East,321017              Nursing & Residential Care Homes,A,2022,7
418,Community and Housing,MEADBANK NURSING CENTRE,894994,26-Oct-22,2995.28,0,113139,Older People Placements - East,321017              Nursing & Residential Care Homes,A,2022,7
419,Community and Housing,REDACTED PERSONAL DATA,891620,18-Oct-22,78142.66,0,113331,Learning Disabilities Placemnt,DIRECT PAYMENTS,R,2022,7
420,"Children, Schools and Family",REDACTED PERSONAL DATA,889094,10-Oct-22,557.94,0,113452,Fostering Recruit/Assessment,321100              Social Community Care Supplies & Services - Children,R,2022,7
421,"Children, Schools and Family",REDACTED PERSONAL DATA,893714,24-Oct-22,6735.35,0,113452,Fostering Recruit/Assessment,321100              Social Community Care Supplies & Services - Children,R,2022,7
422,"Children, Schools and Family",Dicky Birds Pre Sch. Nurseries Dundonald,P1 22 ADJUST,03-Oct-22,866.88,0,114041,EARLY YEARS NURSERY GRANTS,170000              Education,A,2022,7
423,Community and Housing,MIHOMECARE LIMITED,LIVE1W-269288,21-Oct-22,1113.7,0,114370,Learning Disabilities Placemnt,321000              Social Community Care Supplies & Services - Adult,A,2022,7
424,Community and Housing,REDACTED PERSONAL DATA,891426,18-Oct-22,780.68,0,114970,MH Housing Support Placements,321000              Social Community Care Supplies & Services - Adult,R,2022,7
425,Community and Housing,REDACTED PERSONAL DATA,891428,18-Oct-22,1783,0,114970,Mental Health Placements,321000              Social Community Care Supplies & Services - Adult,R,2022,7
426,Community and Housing,REDACTED PERSONAL DATA,891444,18-Oct-22,1511.64,0,114970,Mental Health Placements,321000              Social Community Care Supplies & Services - Adult,R,2022,7
427,Community and Housing,REDACTED PERSONAL DATA,891459,18-Oct-22,1052.08,0,114970,MH Housing Support Placements,321000              Social Community Care Supplies & Services - Adult,R,2022,7
428,Community and Housing,REDACTED PERSONAL DATA,891446,25-Oct-22,1040.92,0,114970,Hospital To Home,321000              Social Community Care Supplies & Services - Adult,R,2022,7
429,Community and Housing,ASTRA HOMES,AK/1022,06-Oct-22,2034.24,0,114991,Mental Health Placements,321000              Social Community Care Supplies & Services - Adult,A,2022,7
430,Community and Housing,ASTRA HOMES,GB/10/22,06-Oct-22,1978.12,0,114991,Mental Health Placements,321000              Social Community Care Supplies & Services - Adult,A,2022,7
431,Community and Housing,ASTRA HOMES,EC/10/22,06-Oct-22,2071.68,0,114991,Mental Health Placements,321000              Social Community Care Supplies & Services - Adult,A,2022,7
432,Community and Housing,ASTRA HOMES,MJ/10/22,06-Oct-22,1816.76,0,114991,Mental Health Placements,321000              Social Community Care Supplies & Services - Adult,A,2022,7
433,Community and Housing,GRANGE COTTAGE LIMITED,894667,26-Oct-22,2680,0,117931,Older People Placements - East,321017              Nursing & Residential Care Homes,A,2022,7
434,Community and Housing,GRANGE COTTAGE LIMITED,894717,26-Oct-22,2680,0,117931,Older People Placements - East,321017              Nursing & Residential Care Homes,A,2022,7
435,Community and Housing,GRANGE COTTAGE LIMITED,894720,26-Oct-22,3200,0,117931,Older People Placements - East,321017              Nursing & Residential Care Homes,A,2022,7
436,Community and Housing,GRANGE COTTAGE LIMITED,894830,26-Oct-22,3600,0,117931,Older People Placements - East,321017              Nursing & Residential Care Homes,A,2022,7
437,Community and Housing,GRANGE COTTAGE LIMITED,894918,26-Oct-22,2680,0,117931,Older People Placements - East,321017              Nursing & Residential Care Homes,A,2022,7
438,Community and Housing,REDACTED PERSONAL DATA,891422,18-Oct-22,789.04,0,117970,MH Housing Support Placements,321000              Social Community Care Supplies & Services - Adult,R,2022,7
439,Community and Housing,REDACTED PERSONAL DATA,891435,18-Oct-22,1052.08,0,117970,Mental Health Placements,321000              Social Community Care Supplies & Services - Adult,R,2022,7
440,Community and Housing,REDACTED PERSONAL DATA,891456,18-Oct-22,1052.08,0,117970,Mental Health Placements,321000              Social Community Care Supplies & Services - Adult,R,2022,7
441,Community and Housing,L'ARCHE,894947,26-Oct-22,3094.6,0,118483,Learning Disabilities Placemnt,321017              Nursing & Residential Care Homes,A,2022,7
442,Community and Housing,Alexander House,890389,12-Oct-22,1782.86,0,119109,Older People Placements - East,321017              Nursing & Residential Care Homes,A,2022,7
443,Community and Housing,Alexander House,894681,26-Oct-22,3100,0,119109,Older People Placements - East,321017              Nursing & Residential Care Homes,A,2022,7
444,Community and Housing,Alexander House,894755,26-Oct-22,3220.32,0,119109,Older People Placements - East,321017              Nursing & Residential Care Homes,A,2022,7
445,Community and Housing,Alexander House,895005,26-Oct-22,3428.57,0,119109,Older People Placements - East,321017              Nursing & Residential Care Homes,A,2022,7
446,Community and Housing,Alexander House,895019,26-Oct-22,3840,0,119109,Older People Placements - East,321017              Nursing & Residential Care Homes,A,2022,7
447,Environment and Regeneration,Flowbird Smart City UK Ltd,UK155426,24-Oct-22,5436,906,119359,Operational Running Costs,350000              Street & Traffic Management,A,2022,7
448,Environment and Regeneration,BRITISH PARKING ASSOCIATION,64065,10-Oct-22,3494.4,582.4,121216,Operational Running Costs,200000              Financial Services,A,2022,7
449,Environment and Regeneration,KINGDOM SECURITY LTD,SER-00003073INV,07-Oct-22,31304.95,5217.49,123458,Waste Enforcement,260000              Human Resources,A,2022,7
450,Community and Housing,REDACTED PERSONAL DATA,888369,12-Oct-22,1412.4,0,124097,Older People Placements - East,DIRECT PAYMENTS,R,2022,7
451,Community and Housing,UNITED RESPONSE,894639,26-Oct-22,7605.02,1267.5,125227,Learning Disabilities Placemnt,321000              Social Community Care Supplies & Services - Adult,A,2022,7
452,Community and Housing,UNITED RESPONSE,894673,26-Oct-22,7605.02,1267.5,125227,Learning Disabilities Placemnt,321000              Social Community Care Supplies & Services - Adult,A,2022,7
453,Community and Housing,UNITED RESPONSE,894688,26-Oct-22,7605.02,1267.5,125227,Learning Disabilities Placemnt,321000              Social Community Care Supplies & Services - Adult,A,2022,7
454,Community and Housing,UNITED RESPONSE,894745,26-Oct-22,7605.02,1267.5,125227,Learning Disabilities Placemnt,321000              Social Community Care Supplies & Services - Adult,A,2022,7
455,Community and Housing,UNITED RESPONSE,894787,26-Oct-22,7605.02,1267.5,125227,Learning Disabilities Placemnt,321000              Social Community Care Supplies & Services - Adult,A,2022,7
456,Community and Housing,UNITED RESPONSE,894899,26-Oct-22,7605.02,1267.5,125227,Learning Disabilities Placemnt,321000              Social Community Care Supplies & Services - Adult,A,2022,7
457,Community and Housing,REDACTED PERSONAL DATA,888408,12-Oct-22,1336.44,0,125642,Phys/Sens Placements - East,DIRECT PAYMENTS,R,2022,7
458,Community and Housing,REDACTED PERSONAL DATA,888435,12-Oct-22,890.96,0,126189,Older People Placements - East,DIRECT PAYMENTS,R,2022,7
459,Community and Housing,KELSTONE COURT NURSING HOME,890341,12-Oct-22,3321.42,0,126473,Older People Placements - East,321017              Nursing & Residential Care Homes,A,2022,7
460,Community and Housing,KELSTONE COURT NURSING HOME,894600,26-Oct-22,2920,0,126473,Older People Placements - East,321017              Nursing & Residential Care Homes,A,2022,7
461,Community and Housing,KELSTONE COURT NURSING HOME,894623,26-Oct-22,3000,0,126473,Older People Placements - East,321017              Nursing & Residential Care Homes,A,2022,7
462,Community and Housing,KELSTONE COURT NURSING HOME,894697,26-Oct-22,3000,0,126473,Older People Placements - East,321017              Nursing & Residential Care Homes,A,2022,7
463,Community and Housing,KELSTONE COURT NURSING HOME,894712,26-Oct-22,2920,0,126473,Older People Placements - East,321017              Nursing & Residential Care Homes,A,2022,7
464,Community and Housing,KELSTONE COURT NURSING HOME,894716,26-Oct-22,2920,0,126473,Older People Placements - East,321017              Nursing & Residential Care Homes,A,2022,7
465,Community and Housing,KELSTONE COURT NURSING HOME,894726,26-Oct-22,3000,0,126473,Older People Placements - East,321017              Nursing & Residential Care Homes,A,2022,7
466,Community and Housing,KELSTONE COURT NURSING HOME,894799,26-Oct-22,2920,0,126473,Older People Placements - East,321017              Nursing & Residential Care Homes,A,2022,7
467,Community and Housing,KELSTONE COURT NURSING HOME,894838,26-Oct-22,2920,0,126473,Older People Placements - East,321017              Nursing & Residential Care Homes,A,2022,7
468,Community and Housing,KELSTONE COURT NURSING HOME,894840,26-Oct-22,2920,0,126473,Older People Placements - East,321017              Nursing & Residential Care Homes,A,2022,7
469,Community and Housing,KELSTONE COURT NURSING HOME,894873,26-Oct-22,2944.32,0,126473,Older People Placements - East,321017              Nursing & Residential Care Homes,A,2022,7
470,Community and Housing,KELSTONE COURT NURSING HOME,894879,26-Oct-22,3000,0,126473,Older People Placements - East,321017              Nursing & Residential Care Homes,A,2022,7
471,Community and Housing,KELSTONE COURT NURSING HOME,894916,26-Oct-22,2920,0,126473,Older People Placements - East,321017              Nursing & Residential Care Homes,A,2022,7
472,Community and Housing,KELSTONE COURT NURSING HOME,894954,26-Oct-22,2920,0,126473,Older People Placements - East,321017              Nursing & Residential Care Homes,A,2022,7
473,Community and Housing,KELSTONE COURT NURSING HOME,894956,26-Oct-22,3000,0,126473,Older People Placements - East,321017              Nursing & Residential Care Homes,A,2022,7
474,Community and Housing,KELSTONE COURT NURSING HOME,894966,26-Oct-22,3000,0,126473,Older People Placements - East,321017              Nursing & Residential Care Homes,A,2022,7
475,Community and Housing,KELSTONE COURT NURSING HOME,894968,26-Oct-22,2920,0,126473,Older People Placements - East,321017              Nursing & Residential Care Homes,A,2022,7
476,Community and Housing,KELSTONE COURT NURSING HOME,894971,26-Oct-22,2920,0,126473,Older People Placements - East,321017              Nursing & Residential Care Homes,A,2022,7
477,Community and Housing,KELSTONE COURT NURSING HOME,895018,26-Oct-22,2920,0,126473,Older People Placements - East,321017              Nursing & Residential Care Homes,A,2022,7
478,Community and Housing,REDACTED PERSONAL DATA,888330,12-Oct-22,668.24,0,127266,Phys/Sens Placements - East,DIRECT PAYMENTS,R,2022,7
479,Corporate Services,THE LAW SOCIETY,INV200711463,20-Oct-22,16826,0,127689,Legal Shared Service,200000              Financial Services,A,2022,7
480,"Children, Schools and Family",EAGLE HOUSE SCHOOL,EHM22/018,03-Oct-22,20671.67,0,128617,Non-Delegated Statements,170000              Education,A,2022,7
481,Environment and Regeneration,TRL LIMITED,11616840,18-Oct-22,4345.04,724.17,128700,Wandsworth Air Quality,180000              Environmental Services,A,2022,7
482,Environment and Regeneration,TRL LIMITED,11616841,18-Oct-22,1285.2,214.2,128700,LBR - Pollution,180000              Environmental Services,A,2022,7
483,Environment and Regeneration,TRL LIMITED,11616842,18-Oct-22,630.28,105.05,128700,Environmental Health-Pollution,180000              Environmental Services,A,2022,7
484,Community and Housing,BUPA CARE HOMES,890394,12-Oct-22,5402.46,0,130491,Phys/Sens Placements - East,321017              Nursing & Residential Care Homes,A,2022,7
485,Community and Housing,BUPA CARE HOMES,894638,26-Oct-22,6133.76,0,130491,Phys/Sens Placements - East,321017              Nursing & Residential Care Homes,A,2022,7
486,Community and Housing,BUPA CARE HOMES,894747,26-Oct-22,6050.76,0,130491,Phys/Sens Placements - East,321017              Nursing & Residential Care Homes,A,2022,7
487,Environment and Regeneration,TFL SURFACE TRANSPORT,1800063256,28-Oct-22,84814.59,0,131451,Traffic Signals,360000              Passenger Transport,A,2022,7
488,Capital,EVAC AND CHAIR INTERNATIONAL LTD,INV149373,27-Oct-22,1442.4,240.4,131743,Works to other buildings,190000              Facilities & Management Services,A,2022,7
489,Capital,EVAC AND CHAIR INTERNATIONAL LTD,INV149374,27-Oct-22,1080,180,131743,Works to other buildings,190000              Facilities & Management Services,A,2022,7
490,Environment and Regeneration,DOMINO 4 LIMITED,D.44241,19-Oct-22,957,159.5,132991,Highways GM Contract,190000              Facilities & Management Services                                                          Confirmed,A,2022,7
491,Unassigned,Evans Cycles Limited,HO-PSI4482202,21-Oct-22,2947,491.17,133082,Corporate Accountancy,260000              Human Resources,A,2022,7
492,Community and Housing,VOYAGE CARE LTD,890342,12-Oct-22,2992.92,0,133700,Learning Disabilities Placemnt,321017              Nursing & Residential Care Homes,A,2022,7
493,Community and Housing,VOYAGE CARE LTD,894710,26-Oct-22,6393.92,0,133700,Learning Disabilities Placemnt,321017              Nursing & Residential Care Homes,A,2022,7
494,Community and Housing,VOYAGE CARE LTD,894817,26-Oct-22,7597.76,0,133700,Learning Disabilities Placemnt,321017              Nursing & Residential Care Homes,A,2022,7
495,Community and Housing,VOYAGE CARE LTD,894897,26-Oct-22,7674.32,0,133700,Learning Disabilities Placemnt,321017              Nursing & Residential Care Homes,A,2022,7
496,Corporate Services,Paygate Solutions Ltd,SUP0000031239,31-Oct-22,16692,2782,134247,AD Resources,270000              Information Communication Technology,A,2022,7
497,Community and Housing,HOMECARE SERVICES LTD,28284,03-Oct-22,4454.8,0,134594,Phys/Sens Placements - East,321100              Social Community Care Supplies & Services - Children,A,2022,7
498,Community and Housing,HOMECARE SERVICES LTD,28369,28-Oct-22,4454.8,0,134594,Phys/Sens Placements - East,321100              Social Community Care Supplies & Services - Children,A,2022,7
499,Community and Housing,Sunrise Rehabilitation Centre,894630,26-Oct-22,4923.4,0,135093,Learning Disabilities Placemnt,321017              Nursing & Residential Care Homes,A,2022,7
500,Community and Housing,Sunrise Rehabilitation Centre,894657,26-Oct-22,4923.4,0,135093,Learning Disabilities Placemnt,321017              Nursing & Residential Care Homes,A,2022,7
501,Community and Housing,Sunrise Rehabilitation Centre,894812,26-Oct-22,4873.96,0,135093,Learning Disabilities Placemnt,321017              Nursing & Residential Care Homes,A,2022,7
502,Community and Housing,Sunrise Rehabilitation Centre,894933,26-Oct-22,4762.72,0,135093,Learning Disabilities Placemnt,321017              Nursing & Residential Care Homes,A,2022,7
503,Community and Housing,Sunrise Rehabilitation Centre,894937,26-Oct-22,4886.32,0,135093,Learning Disabilities Placemnt,321017              Nursing & Residential Care Homes,A,2022,7
504,Community and Housing,Sunrise Rehabilitation Centre,894953,26-Oct-22,4923.4,0,135093,Learning Disabilities Placemnt,321017              Nursing & Residential Care Homes,A,2022,7
505,Community and Housing,Sunrise Rehabilitation Centre,895003,26-Oct-22,6102,0,135093,Learning Disabilities Placemnt,321017              Nursing & Residential Care Homes,A,2022,7
506,Community and Housing,Sunrise Rehabilitation Centre,895021,26-Oct-22,4120,0,135093,Learning Disabilities Placemnt,321017              Nursing & Residential Care Homes,A,2022,7
507,Community and Housing,MERTON VISION,OCT22-MAR23GRANT,10-Oct-22,27357.5,0,135428,Grants to Voluntary Orgs,260000              Human Resources,A,2022,7
508,Community and Housing,MERTON VISION,INV1918,28-Oct-22,5864.81,0,135428,Physical/Sensory Contracts,260000              Human Resources,A,2022,7
509,Unassigned,DAC BEACHCROFT LLP,03-10148548,17-Oct-22,2124,0,135458,Corporate Accountancy,200000              Financial Services,A,2022,7
510,Community and Housing,REDACTED PERSONAL DATA,888494,12-Oct-22,2742.08,0,135784,Phys/Sens Placements - East,DIRECT PAYMENTS,R,2022,7
511,"Children, Schools and Family",REDACTED PERSONAL DATA,889200,10-Oct-22,554.92,0,135795,Fostering Recruit/Assessment,321100              Social Community Care Supplies & Services - Children,R,2022,7
512,"Children, Schools and Family",REDACTED PERSONAL DATA,893819,24-Oct-22,554.92,0,135795,Fostering Recruit/Assessment,321100              Social Community Care Supplies & Services - Children,R,2022,7
513,Community and Housing,VITALISE,894610,26-Oct-22,4402,0,135823,Older People Placements - East,321017              Nursing & Residential Care Homes,A,2022,7
514,Community and Housing,REDACTED PERSONAL DATA,888659,12-Oct-22,1463.72,0,137843,Phys/Sens Placements - East,DIRECT PAYMENTS,R,2022,7
515,Community and Housing,HESTIA HOUSING AND SUPPORT,ARINV/00005757,24-Oct-22,21712.25,0,139090,Supporting People (HRS),321000              Social Community Care Supplies & Services - Adult,A,2022,7
516,Community and Housing,REDACTED PERSONAL DATA,888351,12-Oct-22,1078,0,139365,Phys/Sens Placements - East,DIRECT PAYMENTS,R,2022,7
517,Community and Housing,REDACTED PERSONAL DATA,888603,12-Oct-22,509.12,0,140662,Phys/Sens Placements - East,DIRECT PAYMENTS,R,2022,7
518,Community and Housing,REDACTED PERSONAL DATA,888477,12-Oct-22,4263.88,0,140759,Phys/Sens Placements - East,DIRECT PAYMENTS,R,2022,7
519,Community and Housing,REDACTED PERSONAL DATA,888523,12-Oct-22,792.32,0,140759,Phys/Sens Placements - East,DIRECT PAYMENTS,R,2022,7
520,Community and Housing,SURREY AND BORDERS PARTNERSHIP,894779,26-Oct-22,11448.72,0,140911,Learning Disabilities Placemnt,321017              Nursing & Residential Care Homes,A,2022,7
521,Corporate Services,PROACTIS GROUP LTD,PGLTSI5215153,28-Oct-22,15120,2520,141770,Business Systems,270000              Information Communication Technology,A,2022,7
522,Community and Housing,GARWOOD FOUNDATION,894663,26-Oct-22,2755.48,0,142358,Phys/Sens Placements - East,321017              Nursing & Residential Care Homes,A,2022,7
523,Community and Housing,GARWOOD FOUNDATION,894764,26-Oct-22,2755.48,0,142358,Older People Placements - East,321017              Nursing & Residential Care Homes,A,2022,7
524,"Children, Schools and Family",CHUBB FIRE AND SECURITY LTD,9549051,17-Oct-22,757.81,126.3,142411,Church Road Building,"390000              Works - Construction, Repair & Maintenance",A,2022,7
525,"Children, Schools and Family",CHUBB FIRE AND SECURITY LTD,9526664,18-Oct-22,1077.24,179.54,142411,Newminster CC Building Mgt,"390000              Works - Construction, Repair & Maintenance",A,2022,7
526,Community and Housing,CHHG LTD T/A GRETTON HOMES,894977,26-Oct-22,7961.72,0,142442,Learning Disabilities Placemnt,321017              Nursing & Residential Care Homes,A,2022,7
527,Community and Housing,EVERGREEN PARTNERSHIP,894704,26-Oct-22,10725,0,142455,Learning Disabilities Placemnt,321017              Nursing & Residential Care Homes,A,2022,7
528,Community and Housing,EVERGREEN PARTNERSHIP,894721,26-Oct-22,6629.16,0,142455,Learning Disabilities Placemnt,321017              Nursing & Residential Care Homes,A,2022,7
529,Community and Housing,REDACTED PERSONAL DATA,891436,18-Oct-22,1052.08,0,143597,MH Housing Support Placements,321000              Social Community Care Supplies & Services - Adult,R,2022,7
530,Community and Housing,REDACTED PERSONAL DATA,891438,18-Oct-22,616.82,0,143597,Learning Disabilities Placemnt,321000              Social Community Care Supplies & Services - Adult,R,2022,7
531,Community and Housing,REDACTED PERSONAL DATA,891449,18-Oct-22,685.88,0,143597,Mental Health Placements,321000              Social Community Care Supplies & Services - Adult,R,2022,7
532,Community and Housing,REDACTED PERSONAL DATA,891452,18-Oct-22,1315.04,0,143597,LD Housing Support Placements,321000              Social Community Care Supplies & Services - Adult,R,2022,7
533,Community and Housing,REDACTED PERSONAL DATA,891472,18-Oct-22,1462.32,0,143597,Learning Disabilities Placemnt,321000              Social Community Care Supplies & Services - Adult,R,2022,7
534,Community and Housing,REDACTED PERSONAL DATA,888471,12-Oct-22,3731.72,0,144689,Learning Disabilities Placemnt,DIRECT PAYMENTS,R,2022,7
535,Community and Housing,CRAEGMOOR FACILITIES - WINDSOR,894759,26-Oct-22,6834.88,0,145152,Learning Disabilities Placemnt,321017              Nursing & Residential Care Homes,A,2022,7
536,Community and Housing,REDACTED PERSONAL DATA,888555,12-Oct-22,4454.8,0,145882,Learning Disabilities Placemnt,DIRECT PAYMENTS,R,2022,7
537,Community and Housing,SPEECH CENTRE,110497,18-Oct-22,3985.99,664.33,147920,Locality Team 2,270000              Information Communication Technology,A,2022,7
538,Community and Housing,GENERATE,9830,17-Oct-22,727.2,0,148332,Learning Disabilities Placemnt,321000              Social Community Care Supplies & Services - Adult,A,2022,7
539,Community and Housing,GENERATE,9831,17-Oct-22,659.2,0,148332,Learning Disabilities Placemnt,321000              Social Community Care Supplies & Services - Adult,A,2022,7
540,Community and Housing,CHICHESTER HALL CARE HOME LTD,894964,26-Oct-22,2637.2,0,148358,Older People Placements - East,321017              Nursing & Residential Care Homes,A,2022,7
541,"Children, Schools and Family",Dicky Birds Pre Sch. Nurseries Queens Rd,P1 22 ADJUST,03-Oct-22,1733.76,0,148567,EARLY YEARS NURSERY GRANTS,200000              Financial Services,A,2022,7
542,"Children, Schools and Family",DONHEAD SCHOOL,ORTON22-1,06-Oct-22,2661,0,149760,Non-Delegated Statements,170000              Education,A,2022,7
543,Community and Housing,YMCA St Pauls' Group,35198,04-Oct-22,88454,0,149961,Supporting People (HRS),321000              Social Community Care Supplies & Services - Adult,A,2022,7
544,"Children, Schools and Family",Canterbury Campus,15A,06-Oct-22,4837.88,0,150054,PupilPremium- Virtual School,170000              Education,A,2022,7
545,Unassigned,Canterbury Campus,SCHOOLS 2223/7 A,06-Oct-22,320739.67,0,150054,Schools,170000              Education,A,2022,7
546,Community and Housing,REDACTED PERSONAL DATA,888458,12-Oct-22,2544.32,0,151002,Older People Placements - East,DIRECT PAYMENTS,R,2022,7
547,"Children, Schools and Family",GOMPELS HEALTHCARE LTD,2328827,26-Oct-22,541.84,90.31,151364,lavender Locality Child Cent,130000              Cleaning & Janitorial,A,2022,7
548,"Children, Schools and Family",GOMPELS HEALTHCARE LTD,2335569,26-Oct-22,694.18,115.69,151364,lavender Locality Child Cent,130000              Cleaning & Janitorial,A,2022,7
549,"Children, Schools and Family",GOMPELS HEALTHCARE LTD,2337783,26-Oct-22,531.21,88.54,151364,lavender Locality Child Cent,130000              Cleaning & Janitorial,A,2022,7
550,Community and Housing,AIMS CARE PARTNERSHIP,894708,26-Oct-22,10560,0,151592,Learning Disabilities Placemnt,321017              Nursing & Residential Care Homes,A,2022,7
551,Community and Housing,AIMS CARE PARTNERSHIP,894749,26-Oct-22,3114.72,0,151592,Learning Disabilities Placemnt,321017              Nursing & Residential Care Homes,A,2022,7
552,Community and Housing,REDACTED PERSONAL DATA,888460,12-Oct-22,2269.96,0,151790,Phys/Sens Placements - East,DIRECT PAYMENTS,R,2022,7
553,Community and Housing,HOLISTIC COMMUNITY CARE - FC,3165,06-Oct-22,5080,0,151996,Older People Placements - East,321000              Social Community Care Supplies & Services - Adult,A,2022,7
554,Community and Housing,HOLISTIC COMMUNITY CARE - FC,3164,06-Oct-22,4454.8,0,151996,Learning Disabilities Placemnt,321000              Social Community Care Supplies & Services - Adult,A,2022,7
555,Community and Housing,HOLISTIC COMMUNITY CARE - FC,M222307/7,11-Oct-22,1003.37,0,151996,Older People Placements - East,321000              Social Community Care Supplies & Services - Adult,A,2022,7
556,Community and Housing,HOLISTIC COMMUNITY CARE - FC,M222307/31,11-Oct-22,640.23,0,151996,Older People Placements - East,321000              Social Community Care Supplies & Services - Adult,A,2022,7
557,Community and Housing,HOLISTIC COMMUNITY CARE - FC,M222307/10,11-Oct-22,642.32,0,151996,Older People Placements - East,321000              Social Community Care Supplies & Services - Adult,A,2022,7
558,Community and Housing,HOLISTIC COMMUNITY CARE - FC,M222307/17,11-Oct-22,1389.36,0,151996,Older People Placements - East,321000              Social Community Care Supplies & Services - Adult,A,2022,7
559,Community and Housing,HOLISTIC COMMUNITY CARE - FC,M222307/2,11-Oct-22,2928.07,0,151996,Older People Placements - East,321000              Social Community Care Supplies & Services - Adult,A,2022,7
560,Community and Housing,HOLISTIC COMMUNITY CARE - FC,M222307/22,11-Oct-22,1381.12,0,151996,Older People Placements - East,321000              Social Community Care Supplies & Services - Adult,A,2022,7
561,Community and Housing,HOLISTIC COMMUNITY CARE - FC,M222307/4,11-Oct-22,2110.29,0,151996,Older People Placements - East,321000              Social Community Care Supplies & Services - Adult,A,2022,7
562,Community and Housing,HOLISTIC COMMUNITY CARE - FC,M222307/21,11-Oct-22,2762.18,0,151996,Older People Placements - East,321000              Social Community Care Supplies & Services - Adult,A,2022,7
563,Community and Housing,HOLISTIC COMMUNITY CARE - FC,M222307/9,11-Oct-22,698.53,0,151996,Older People Placements - East,321000              Social Community Care Supplies & Services - Adult,A,2022,7
564,Community and Housing,HOLISTIC COMMUNITY CARE - FC,M222307/15,11-Oct-22,825.64,0,151996,Older People Placements - East,321000              Social Community Care Supplies & Services - Adult,A,2022,7
565,Community and Housing,HOLISTIC COMMUNITY CARE - FC,M222307/16,11-Oct-22,1380.36,0,151996,Older People Placements - East,321000              Social Community Care Supplies & Services - Adult,A,2022,7
566,Community and Housing,HOLISTIC COMMUNITY CARE - FC,M222307/25,11-Oct-22,752.14,0,151996,Older People Placements - East,321000              Social Community Care Supplies & Services - Adult,A,2022,7
567,Community and Housing,HOLISTIC COMMUNITY CARE - FC,M222307/33,11-Oct-22,1146.6,0,151996,Older People Placements - East,321000              Social Community Care Supplies & Services - Adult,A,2022,7
568,Community and Housing,HOLISTIC COMMUNITY CARE - FC,M222307/6,11-Oct-22,1753.19,0,151996,Older People Placements - East,321000              Social Community Care Supplies & Services - Adult,A,2022,7
569,Community and Housing,HOLISTIC COMMUNITY CARE - FC,M222307/29,11-Oct-22,741.97,0,151996,Older People Placements - East,321000              Social Community Care Supplies & Services - Adult,A,2022,7
570,Community and Housing,REDACTED PERSONAL DATA,888688,12-Oct-22,7434,0,152015,Older People Placements - East,321000              Social Community Care Supplies & Services - Adult,R,2022,7
571,"Children, Schools and Family",FAMILY FUTURES CIC,17405,27-Oct-22,2400,0,152551,Family Supp SafeGuard - Place,321100              Social Community Care Supplies & Services - Children,A,2022,7
572,Community and Housing,BELGRAVIA ESTATES LTD,RNWL FLAT 1 173,17-Oct-22,2000,0,152558,Homelessness Prevention,200000              Financial Services,A,2022,7
573,Community and Housing,REDACTED PERSONAL DATA,888622,12-Oct-22,954.6,0,152709,Older People Placements - East,DIRECT PAYMENTS,R,2022,7
574,Community and Housing,REDACTED PERSONAL DATA,888443,12-Oct-22,1587.84,0,152990,Learning Disabilities Placemnt,DIRECT PAYMENTS,R,2022,7
575,Community and Housing,LYNTON HALL NURSING HOME,894608,31-Oct-22,3102.04,0,153795,Older People Placements - East,321017              Nursing & Residential Care Homes,A,2022,7
576,Community and Housing,LYNTON HALL NURSING HOME,894614,31-Oct-22,2988.48,0,153795,Older People Placements - East,321017              Nursing & Residential Care Homes,A,2022,7
577,Community and Housing,LYNTON HALL NURSING HOME,894785,31-Oct-22,3249.6,0,153795,Older People Placements - East,321017              Nursing & Residential Care Homes,A,2022,7
578,Unassigned,HARRIS ACADEMY MERTON,SCHOOLS 2223/7 A,06-Oct-22,58191.68,0,155274,Schools,170000              Education,A,2022,7
579,Unassigned,CFBT SCHOOLS TRUST,SCHOOLS 2223/7 A,06-Oct-22,32528.05,0,155275,Schools,170000              Education,A,2022,7
580,Community and Housing,REDACTED PERSONAL DATA,888579,12-Oct-22,614.16,0,155411,Learning Disabilities Placemnt,DIRECT PAYMENTS,R,2022,7
581,Community and Housing,REDACTED PERSONAL DATA,888607,12-Oct-22,9751.56,0,156181,Phys/Sens Placements - East,DIRECT PAYMENTS,R,2022,7
582,Community and Housing,IMAGINE INDEPENDENCE,OCT22-MAR23GRANT,05-Oct-22,60000,0,158720,Grants to Voluntary Orgs,321000              Social Community Care Supplies & Services - Adult,A,2022,7
583,Community and Housing,REDACTED PERSONAL DATA,888419,12-Oct-22,979.36,0,159542,Phys/Sens Placements - East,DIRECT PAYMENTS,R,2022,7
584,Corporate Services,ADVANCED BUSINESS SOLUTIONS,INV-48334,26-Oct-22,1033.92,172.32,159966,AD Resources,270000              Information Communication Technology,A,2022,7
585,Corporate Services,ADVANCED BUSINESS SOLUTIONS,INV-48406,26-Oct-22,1179.36,196.56,159966,AD Resources,270000              Information Communication Technology,A,2022,7
586,Community and Housing,REDACTED PERSONAL DATA,888629,12-Oct-22,3220,0,160044,Phys/Sens Placements - East,DIRECT PAYMENTS,R,2022,7
587,Corporate Services,TROWERS AND HAMLINS,11-180389,24-Oct-22,3108,518,160116,SLLP - Disbursements,280000              Legal Services                                                                            Confirmed,A,2022,7
588,"Children, Schools and Family",REDACTED PERSONAL DATA,888820,10-Oct-22,1104.88,0,160147,Child Disabilities - Placement,CSF-DIRECT PAYMENTS,R,2022,7
589,Community and Housing,REDACTED PERSONAL DATA,888542,12-Oct-22,1272.8,0,160244,Phys/Sens Placements - East,DIRECT PAYMENTS,R,2022,7
590,Community and Housing,REDACTED PERSONAL DATA,888546,12-Oct-22,604.6,0,160273,Learning Disabilities Placemnt,DIRECT PAYMENTS,R,2022,7
591,Community and Housing,REDACTED PERSONAL DATA,888455,12-Oct-22,1018.24,0,160279,Phys/Sens Placements - East,DIRECT PAYMENTS,R,2022,7
592,"Children, Schools and Family",FLEET EDUCATION SERVICES LTD,17982,14-Oct-22,1728,288,160300,Non-Delegated Statements,260000              Human Resources,A,2022,7
593,"Children, Schools and Family",THE NATIONAL FOSTERING AGENCY,409876,24-Oct-22,3293.53,0,160464,Placements Under 18,321100              Social Community Care Supplies & Services - Children,A,2022,7
594,"Children, Schools and Family",THE NATIONAL FOSTERING AGENCY,409879,24-Oct-22,5519.4,0,160464,Placements Under 18,321100              Social Community Care Supplies & Services - Children,A,2022,7
595,"Children, Schools and Family",THE NATIONAL FOSTERING AGENCY,409877,24-Oct-22,5519.4,0,160464,Placements Under 18,321100              Social Community Care Supplies & Services - Children,A,2022,7
596,Corporate Services,THORLUX LIGHTING,2304420,17-Oct-22,3751.8,625.3,160595,Civic Centre,190000              Facilities & Management Services,A,2022,7
597,Corporate Services,THORLUX LIGHTING,2304421,17-Oct-22,1680,280,160595,Civic Centre,190000              Facilities & Management Services,A,2022,7
598,Capital,THORLUX LIGHTING,2303875,11-Oct-22,3612.96,602.16,160595,Works to other buildings,190000              Facilities & Management Services,A,2022,7
599,Capital,THORLUX LIGHTING,2304584,24-Oct-22,1890,315,160595,Works to other buildings,190000              Facilities & Management Services,A,2022,7
600,Community and Housing,WILLOW LODGE NURSING HOME,894801,26-Oct-22,13365.44,0,160658,Older People Placements - East,321017              Nursing & Residential Care Homes,A,2022,7
601,Environment and Regeneration,CITY OF LONDON CORPORATION,4316965,07-Oct-22,3655.46,609.24,160895,Waste Disposal,180000              Environmental Services,A,2022,7
602,Environment and Regeneration,CITY OF LONDON CORPORATION,4322725,18-Oct-22,4385.98,731,160895,Licensing - RSP,180000              Environmental Services,A,2022,7
603,Environment and Regeneration,CITY OF LONDON CORPORATION,4326185,19-Oct-22,14833.49,2472.25,160895,Waste Disposal,180000              Environmental Services,A,2022,7
604,Community and Housing,REDACTED PERSONAL DATA,888683,12-Oct-22,540.96,0,160909,Older People Placements - East,DIRECT PAYMENTS,R,2022,7
605,"Children, Schools and Family",REDACTED PERSONAL DATA,888022,07-Oct-22,514.75,0,161094,Placements Under 18,321100              Social Community Care Supplies & Services - Children,R,2022,7
606,"Children, Schools and Family",REDACTED PERSONAL DATA,891262,14-Oct-22,514.75,0,161094,Placements Under 18,321100              Social Community Care Supplies & Services - Children,R,2022,7
607,"Children, Schools and Family",REDACTED PERSONAL DATA,893435,21-Oct-22,514.75,0,161094,Placements Under 18,321100              Social Community Care Supplies & Services - Children,R,2022,7
608,"Children, Schools and Family",REDACTED PERSONAL DATA,895472,28-Oct-22,514.75,0,161094,Placements Under 18,321100              Social Community Care Supplies & Services - Children,R,2022,7
609,Community and Housing,CENTRAL AND NW LONDON NHS FT,53505522,17-Oct-22,7214.22,0,162075,PH - Sexual Health,310000              Healthcare,A,2022,7
610,Community and Housing,CENTRAL AND NW LONDON NHS FT,53505540,17-Oct-22,7214.22,0,162075,PH - Sexual Health,310000              Healthcare,A,2022,7
611,Environment and Regeneration,KAT TRANSPORT LTD,KAT 69,18-Oct-22,3864,644,162381,Passenger Transport,360000              Passenger Transport,A,2022,7
612,Environment and Regeneration,KAT TRANSPORT LTD,KAT 68,18-Oct-22,2280,380,162381,Passenger Transport,360000              Passenger Transport,A,2022,7
613,Environment and Regeneration,KAT TRANSPORT LTD,KAT 67,18-Oct-22,1920,320,162381,Passenger Transport,360000              Passenger Transport,A,2022,7
614,Community and Housing,ROYAL BOR'GH KINGSTON U THAMES,37383509,24-Oct-22,58439.99,0,163013,Com Care Placement Contingency,OLA,A,2022,7
615,Community and Housing,ROYAL BOR'GH KINGSTON U THAMES,37383827,24-Oct-22,50200,0,163013,Com Care Placement Contingency,OLA,A,2022,7
616,Community and Housing,ROYAL BOR'GH KINGSTON U THAMES,37396333,24-Oct-22,51289.36,0,163013,Com Care Placement Contingency,OLA,A,2022,7
617,Community and Housing,REDACTED PERSONAL DATA,888371,12-Oct-22,1562.56,0,163392,Learning Disabilities Placemnt,DIRECT PAYMENTS,R,2022,7
618,"Children, Schools and Family",REDACTED PERSONAL DATA,887965,07-Oct-22,565.5,0,163471,UASC LAC Under 18,200000              Financial Services,R,2022,7
619,"Children, Schools and Family",REDACTED PERSONAL DATA,888042,07-Oct-22,785.52,0,163471,Placements Under 18,200000              Financial Services,R,2022,7
620,"Children, Schools and Family",REDACTED PERSONAL DATA,888051,07-Oct-22,514.75,0,163471,Placements Under 18,200000              Financial Services,R,2022,7
621,"Children, Schools and Family",REDACTED PERSONAL DATA,891284,14-Oct-22,785.52,0,163471,Placements Under 18,200000              Financial Services,R,2022,7
622,"Children, Schools and Family",REDACTED PERSONAL DATA,891293,14-Oct-22,514.75,0,163471,Placements Under 18,200000              Financial Services,R,2022,7
623,"Children, Schools and Family",REDACTED PERSONAL DATA,893381,21-Oct-22,665.5,0,163471,UASC LAC Under 18,200000              Financial Services,R,2022,7
624,"Children, Schools and Family",REDACTED PERSONAL DATA,893457,21-Oct-22,785.52,0,163471,Placements Under 18,200000              Financial Services,R,2022,7
625,"Children, Schools and Family",REDACTED PERSONAL DATA,893466,21-Oct-22,514.75,0,163471,Placements Under 18,200000              Financial Services,R,2022,7
626,"Children, Schools and Family",REDACTED PERSONAL DATA,895493,28-Oct-22,785.52,0,163471,Placements Under 18,200000              Financial Services,R,2022,7
627,"Children, Schools and Family",REDACTED PERSONAL DATA,895501,28-Oct-22,514.75,0,163471,Placements Under 18,200000              Financial Services,R,2022,7
628,Corporate Services,NET-CTRL,11303,13-Oct-22,3232.43,538.74,163621,IT-Telecomms,270000              Information Communication Technology,A,2022,7
629,Corporate Services,NET-CTRL,11306,17-Oct-22,14100,2350,163621,IT-Telecomms,270000              Information Communication Technology,A,2022,7
630,Community and Housing,Active Prospects,894640,26-Oct-22,6103.76,0,163859,Learning Disabilities Placemnt,321017              Nursing & Residential Care Homes,A,2022,7
631,Community and Housing,REDACTED PERSONAL DATA,888677,12-Oct-22,1129.64,0,163971,Phys/Sens Placements - East,DIRECT PAYMENTS,R,2022,7
632,Corporate Services,LONDON COUNCILS,4325354,12-Oct-22,38230,0,164343,VOLUNTARY SECTOR COORDINATION,OLA,A,2022,7
633,Community and Housing,LONDON COUNCILS,4325563,13-Oct-22,7346,0,164343,Concessionary Fares,OLA,A,2022,7
634,Corporate Services,LONDON COUNCILS,4325985,28-Oct-22,770.4,128.4,164343,Chief Executive,OLA,A,2022,7
635,Community and Housing,ENTERPRISE CARE SUPPORT LTD,19594,24-Oct-22,1081.92,0,164431,Older People Placements - East,321000              Social Community Care Supplies & Services - Adult,A,2022,7
636,Community and Housing,ENTERPRISE CARE SUPPORT LTD,19593,24-Oct-22,745.16,0,164431,Older People Placements - East,321000              Social Community Care Supplies & Services - Adult,A,2022,7
637,Community and Housing,ENTERPRISE CARE SUPPORT LTD,19591,24-Oct-22,2814.42,0,164431,Older People Placements - East,321000              Social Community Care Supplies & Services - Adult,A,2022,7
638,Community and Housing,ENTERPRISE CARE SUPPORT LTD,19588,24-Oct-22,1081.92,0,164431,Older People Placements - East,321000              Social Community Care Supplies & Services - Adult,A,2022,7
639,Community and Housing,ENTERPRISE CARE SUPPORT LTD,19583,24-Oct-22,701.91,0,164431,Learning Disabilities Placemnt,321000              Social Community Care Supplies & Services - Adult,A,2022,7
640,Community and Housing,ENTERPRISE CARE SUPPORT LTD,19582,24-Oct-22,569.87,0,164431,Older People Placements - East,321000              Social Community Care Supplies & Services - Adult,A,2022,7
641,Community and Housing,ENTERPRISE CARE SUPPORT LTD,19580,24-Oct-22,756.63,0,164431,Older People Placements - East,321000              Social Community Care Supplies & Services - Adult,A,2022,7
642,Community and Housing,ENTERPRISE CARE SUPPORT LTD,19579,24-Oct-22,756.63,0,164431,Older People Placements - East,321000              Social Community Care Supplies & Services - Adult,A,2022,7
643,Community and Housing,ENTERPRISE CARE SUPPORT LTD,19578,24-Oct-22,688.29,0,164431,Older People Placements - East,321000              Social Community Care Supplies & Services - Adult,A,2022,7
644,Community and Housing,ENTERPRISE CARE SUPPORT LTD,19577,24-Oct-22,570.29,0,164431,Older People Placements - East,321000              Social Community Care Supplies & Services - Adult,A,2022,7
645,Community and Housing,ENTERPRISE CARE SUPPORT LTD,19575,24-Oct-22,3238.08,0,164431,Older People Placements - East,321000              Social Community Care Supplies & Services - Adult,A,2022,7
646,Community and Housing,ENTERPRISE CARE SUPPORT LTD,19576,24-Oct-22,756.63,0,164431,Older People Placements - East,321000              Social Community Care Supplies & Services - Adult,A,2022,7
647,Community and Housing,ENTERPRISE CARE SUPPORT LTD,19574,24-Oct-22,1081.92,0,164431,Older People Placements - East,321000              Social Community Care Supplies & Services - Adult,A,2022,7
648,Community and Housing,ENTERPRISE CARE SUPPORT LTD,19573,24-Oct-22,543.19,0,164431,Older People Placements - East,321000              Social Community Care Supplies & Services - Adult,A,2022,7
649,Community and Housing,ENTERPRISE CARE SUPPORT LTD,19572,24-Oct-22,2814.42,0,164431,Older People Placements - East,321000              Social Community Care Supplies & Services - Adult,A,2022,7
650,Community and Housing,ENTERPRISE CARE SUPPORT LTD,19571,24-Oct-22,3183.63,0,164431,Older People Placements - East,321000              Social Community Care Supplies & Services - Adult,A,2022,7
651,Community and Housing,ENTERPRISE CARE SUPPORT LTD,19595,25-Oct-22,1308.99,0,164431,Older People Placements - East,321000              Social Community Care Supplies & Services - Adult,A,2022,7
652,Community and Housing,ENTERPRISE CARE SUPPORT LTD,19586,25-Oct-22,2163.84,0,164431,Older People Placements - East,321000              Social Community Care Supplies & Services - Adult,A,2022,7
653,Community and Housing,ENTERPRISE CARE SUPPORT LTD,19585,25-Oct-22,1081.92,0,164431,Older People Placements - East,321000              Social Community Care Supplies & Services - Adult,A,2022,7
654,Community and Housing,ENTERPRISE CARE SUPPORT LTD,19449,28-Oct-22,1081.92,0,164431,Older People Placements - East,321000              Social Community Care Supplies & Services - Adult,A,2022,7
655,"Children, Schools and Family",I CAN CHARITY,7803,21-Oct-22,2102.86,350.48,164540,Non-Delegated Statements,170000              Education,A,2022,7
656,Community and Housing,BUPA CARE SERVICES BACS RECEIP,894827,26-Oct-22,8538.76,0,164629,Older People Placements - East,321017              Nursing & Residential Care Homes,A,2022,7
657,Community and Housing,REDACTED PERSONAL DATA,888685,12-Oct-22,1272.8,0,164694,Phys/Sens Placements - East,DIRECT PAYMENTS,R,2022,7
658,"Children, Schools and Family",SYNERGY FOSTERING LTD,INV-3904,05-Oct-22,7688.4,0,165111,Placements Under 18,321100              Social Community Care Supplies & Services - Children,A,2022,7
659,Unassigned,MARSTON GROUP,62386,24-Oct-22,2685.3,0,165202,Corporate Accountancy,200000              Financial Services,A,2022,7
660,Corporate Services,DX NETWORK SERVICES LTD,83629892,24-Oct-22,26510.83,4418.47,165316,Legal Shared Service,300000              Mail Services,A,2022,7
661,Community and Housing,REDACTED PERSONAL DATA,888623,12-Oct-22,1349.48,0,165602,Learning Disabilities Placemnt,DIRECT PAYMENTS,R,2022,7
662,Community and Housing,REDACTED PERSONAL DATA,888418,12-Oct-22,2228.4,0,165619,Phys/Sens Placements - East,DIRECT PAYMENTS,R,2022,7
663,Community and Housing,REDACTED PERSONAL DATA,888500,12-Oct-22,3538.2,0,165619,Phys/Sens Placements - East,DIRECT PAYMENTS,R,2022,7
664,Community and Housing,BUPA CARE HOMES (ANS) LTD,894985,26-Oct-22,4749.4,0,165704,Older People Placements - East,321017              Nursing & Residential Care Homes,A,2022,7
665,Community and Housing,REDACTED PERSONAL DATA,888591,12-Oct-22,1032.8,0,165786,Older People Placements - East,DIRECT PAYMENTS,R,2022,7
666,Community and Housing,REDACTED PERSONAL DATA,888692,12-Oct-22,700.8,0,166085,Learning Disabilities Placemnt,DIRECT PAYMENTS,R,2022,7
667,Community and Housing,REDACTED PERSONAL DATA,888588,12-Oct-22,1588.64,0,166158,Phys/Sens Placements - East,DIRECT PAYMENTS,R,2022,7
668,Community and Housing,REDACTED PERSONAL DATA,888386,12-Oct-22,1209.16,0,166547,Learning Disabilities Placemnt,DIRECT PAYMENTS,R,2022,7
669,Environment and Regeneration,BEXLEY COUNCIL - [DA8 1TL],7001342168,05-Oct-22,2797,0,166625,Winter Maintenance,OLA,A,2022,7
670,"Children, Schools and Family",REDACTED PERSONAL DATA,887974,07-Oct-22,1295.53,0,166742,Placements Under 18,321100              Social Community Care Supplies & Services - Children,R,2022,7
671,"Children, Schools and Family",REDACTED PERSONAL DATA,891216,14-Oct-22,1295.53,0,166742,Placements Under 18,321100              Social Community Care Supplies & Services - Children,R,2022,7
672,"Children, Schools and Family",REDACTED PERSONAL DATA,893389,21-Oct-22,1295.53,0,166742,Placements Under 18,321100              Social Community Care Supplies & Services - Children,R,2022,7
673,"Children, Schools and Family",REDACTED PERSONAL DATA,895421,28-Oct-22,1295.53,0,166742,Placements Under 18,321100              Social Community Care Supplies & Services - Children,R,2022,7
674,Community and Housing,UNIQUE OFFICE SOLUTIONS LTD,112040,31-Oct-22,774,129,166889,LD Fieldwork SW,210000              Furniture & Soft Furnishings,A,2022,7
675,"Children, Schools and Family",REDACTED PERSONAL DATA,888971,10-Oct-22,2019.4,0,166972,Child Disabilities - Placement,CSF-DIRECT PAYMENTS,R,2022,7
676,Corporate Services,SGS United Kingdom Limited,WWB1174687,31-Oct-22,5400,900,167356,Legal Shared Service,280000              Legal Services                                                                            Confirmed,A,2022,7
677,Environment and Regeneration,IMPERIAL CIVIL ENFORC.SOLUT.,INV0000005719,21-Oct-22,105119.08,17519.84,167737,On Street Parking,270000              Information Communication Technology,A,2022,7
678,"Children, Schools and Family",RAINBOW FOSTERING SERVICES LTD,RF1135,25-Oct-22,3621.42,0,167793,Placements Under 18,321100              Social Community Care Supplies & Services - Children,A,2022,7
679,Corporate Services,REDACTED PERSONAL DATA,10199614,10-Oct-22,756,126,168092,Project Chaplin,280000              Legal Services,R,2022,7
680,Capital,CBS Adaptation Design,1675,04-Oct-22,3547.12,524.52,168147,Disabled Facilities Grant,200000              Financial Services,A,2022,7
681,Capital,CBS Adaptation Design,1665,11-Oct-22,828.3,108.88,168147,Disabled Facilities Grant,200000              Financial Services,A,2022,7
682,Capital,CBS Adaptation Design,1669,11-Oct-22,726.31,91.72,168147,Disabled Facilities Grant,200000              Financial Services,A,2022,7
683,Capital,CBS Adaptation Design,1674,21-Oct-22,1877.33,224.89,168147,Disabled Facilities Grant,200000              Financial Services,A,2022,7
684,Capital,CBS Adaptation Design,1672,21-Oct-22,989.01,135.5,168147,Disabled Facilities Grant,200000              Financial Services,A,2022,7
685,Capital,CBS Adaptation Design,1682,21-Oct-22,1529.03,166.84,168147,Disabled Facilities Grant,200000              Financial Services,A,2022,7
686,Corporate Services,LANGUAGE BANK,MTS-230922,18-Oct-22,807,134.5,168229,Translation Service,TRANSLATIONS,A,2022,7
687,Community and Housing,REDACTED PERSONAL DATA,888432,12-Oct-22,572.76,0,168403,Learning Disabilities Placemnt,DIRECT PAYMENTS,R,2022,7
688,Environment and Regeneration,WIMBLEDON BOOKFEST,INV3526,03-Oct-22,2000,0,168472,Arts (General Funding),200000              Financial Services,A,2022,7
689,Community and Housing,FITZROY SUPPORT,894670,26-Oct-22,6414.52,0,169400,Learning Disabilities Placemnt,321017              Nursing & Residential Care Homes,A,2022,7
690,"Children, Schools and Family",REDACTED PERSONAL DATA,889006,11-Oct-22,594,0,169403,CWD Placements,CSF-DIRECT PAYMENTS,R,2022,7
691,Community and Housing,JULIUS RUTHERFOORD AND CO LTD,INVS146540,24-Oct-22,11990.4,1998.4,170092,Galpins Road Support,130000              Cleaning & Janitorial,A,2022,7
692,Community and Housing,JULIUS RUTHERFOORD AND CO LTD,INVS146552,24-Oct-22,5160,860,170092,Galpins Road Support,130000              Cleaning & Janitorial,A,2022,7
693,"Children, Schools and Family",JULIUS RUTHERFOORD AND CO LTD,INVS145913,25-Oct-22,1077.19,179.53,170092,Newminster CC Building Mgt,130000              Cleaning & Janitorial,A,2022,7
694,"Children, Schools and Family",JULIUS RUTHERFOORD AND CO LTD,INVS146357,25-Oct-22,805.56,134.26,170092,Newminster CC Building Mgt,130000              Cleaning & Janitorial,A,2022,7
695,"Children, Schools and Family",JULIUS RUTHERFOORD AND CO LTD,INVS145869,25-Oct-22,857.51,142.92,170092,Ivy Garden CC Building,130000              Cleaning & Janitorial,A,2022,7
696,"Children, Schools and Family",JULIUS RUTHERFOORD AND CO LTD,INVS146316,25-Oct-22,844.94,140.82,170092,Ivy Garden CC Building,130000              Cleaning & Janitorial,A,2022,7
697,"Children, Schools and Family",JULIUS RUTHERFOORD AND CO LTD,INVS145733,25-Oct-22,734.34,122.39,170092,Church Road Building,130000              Cleaning & Janitorial,A,2022,7
698,"Children, Schools and Family",JULIUS RUTHERFOORD AND CO LTD,INVS146186,25-Oct-22,723.59,120.6,170092,Church Road Building,130000              Cleaning & Janitorial,A,2022,7
699,"Children, Schools and Family",JULIUS RUTHERFOORD AND CO LTD,INVS145698,25-Oct-22,1339.92,223.32,170092,Bond Road Building,130000              Cleaning & Janitorial,A,2022,7
700,"Children, Schools and Family",JULIUS RUTHERFOORD AND CO LTD,INVS146161,25-Oct-22,1138.14,189.69,170092,Bond Road Building,130000              Cleaning & Janitorial,A,2022,7
701,"Children, Schools and Family",JULIUS RUTHERFOORD AND CO LTD,INVS145664,25-Oct-22,734.34,122.39,170092,Lower Morden CC Building Mgt,130000              Cleaning & Janitorial,A,2022,7
702,"Children, Schools and Family",JULIUS RUTHERFOORD AND CO LTD,INVS146130,25-Oct-22,723.59,120.6,170092,Lower Morden CC Building Mgt,130000              Cleaning & Janitorial,A,2022,7
703,"Children, Schools and Family",SENSATIONAL KIDS,INV-6130,26-Oct-22,855,0,170195,Non-Delegated Statements,321100              Social Community Care Supplies & Services - Children,A,2022,7
704,"Children, Schools and Family",SENSATIONAL KIDS,INV-6127,26-Oct-22,855,0,170195,Non-Delegated Statements,321100              Social Community Care Supplies & Services - Children,A,2022,7
705,"Children, Schools and Family",SENSATIONAL KIDS,INV-6133,26-Oct-22,570,0,170195,Non-Delegated Statements,321100              Social Community Care Supplies & Services - Children,A,2022,7
706,Community and Housing,INDEPENDENCE HOMES LTD,CED00063-73,14-Oct-22,6688.03,0,170527,Learning Disabilities Placemnt,321017              Nursing & Residential Care Homes,A,2022,7
707,Community and Housing,INDEPENDENCE HOMES LTD,CED00073A,14-Oct-22,5662.72,0,170527,Learning Disabilities Placemnt,321017              Nursing & Residential Care Homes,A,2022,7
708,Community and Housing,INDEPENDENCE HOMES LTD,894930,26-Oct-22,7935.88,0,170527,Learning Disabilities Placemnt,321017              Nursing & Residential Care Homes,A,2022,7
709,"Children, Schools and Family",GREATER LONDON FOSTERING LTD,36124,24-Oct-22,3336.9,0,170596,Placements Under 18,321100              Social Community Care Supplies & Services - Children,A,2022,7
710,"Children, Schools and Family",GREATER LONDON FOSTERING LTD,36125,24-Oct-22,3403.5,0,170596,Placements Under 18,321100              Social Community Care Supplies & Services - Children,A,2022,7
711,"Children, Schools and Family",GREATER LONDON FOSTERING LTD,36126,24-Oct-22,3450,0,170596,Placements Under 18,321100              Social Community Care Supplies & Services - Children,A,2022,7
712,"Children, Schools and Family",GREATER LONDON FOSTERING LTD,36127,24-Oct-22,3101.28,0,170596,Placements Under 18,321100              Social Community Care Supplies & Services - Children,A,2022,7
713,"Children, Schools and Family",GL ASSESSMENT,SINV00376968,28-Oct-22,2094.42,349.07,170635,Attain,170000              Education,A,2022,7
714,Community and Housing,REDACTED PERSONAL DATA,888488,12-Oct-22,1591,0,170878,Learning Disabilities Placemnt,DIRECT PAYMENTS,R,2022,7
715,Community and Housing,REDACTED PERSONAL DATA,888436,12-Oct-22,1304.64,0,171056,Phys/Sens Placements - East,DIRECT PAYMENTS,R,2022,7
716,Community and Housing,ST GEORGES RES. CARE HOME,894975,26-Oct-22,4871.4,0,171491,Learning Disabilities Placemnt,321017              Nursing & Residential Care Homes,A,2022,7
717,Community and Housing,ST GEORGES RES. CARE HOME,894997,26-Oct-22,4024.2,0,171491,Learning Disabilities Placemnt,321017              Nursing & Residential Care Homes,A,2022,7
718,Environment and Regeneration,SSD LIMITED,SI-461,19-Oct-22,4953.6,825.6,171736,CCTV,190000              Facilities & Management Services,A,2022,7
719,"Children, Schools and Family",REDACTED PERSONAL DATA,888817,10-Oct-22,700.04,0,171943,Child Disabilities - Placement,CSF-DIRECT PAYMENTS,R,2022,7
720,Community and Housing,REDACTED PERSONAL DATA,888427,12-Oct-22,588.08,0,172070,Learning Disabilities Placemnt,DIRECT PAYMENTS,R,2022,7
721,Community and Housing,NORBURY PROPERTY SERV LDN LTD,SL7777,24-Oct-22,11153.1,0,172104,Bed & Breakfast - accomm,321000              Social Community Care Supplies & Services - Adult,A,2022,7
722,Environment and Regeneration,COSTAR UK LTD,115643299,04-Oct-22,5280,880,172108,Property Mgt & Review,270000              Information Communication Technology,A,2022,7
723,Community and Housing,EALING COUNCIL,894631,26-Oct-22,2985.92,0,172129,Mental Health Placements,OLA,A,2022,7
724,Community and Housing,CARRICKS BROOK,894646,26-Oct-22,6536.16,0,172297,Learning Disabilities Placemnt,321017              Nursing & Residential Care Homes,A,2022,7
725,Community and Housing,BROADHAM CARE LTD,894693,26-Oct-22,7386.96,0,172298,Learning Disabilities Placemnt,321017              Nursing & Residential Care Homes,A,2022,7
726,Community and Housing,BROADHAM CARE LTD,894957,26-Oct-22,6135.44,0,172298,Learning Disabilities Placemnt,321017              Nursing & Residential Care Homes,A,2022,7
727,Unassigned,KENNEDYS,012100755831M890,25-Oct-22,991.8,165.3,172486,Corporate Services,280000              Legal Services,A,2022,7
728,Unassigned,KENNEDYS,012200132521M890,25-Oct-22,1253.4,208.9,172486,Corporate Services,280000              Legal Services,A,2022,7
729,Unassigned,KENNEDYS,012200406711M890,31-Oct-22,4663.8,318.97,172486,Corporate Services,280000              Legal Services,A,2022,7
730,"Children, Schools and Family",LINDEN LODGE SCHOOL,INV-0895,05-Oct-22,91845,0,172798,Non-Delegated Statements,170000              Education,A,2022,7
731,"Children, Schools and Family",LINDEN LODGE SCHOOL,INV-0892,04-Oct-22,45895.44,0,172798,Non-Delegated Statements,170000              Education,A,2022,7
732,"Children, Schools and Family",LINDEN LODGE SCHOOL,INV-0833,07-Oct-22,2500,0,172798,Child Disabilities - Placement,170000              Education,A,2022,7
733,"Children, Schools and Family",LINDEN LODGE SCHOOL,INV-0844,10-Oct-22,1250,0,172798,Child Disabilities - Placement,170000              Education,A,2022,7
734,Community and Housing,REDACTED PERSONAL DATA,888517,12-Oct-22,845.76,0,172912,Learning Disabilities Placemnt,DIRECT PAYMENTS,R,2022,7
735,Community and Housing,REDACTED PERSONAL DATA,888442,12-Oct-22,890.96,0,172914,Learning Disabilities Placemnt,DIRECT PAYMENTS,R,2022,7
736,"Children, Schools and Family",REDACTED PERSONAL DATA,889153,10-Oct-22,552.32,0,172922,Fostering Recruit/Assessment,321100              Social Community Care Supplies & Services - Children,R,2022,7
737,"Children, Schools and Family",REDACTED PERSONAL DATA,893773,24-Oct-22,552.32,0,172922,Fostering Recruit/Assessment,321100              Social Community Care Supplies & Services - Children,R,2022,7
738,Community and Housing,REDACTED PERSONAL DATA,888704,12-Oct-22,636,0,172936,Phys/Sens Placements - East,DIRECT PAYMENTS,R,2022,7
739,"Children, Schools and Family",EAGLE HOUSE SCHOOL (SUTTON),EHS22/043,11-Oct-22,30179.67,0,173087,Non-Delegated Statements,170000              Education,A,2022,7
740,Corporate Services,REDACTED PERSONAL DATA,INVMLS5,04-Oct-22,2100,350,173233,SLLP - Disbursements,280000              Legal Services                                                                            Confirmed,R,2022,7
741,Community and Housing,HAVERING COURT NURSING HOME,894612,26-Oct-22,4954.12,0,173297,Older People Placements - East,321017              Nursing & Residential Care Homes,A,2022,7
742,Community and Housing,REDACTED PERSONAL DATA,888320,12-Oct-22,706.6,0,173308,Phys/Sens Placements - East,DIRECT PAYMENTS,R,2022,7
743,"Children, Schools and Family",REDACTED PERSONAL DATA,889082,10-Oct-22,719.06,0,173600,Fostering Recruit/Assessment,321100              Social Community Care Supplies & Services - Children,R,2022,7
744,"Children, Schools and Family",REDACTED PERSONAL DATA,893702,24-Oct-22,719.06,0,173600,Fostering Recruit/Assessment,321100              Social Community Care Supplies & Services - Children,R,2022,7
745,"Children, Schools and Family",REDACTED PERSONAL DATA,895538,28-Oct-22,700.38,0,173600,Placements Under 18,321100              Social Community Care Supplies & Services - Children,R,2022,7
746,"Children, Schools and Family",REDACTED PERSONAL DATA,895542,28-Oct-22,700.38,0,173600,Placements Under 18,321100              Social Community Care Supplies & Services - Children,R,2022,7
747,"Children, Schools and Family",REDACTED PERSONAL DATA,888933,10-Oct-22,14800.72,0,173793,Child Disabilities - Placement,CSF-DIRECT PAYMENTS,R,2022,7
748,Community and Housing,HARBOUR CARE (UK) LTD,894907,26-Oct-22,6448.68,0,173947,Learning Disabilities Placemnt,321017              Nursing & Residential Care Homes,A,2022,7
749,Environment and Regeneration,London Youth Games Foundation,1007,11-Oct-22,8400,1400,173976,Leisure support,290000              Arts & Leisure Services,A,2022,7
750,Corporate Services,REDACTED PERSONAL DATA,2661/PP,27-Oct-22,1050,175,174105,SLLP - Disbursements,280000              Legal Services,R,2022,7
751,"Children, Schools and Family",REDACTED PERSONAL DATA,888851,10-Oct-22,2200,0,174212, Statementing-Transport,CSF-DIRECT PAYMENTS,R,2022,7
752,Community and Housing,ASHINGTON HOUSE,894666,26-Oct-22,4406.68,0,174259,Learning Disabilities Placemnt,321017              Nursing & Residential Care Homes,A,2022,7
753,Community and Housing,REDACTED PERSONAL DATA,888392,12-Oct-22,779.6,0,174449,Phys/Sens Placements - East,DIRECT PAYMENTS,R,2022,7
754,Community and Housing,REDACTED PERSONAL DATA,888611,12-Oct-22,2702,0,174465,Older People Placements - East,DIRECT PAYMENTS,R,2022,7
755,Community and Housing,PRECIOUS HOMES LTD,VER002499,11-Oct-22,10087.11,0,174641,Learning Disabilities Placemnt,321017              Nursing & Residential Care Homes,A,2022,7
756,Community and Housing,ALPENBEST LIMITED,18092022-510147,20-Oct-22,950.74,0,174789,Older People Placements - East,321000              Social Community Care Supplies & Services - Adult,A,2022,7
757,Community and Housing,ALPENBEST LIMITED,18092022-963516,20-Oct-22,545.57,0,174789,Older People Placements - East,321000              Social Community Care Supplies & Services - Adult,A,2022,7
758,Community and Housing,ALPENBEST LIMITED,25092022-844086,20-Oct-22,506.52,0,174789,Older People Placements - East,321000              Social Community Care Supplies & Services - Adult,A,2022,7
759,Community and Housing,ALPENBEST LIMITED,25092022-510147,20-Oct-22,999.59,0,174789,Older People Placements - East,321000              Social Community Care Supplies & Services - Adult,A,2022,7
760,Community and Housing,ALPENBEST LIMITED,25092022-963516,20-Oct-22,584.48,0,174789,Older People Placements - East,321000              Social Community Care Supplies & Services - Adult,A,2022,7
761,Community and Housing,ALPENBEST LIMITED,02102022-963516,20-Oct-22,545.57,0,174789,Older People Placements - East,321000              Social Community Care Supplies & Services - Adult,A,2022,7
762,Community and Housing,ALPENBEST LIMITED,09102022-963516,21-Oct-22,545.57,0,174789,Older People Placements - East,321000              Social Community Care Supplies & Services - Adult,A,2022,7
763,Community and Housing,SUTTON COURT CARE CENTRE,894705,26-Oct-22,2827.36,0,174833,Older People Placements - East,321017              Nursing & Residential Care Homes,A,2022,7
764,Community and Housing,SUTTON COURT CARE CENTRE,894803,26-Oct-22,3163.36,0,174833,Older People Placements - East,321017              Nursing & Residential Care Homes,A,2022,7
765,Community and Housing,SUTTON COURT CARE CENTRE,894829,26-Oct-22,4049.6,0,174833,Phys/Sens Placements - East,321017              Nursing & Residential Care Homes,A,2022,7
766,Community and Housing,SUTTON COURT CARE CENTRE,894980,26-Oct-22,4097.28,0,174833,Phys/Sens Placements - East,321017              Nursing & Residential Care Homes,A,2022,7
767,Community and Housing,REDACTED PERSONAL DATA,888515,12-Oct-22,636.4,0,174975,Learning Disabilities Placemnt,DIRECT PAYMENTS,R,2022,7
768,"Children, Schools and Family",REDACTED PERSONAL DATA,888877,11-Oct-22,648.56,0,175042,CWD Placements,CSF-DIRECT PAYMENTS,R,2022,7
769,"Children, Schools and Family",REDACTED PERSONAL DATA,889042,10-Oct-22,539.84,0,175254,Fostering Recruit/Assessment,321100              Social Community Care Supplies & Services - Children,R,2022,7
770,"Children, Schools and Family",REDACTED PERSONAL DATA,893662,24-Oct-22,539.84,0,175254,Fostering Recruit/Assessment,321100              Social Community Care Supplies & Services - Children,R,2022,7
771,"Children, Schools and Family",GLOBAL MEDIATION LTD,INV-94135,25-Oct-22,2640,440,175270,Non-Delegated Statements,260000              Human Resources                                                                           Confirmed,A,2022,7
772,Corporate Services,REDACTED PERSONAL DATA,8866827/09/22,21-Oct-22,1800,0,175409,SLLP - Disbursements,280000              Legal Services                                                                            Confirmed,R,2022,7
773,Community and Housing,KISIMUL SCHOOL,890348,12-Oct-22,87673.04,0,175545,Learning Disabilities Placemnt,321017              Nursing & Residential Care Homes,A,2022,7
774,Community and Housing,KISIMUL SCHOOL,890349,12-Oct-22,82356.4,0,175545,Learning Disabilities Placemnt,321017              Nursing & Residential Care Homes,A,2022,7
775,Community and Housing,KISIMUL SCHOOL,894636,26-Oct-22,12524.72,0,175545,Learning Disabilities Placemnt,321017              Nursing & Residential Care Homes,A,2022,7
776,Community and Housing,KISIMUL SCHOOL,894871,26-Oct-22,11765.2,0,175545,Learning Disabilities Placemnt,321017              Nursing & Residential Care Homes,A,2022,7
777,Community and Housing,REDACTED PERSONAL DATA,888438,12-Oct-22,1781.92,0,175782,Phys/Sens Placements - East,DIRECT PAYMENTS,R,2022,7
778,Community and Housing,REDACTED PERSONAL DATA,888559,12-Oct-22,1336.44,0,175960,Learning Disabilities Placemnt,DIRECT PAYMENTS,R,2022,7
779,Community and Housing,Care for Veterans,894895,26-Oct-22,4294.28,0,176384,Phys/Sens Placements - East,321017              Nursing & Residential Care Homes,A,2022,7
780,Community and Housing,REDACTED PERSONAL DATA,888333,12-Oct-22,572.76,0,176619,Phys/Sens Placements - East,DIRECT PAYMENTS,R,2022,7
781,Community and Housing,REDACTED PERSONAL DATA,888686,12-Oct-22,5345.76,0,176783,Phys/Sens Placements - East,DIRECT PAYMENTS,R,2022,7
782,Community and Housing,REDACTED PERSONAL DATA,888655,12-Oct-22,1813.76,0,176868,Phys/Sens Placements - East,DIRECT PAYMENTS,R,2022,7
783,Community and Housing,SPRING LAKE CARE HOME LTD,894777,26-Oct-22,11418,0,177067,Learning Disabilities Placemnt,321017              Nursing & Residential Care Homes,A,2022,7
784,Community and Housing,SPRING LAKE CARE HOME LTD,894972,26-Oct-22,6468,0,177067,Learning Disabilities Placemnt,321017              Nursing & Residential Care Homes,A,2022,7
785,Community and Housing,REDACTED PERSONAL DATA,888672,12-Oct-22,652.32,0,177115,Phys/Sens Placements - East,DIRECT PAYMENTS,R,2022,7
786,Community and Housing,TUTORCARE LTD,213767,12-Oct-22,2064,344,177183,Housing Needs & Enablg-central,260000              Human Resources,A,2022,7
787,"Children, Schools and Family",REDACTED PERSONAL DATA,889049,10-Oct-22,931,0,177211,Fostering Recruit/Assessment,321100              Social Community Care Supplies & Services - Children,R,2022,7
788,"Children, Schools and Family",REDACTED PERSONAL DATA,893669,24-Oct-22,931,0,177211,Fostering Recruit/Assessment,321100              Social Community Care Supplies & Services - Children,R,2022,7
789,"Children, Schools and Family",HA TUTORS LTD,INV-12757,04-Oct-22,2001.6,333.6,177219,Non-Delegated Statements,170000              Education,A,2022,7
790,"Children, Schools and Family",HA TUTORS LTD,INV-12759,04-Oct-22,2850,475,177219,Non-Delegated Statements,170000              Education,A,2022,7
791,"Children, Schools and Family",HA TUTORS LTD,INV-12755,04-Oct-22,4964.1,827.35,177219,Non-Delegated Statements,170000              Education,A,2022,7
792,"Children, Schools and Family",HA TUTORS LTD,INV-12762,04-Oct-22,2259.9,376.65,177219,Non-Delegated Statements,170000              Education,A,2022,7
793,"Children, Schools and Family",HA TUTORS LTD,INV-12754,04-Oct-22,1656,276,177219,Non-Delegated Statements,170000              Education,A,2022,7
794,"Children, Schools and Family",HA TUTORS LTD,INV-12760,04-Oct-22,957.6,159.6,177219,Non-Delegated Statements,170000              Education,A,2022,7
795,"Children, Schools and Family",HA TUTORS LTD,INV-12756,04-Oct-22,5886,981,177219,Non-Delegated Statements,170000              Education,A,2022,7
796,"Children, Schools and Family",HA TUTORS LTD,INV-12758,04-Oct-22,2539.2,423.2,177219,Non-Delegated Statements,170000              Education,A,2022,7
797,"Children, Schools and Family",HA TUTORS LTD,117219,05-Oct-22,4016.41,669.4,177219,Non-Delegated Statements,170000              Education,A,2022,7
798,"Children, Schools and Family",HA TUTORS LTD,INV-12763,12-Oct-22,1986.6,331.1,177219,Non-Delegated Statements,170000              Education,A,2022,7
799,Corporate Services,EXPERT IN MIND,36537,07-Oct-22,1209.6,201.6,177342,SLLP - Disbursements,280000              Legal Services                                                                            Confirmed,A,2022,7
800,Corporate Services,EXPERT IN MIND,36846,21-Oct-22,2182.22,363.7,177342,SLLP - Disbursements,280000              Legal Services                                                                            Confirmed,A,2022,7
801,Corporate Services,EXPERT IN MIND,37182,27-Oct-22,1740.96,290.16,177342,SLLP - Disbursements,280000              Legal Services                                                                            Confirmed,A,2022,7
802,Community and Housing,HYTYME B AND B,26455,07-Oct-22,10916.4,1819.4,177425,Bed & Breakfast - accomm,321000              Social Community Care Supplies & Services - Adult,A,2022,7
803,"Children, Schools and Family",HYTYME B AND B,26431,13-Oct-22,1302,217,177425,Family Assessmt & Intervention,321000              Social Community Care Supplies & Services - Adult,A,2022,7
804,"Children, Schools and Family",HYTYME B AND B,26498,13-Oct-22,1080,180,177425,Family Assessmt & Intervention,321000              Social Community Care Supplies & Services - Adult,A,2022,7
805,Community and Housing,REDACTED PERSONAL DATA,888388,12-Oct-22,710.2,0,177453,Phys/Sens Placements - East,DIRECT PAYMENTS,R,2022,7
806,Community and Housing,REDACTED PERSONAL DATA,888378,12-Oct-22,724.72,0,177476,Learning Disabilities Placemnt,DIRECT PAYMENTS,R,2022,7
807,Community and Housing,REDACTED PERSONAL DATA,888341,12-Oct-22,1197.28,0,177502,Phys/Sens Placements - East,DIRECT PAYMENTS,R,2022,7
808,Corporate Services,ASSA ABLOY LTD T/A TRAKA,1222031773,04-Oct-22,561.6,93.6,177595,Safety Services,270000              Information Communication Technology,A,2022,7
809,Community and Housing,VOICEABILITY,11239,05-Oct-22,3500,0,177608,Adult Safeguarding,321000              Social Community Care Supplies & Services - Adult,A,2022,7
810,Community and Housing,VOICEABILITY,11242,05-Oct-22,12400,0,177608,Adult Safeguarding,321000              Social Community Care Supplies & Services - Adult,A,2022,7
811,Community and Housing,VOICEABILITY,11240,05-Oct-22,2750,0,177608,Adult Safeguarding,321000              Social Community Care Supplies & Services - Adult,A,2022,7
812,Community and Housing,VOICEABILITY,11241,05-Oct-22,3100,0,177608,Adult Safeguarding,321000              Social Community Care Supplies & Services - Adult,A,2022,7
813,Community and Housing,VOICEABILITY,11243,05-Oct-22,3345,0,177608,Adult Safeguarding,321000              Social Community Care Supplies & Services - Adult,A,2022,7
814,Corporate Services,HPI LIMITED,6160-001424852,18-Oct-22,1131.1,188.52,177649,Local Taxation Bailiffs,200000              Financial Services,A,2022,7
815,Community and Housing,REDACTED PERSONAL DATA,888628,12-Oct-22,572.76,0,177739,Phys/Sens Placements - East,DIRECT PAYMENTS,R,2022,7
816,Community and Housing,REDACTED PERSONAL DATA,888601,12-Oct-22,668.2,0,177785,Phys/Sens Placements - East,DIRECT PAYMENTS,R,2022,7
817,Unassigned,EDENRED (UK GROUP) LTD,SERVICECHGSNOV22,25-Oct-22,800.4,0,177846,Corporate Accountancy,321100              Social Community Care Supplies & Services - Children,A,2022,7
818,Community and Housing,WORKSHOP 305,RAG157,13-Oct-22,807.6,0,177941,Learning Disabilities Placemnt,321000              Social Community Care Supplies & Services - Adult,A,2022,7
819,Community and Housing,WORKSHOP 305,IALA157,13-Oct-22,538.4,0,177941,Learning Disabilities Placemnt,321000              Social Community Care Supplies & Services - Adult,A,2022,7
820,Community and Housing,WORKSHOP 305,IALA155,24-Oct-22,538.4,0,177941,Learning Disabilities Placemnt,321000              Social Community Care Supplies & Services - Adult,A,2022,7
821,Community and Housing,REDACTED PERSONAL DATA,888336,12-Oct-22,731.4,0,177967,Learning Disabilities Placemnt,DIRECT PAYMENTS,R,2022,7
822,Community and Housing,REDACTED PERSONAL DATA,888573,12-Oct-22,890.96,0,177999,Learning Disabilities Placemnt,DIRECT PAYMENTS,R,2022,7
823,Community and Housing,REDACTED PERSONAL DATA,888583,12-Oct-22,3784,0,178412,Learning Disabilities Placemnt,DIRECT PAYMENTS,R,2022,7
824,Community and Housing,BRAMBLEDOWN CARE HOME,894786,26-Oct-22,7448.8,0,178465,Phys/Sens Placements - East,321017              Nursing & Residential Care Homes,A,2022,7
825,Community and Housing,SPEAR,1004,11-Oct-22,36250,0,178524,Supporting People (HRS),321000              Social Community Care Supplies & Services - Adult,A,2022,7
826,Community and Housing,LOVE WALK RESIDENTIAL HOME,894784,26-Oct-22,3381.4,0,178620,Phys/Sens Placements - East,321017              Nursing & Residential Care Homes,A,2022,7
827,Community and Housing,KEW HOUSE,894792,26-Oct-22,3289.24,0,178621,Older People Placements - East,321017              Nursing & Residential Care Homes,A,2022,7
828,Community and Housing,KEW HOUSE,894868,26-Oct-22,5800,0,178621,Older People Placements - East,321017              Nursing & Residential Care Homes,A,2022,7
829,Community and Housing,REDACTED PERSONAL DATA,888480,12-Oct-22,1008.24,0,178767,Learning Disabilities Placemnt,DIRECT PAYMENTS,R,2022,7
830,Community and Housing,REDACTED PERSONAL DATA,888582,12-Oct-22,2489.08,0,178802,Learning Disabilities Placemnt,DIRECT PAYMENTS,R,2022,7
831,Community and Housing,REDACTED PERSONAL DATA,888505,12-Oct-22,1430.44,0,178874,Learning Disabilities Placemnt,DIRECT PAYMENTS,R,2022,7
832,Corporate Services,PENNA PLC,660798,24-Oct-22,21930,3655,179007,Director of Corporate Services,190000              Facilities & Management Services,A,2022,7
833,"Children, Schools and Family",PENNA PLC,661359,26-Oct-22,535.2,89.2,179007,HoS - Comission Strat and Perf,190000              Facilities & Management Services,A,2022,7
834,"Children, Schools and Family",PENNA PLC,661360,26-Oct-22,2140.8,356.8,179007,HoS - Comission Strat and Perf,190000              Facilities & Management Services,A,2022,7
835,Community and Housing,REDACTED PERSONAL DATA,888638,12-Oct-22,1336.44,0,179049,Learning Disabilities Placemnt,DIRECT PAYMENTS,R,2022,7
836,Corporate Services,HAYS SPECIALIST RECRUITM'T LTD,1012429050,25-Oct-22,849.37,141.56,179169,Corporate Accountancy,260000              Human Resources,A,2022,7
837,Corporate Services,HAYS SPECIALIST RECRUITM'T LTD,1012429052,25-Oct-22,1698.74,283.12,179169,Corporate Accountancy,260000              Human Resources,A,2022,7
838,Community and Housing,REDACTED PERSONAL DATA,888669,12-Oct-22,1193.28,0,179299,Older People Placements - East,DIRECT PAYMENTS,R,2022,7
839,Community and Housing,REDACTED PERSONAL DATA,888543,12-Oct-22,1739.6,0,179332,Phys/Sens Placements - East,DIRECT PAYMENTS,R,2022,7
840,Community and Housing,REDACTED PERSONAL DATA,888309,12-Oct-22,4318.6,0,179383,Learning Disabilities Placemnt,DIRECT PAYMENTS,R,2022,7
841,Community and Housing,ELYSIUM CARE PARTNERSHIPS LTD,894691,26-Oct-22,10202.48,0,179734,Learning Disabilities Placemnt,321017              Nursing & Residential Care Homes,A,2022,7
842,Community and Housing,ELYSIUM CARE PARTNERSHIPS LTD,894819,26-Oct-22,9049.16,0,179734,Learning Disabilities Placemnt,321017              Nursing & Residential Care Homes,A,2022,7
843,Community and Housing,ELYSIUM CARE PARTNERSHIPS LTD,894835,26-Oct-22,3462.2,0,179734,Learning Disabilities Placemnt,321017              Nursing & Residential Care Homes,A,2022,7
844,Community and Housing,ELYSIUM CARE PARTNERSHIPS LTD,894948,26-Oct-22,9821,0,179734,Learning Disabilities Placemnt,321017              Nursing & Residential Care Homes,A,2022,7
845,Community and Housing,WESTHOPE LTD,894788,26-Oct-22,5292.32,0,179748,Learning Disabilities Placemnt,321017              Nursing & Residential Care Homes,A,2022,7
846,Environment and Regeneration,BARKLANDS TREE SPECIALISTS,299,06-Oct-22,50998.2,8499.7,179780,Pks Rec Grds (Unloc),240000              Horticultural,A,2022,7
847,Environment and Regeneration,BARKLANDS TREE SPECIALISTS,304,27-Oct-22,2835,472.5,179780,Pks Rec Grds (Unloc),240000              Horticultural,A,2022,7
848,Community and Housing,BARKLANDS TREE SPECIALISTS,303,27-Oct-22,3120,520,179780,Galpins Road Support,240000              Horticultural,A,2022,7
849,Unassigned,BARKLANDS TREE SPECIALISTS,302,27-Oct-22,540,90,179780,Mitcham Common Conservators,240000              Horticultural,A,2022,7
850,Environment and Regeneration,BARKLANDS TREE SPECIALISTS,306,27-Oct-22,4307.58,717.93,179780,Highways GM Contract,240000              Horticultural,A,2022,7
851,Environment and Regeneration,BARKLANDS TREE SPECIALISTS,308,31-Oct-22,3217.5,536.25,179780,Pks Rec Grds (Unloc),240000              Horticultural,A,2022,7
852,Community and Housing,SUNNINGDALE HOUSE CARE HOME,894942,26-Oct-22,2575,0,179794,Learning Disabilities Placemnt,321017              Nursing & Residential Care Homes,A,2022,7
853,Community and Housing,SUNLIGHT HOUSE,894724,26-Oct-22,7667.6,0,179813,Learning Disabilities Placemnt,321017              Nursing & Residential Care Homes,A,2022,7
854,Community and Housing,SUNLIGHT HOUSE,894841,26-Oct-22,5140,0,179813,Learning Disabilities Placemnt,321017              Nursing & Residential Care Homes,A,2022,7
855,Community and Housing,BHAKTI SHYAMA CARE CENTRE,895007,26-Oct-22,2985.6,0,179993,Older People Placements - East,321017              Nursing & Residential Care Homes,A,2022,7
856,"Children, Schools and Family",REAMCARE LTD,LHRPAM102201,07-Oct-22,19457.1,0,180045,Placements Under 18,321100              Social Community Care Supplies & Services - Children Residential,A,2022,7
857,"Children, Schools and Family",REAMCARE LTD,LHS002920,25-Oct-22,4620,0,180045,Non-Delegated Statements,321100              Social Community Care Supplies & Services - Children Residential,A,2022,7
858,Community and Housing,REDACTED PERSONAL DATA,888658,12-Oct-22,1109.32,0,180174,Older People Placements - East,DIRECT PAYMENTS,R,2022,7
859,Community and Housing,SUNRISE DAY CARE,DP4733,03-Oct-22,1454.08,0,180196,Older People Placements - East,321000              Social Community Care Supplies & Services - Adult,A,2022,7
860,Community and Housing,SUNRISE DAY CARE,DP4735,03-Oct-22,3051.78,0,180196,Phys/Sens Placements - East,321000              Social Community Care Supplies & Services - Adult,A,2022,7
861,Community and Housing,SUNRISE DAY CARE,4299,04-Oct-22,680.32,0,180196,Learning Disabilities Placemnt,321000              Social Community Care Supplies & Services - Adult,A,2022,7
862,Community and Housing,SUNRISE DAY CARE,4298,04-Oct-22,510.24,0,180196,Older People Placements - East,321000              Social Community Care Supplies & Services - Adult,A,2022,7
863,Community and Housing,SUNRISE DAY CARE,4295,04-Oct-22,510.24,0,180196,Older People Placements - East,321000              Social Community Care Supplies & Services - Adult,A,2022,7
864,Community and Housing,SUNRISE DAY CARE,4309,04-Oct-22,510.24,0,180196,Older People Placements - East,321000              Social Community Care Supplies & Services - Adult,A,2022,7
865,Community and Housing,SUNRISE DAY CARE,4308,04-Oct-22,510.24,0,180196,Older People Placements - East,321000              Social Community Care Supplies & Services - Adult,A,2022,7
866,Community and Housing,SUNRISE DAY CARE,4307,04-Oct-22,510.24,0,180196,Older People Placements - East,321000              Social Community Care Supplies & Services - Adult,A,2022,7
867,Community and Housing,SUNRISE DAY CARE,DP4734,10-Oct-22,1986.34,0,180196,Older People Placements - East,321000              Social Community Care Supplies & Services - Adult,A,2022,7
868,Community and Housing,SUNRISE DAY CARE,4336,18-Oct-22,510.24,0,180196,Older People Placements - East,321000              Social Community Care Supplies & Services - Adult,A,2022,7
869,Community and Housing,SUNRISE DAY CARE,4334,18-Oct-22,510.24,0,180196,Older People Placements - East,321000              Social Community Care Supplies & Services - Adult,A,2022,7
870,Community and Housing,SUNRISE DAY CARE,4333,18-Oct-22,510.24,0,180196,Older People Placements - East,321000              Social Community Care Supplies & Services - Adult,A,2022,7
871,Community and Housing,SUNRISE DAY CARE,4332,18-Oct-22,510.24,0,180196,Older People Placements - East,321000              Social Community Care Supplies & Services - Adult,A,2022,7
872,Community and Housing,SUNRISE DAY CARE,4324,18-Oct-22,680.32,0,180196,Learning Disabilities Placemnt,321000              Social Community Care Supplies & Services - Adult,A,2022,7
873,Community and Housing,SUNRISE DAY CARE,4323,18-Oct-22,510.24,0,180196,Older People Placements - East,321000              Social Community Care Supplies & Services - Adult,A,2022,7
874,Community and Housing,SUNRISE DAY CARE,4320,18-Oct-22,510.24,0,180196,Older People Placements - East,321000              Social Community Care Supplies & Services - Adult,A,2022,7
875,Community and Housing,SUNRISE DAY CARE,DP4753,18-Oct-22,3051.78,0,180196,Phys/Sens Placements - East,321000              Social Community Care Supplies & Services - Adult,A,2022,7
876,Community and Housing,SUNRISE DAY CARE,DP4752,18-Oct-22,1986.34,0,180196,Older People Placements - East,321000              Social Community Care Supplies & Services - Adult,A,2022,7
877,Community and Housing,SUNRISE DAY CARE,DP4751,24-Oct-22,1454.08,0,180196,Older People Placements - East,321000              Social Community Care Supplies & Services - Adult,A,2022,7
878,Community and Housing,REDACTED PERSONAL DATA,888584,12-Oct-22,3945.68,0,180232,Older People Placements - East,DIRECT PAYMENTS,R,2022,7
879,Community and Housing,REDACTED PERSONAL DATA,888525,12-Oct-22,509.12,0,180242,Phys/Sens Placements - East,DIRECT PAYMENTS,R,2022,7
880,Community and Housing,REDACTED PERSONAL DATA,888337,12-Oct-22,1392.16,0,180282,Phys/Sens Placements - East,DIRECT PAYMENTS,R,2022,7
881,Community and Housing,REDACTED PERSONAL DATA,888578,12-Oct-22,510.24,0,180285,Older People Placements - East,DIRECT PAYMENTS,R,2022,7
882,Community and Housing,SEVACARE,60319-514140,07-Oct-22,1251,0,180307,Older People Placements - East,321000              Social Community Care Supplies & Services - Adult,A,2022,7
883,Community and Housing,SEVACARE,60319-752403,07-Oct-22,742.26,0,180307,Older People Placements - East,321000              Social Community Care Supplies & Services - Adult,A,2022,7
884,Community and Housing,SEVACARE,60319-791266,07-Oct-22,583.8,0,180307,Older People Placements - East,321000              Social Community Care Supplies & Services - Adult,A,2022,7
885,Community and Housing,SEVACARE,60319-869265,07-Oct-22,717.24,0,180307,Older People Placements - East,321000              Social Community Care Supplies & Services - Adult,A,2022,7
886,Community and Housing,SEVACARE,60319-14419,07-Oct-22,1017.48,0,180307,Older People Placements - East,321000              Social Community Care Supplies & Services - Adult,A,2022,7
887,Community and Housing,SEVACARE,60319-506355,07-Oct-22,867.36,0,180307,Phys/Sens Placements - East,321000              Social Community Care Supplies & Services - Adult,A,2022,7
888,Community and Housing,SEVACARE,60319-569458,07-Oct-22,1367.76,0,180307,Phys/Sens Placements - East,321000              Social Community Care Supplies & Services - Adult,A,2022,7
889,Community and Housing,SEVACARE,60319-41998,07-Oct-22,550.44,0,180307,Phys/Sens Placements - East,321000              Social Community Care Supplies & Services - Adult,A,2022,7
890,Community and Housing,SEVACARE,60319-52108,07-Oct-22,600.48,0,180307,Learning Disabilities Placemnt,321000              Social Community Care Supplies & Services - Adult,A,2022,7
891,Community and Housing,SEVACARE,60319-505367,07-Oct-22,2301.84,0,180307,Older People Placements - East,321000              Social Community Care Supplies & Services - Adult,A,2022,7
892,Community and Housing,SEVACARE,60319-872605,07-Oct-22,617.16,0,180307,Older People Placements - East,321000              Social Community Care Supplies & Services - Adult,A,2022,7
893,Community and Housing,SEVACARE,60319-867847,07-Oct-22,1050.84,0,180307,Older People Placements - East,321000              Social Community Care Supplies & Services - Adult,A,2022,7
894,Community and Housing,SEVACARE,60319-565513,07-Oct-22,2852.28,0,180307,Phys/Sens Placements - East,321000              Social Community Care Supplies & Services - Adult,A,2022,7
895,Community and Housing,SEVACARE,60319-78739,07-Oct-22,667.2,0,180307,Learning Disabilities Placemnt,321000              Social Community Care Supplies & Services - Adult,A,2022,7
896,Community and Housing,SEVACARE,60319-74975,07-Oct-22,1718.04,0,180307,Older People Placements - East,321000              Social Community Care Supplies & Services - Adult,A,2022,7
897,Community and Housing,SEVACARE,60319-38267,07-Oct-22,1017.48,0,180307,Older People Placements - East,321000              Social Community Care Supplies & Services - Adult,A,2022,7
898,Community and Housing,SEVACARE,60319-68278,07-Oct-22,2835.6,0,180307,Learning Disabilities Placemnt,321000              Social Community Care Supplies & Services - Adult,A,2022,7
899,Community and Housing,SEVACARE,60319-72268,07-Oct-22,1301.04,0,180307,Learning Disabilities Placemnt,321000              Social Community Care Supplies & Services - Adult,A,2022,7
900,Community and Housing,SEVACARE,60319-732707,07-Oct-22,884.04,0,180307,Older People Placements - East,321000              Social Community Care Supplies & Services - Adult,A,2022,7
901,Community and Housing,SEVACARE,60319-654036,07-Oct-22,600.48,0,180307,Older People Placements - East,321000              Social Community Care Supplies & Services - Adult,A,2022,7
902,Community and Housing,SEVACARE,60319-871695,07-Oct-22,950.76,0,180307,Older People Placements - East,321000              Social Community Care Supplies & Services - Adult,A,2022,7
903,Community and Housing,SEVACARE,60319-503697,07-Oct-22,834,0,180307,Older People Placements - East,321000              Social Community Care Supplies & Services - Adult,A,2022,7
904,Community and Housing,SEVACARE,60319-533922,07-Oct-22,9340.8,0,180307,Older People Placements - East,321000              Social Community Care Supplies & Services - Adult,A,2022,7
905,Community and Housing,SEVACARE,02.10.22/20,11-Oct-22,1966.15,0,180307,Older People Placements - East,321000              Social Community Care Supplies & Services - Adult,A,2022,7
906,Community and Housing,SEVACARE,02.10.22/24,11-Oct-22,784.66,0,180307,Older People Placements - East,321000              Social Community Care Supplies & Services - Adult,A,2022,7
907,Community and Housing,SEVACARE,02.10.22/15,11-Oct-22,504.32,0,180307,Phys/Sens Placements - East,321000              Social Community Care Supplies & Services - Adult,A,2022,7
908,Community and Housing,SEVACARE,02.10.22/12,11-Oct-22,1152.54,0,180307,Older People Placements - East,321000              Social Community Care Supplies & Services - Adult,A,2022,7
909,Community and Housing,SEVACARE,02.10.22/9,11-Oct-22,691.75,0,180307,Older People Placements - East,321000              Social Community Care Supplies & Services - Adult,A,2022,7
910,Community and Housing,SEVACARE,02.10.22/13,11-Oct-22,758.52,0,180307,Older People Placements - East,321000              Social Community Care Supplies & Services - Adult,A,2022,7
911,"Children, Schools and Family",NETWORK SOLUTIONS INC,LBM231,11-Oct-22,2994,499,180382, Children's Centres Support,270000              Information Communication Technology,A,2022,7
912,Corporate Services,NETWORK SOLUTIONS INC,LBM232,31-Oct-22,660,110,180382,Chief Executive,270000              Information Communication Technology,A,2022,7
913,"Children, Schools and Family",RESTORE PLC,1293222,18-Oct-22,748.27,124.71,180441,Head of CSC & Youth Inclusion,190000              Facilities & Management Services,A,2022,7
914,"Children, Schools and Family",RESTORE PLC,1296812,18-Oct-22,533.5,88.92,180441,Fostering Recruit/Assessment,190000              Facilities & Management Services,A,2022,7
915,Corporate Services,RESTORE PLC,1296814,18-Oct-22,651.48,108.58,180441,Legal Shared Service,190000              Facilities & Management Services,A,2022,7
916,Community and Housing,REDACTED PERSONAL DATA,888637,12-Oct-22,1320.52,0,180447,Older People Placements - East,DIRECT PAYMENTS,R,2022,7
917,Community and Housing,REDACTED PERSONAL DATA,888654,12-Oct-22,500.96,0,180478,Phys/Sens Placements - East,DIRECT PAYMENTS,R,2022,7
918,"Children, Schools and Family",REDACTED PERSONAL DATA,887970,07-Oct-22,514.75,0,180579,UASC LAC Under 18,321100              Social Community Care Supplies & Services - Children,R,2022,7
919,"Children, Schools and Family",REDACTED PERSONAL DATA,888024,07-Oct-22,514.75,0,180579,UASC LAC Under 18,321100              Social Community Care Supplies & Services - Children,R,2022,7
920,"Children, Schools and Family",REDACTED PERSONAL DATA,891212,14-Oct-22,514.75,0,180579,UASC LAC Under 18,321100              Social Community Care Supplies & Services - Children,R,2022,7
921,"Children, Schools and Family",REDACTED PERSONAL DATA,891264,14-Oct-22,514.75,0,180579,UASC LAC Under 18,321100              Social Community Care Supplies & Services - Children,R,2022,7
922,"Children, Schools and Family",REDACTED PERSONAL DATA,893385,21-Oct-22,514.75,0,180579,UASC LAC Under 18,321100              Social Community Care Supplies & Services - Children,R,2022,7
923,"Children, Schools and Family",REDACTED PERSONAL DATA,893437,21-Oct-22,514.75,0,180579,UASC LAC Under 18,321100              Social Community Care Supplies & Services - Children,R,2022,7
924,"Children, Schools and Family",REDACTED PERSONAL DATA,895417,28-Oct-22,514.75,0,180579,UASC LAC Under 18,321100              Social Community Care Supplies & Services - Children,R,2022,7
925,"Children, Schools and Family",REDACTED PERSONAL DATA,895474,28-Oct-22,514.75,0,180579,UASC LAC Under 18,321100              Social Community Care Supplies & Services - Children,R,2022,7
926,Environment and Regeneration,HMCTS,TECBATCHESOCT22,20-Oct-22,25000,0,180649,Operational Running Costs,350000              Street & Traffic Management,A,2022,7
927,"Children, Schools and Family",BRIGHTER FUTURES FOSTER CARE,401043,11-Oct-22,542.85,0,180716,Placements Under 18,321100              Social Community Care Supplies & Services - Children,A,2022,7
928,Community and Housing,REDACTED PERSONAL DATA,888550,12-Oct-22,763.68,0,180804,Learning Disabilities Placemnt,DIRECT PAYMENTS,R,2022,7
929,"Children, Schools and Family",FIVE RIVERS CHILD CARE,98338,24-Oct-22,6214.29,0,180823,Placements Under 18,360000              Passenger Transport                                                                       Confirmed,A,2022,7
930,Community and Housing,REDACTED PERSONAL DATA,891434,18-Oct-22,749.28,0,180839,LD Housing Support Placements,321000              Social Community Care Supplies & Services - Adult,R,2022,7
931,Community and Housing,REDACTED PERSONAL DATA,888450,12-Oct-22,576.72,0,180866,Phys/Sens Placements - East,DIRECT PAYMENTS,R,2022,7
932,Community and Housing,REDACTED PERSONAL DATA,888464,12-Oct-22,1336.44,0,180866,Phys/Sens Placements - East,DIRECT PAYMENTS,R,2022,7
933,Community and Housing,REDACTED PERSONAL DATA,888422,12-Oct-22,2156,0,180889,Older People Placements - East,DIRECT PAYMENTS,R,2022,7
934,Community and Housing,SENAD ECCLESBOURNE LODGE,894629,26-Oct-22,9810.88,0,180904,Learning Disabilities Placemnt,321017              Nursing & Residential Care Homes,A,2022,7
935,Community and Housing,REDACTED PERSONAL DATA,888405,12-Oct-22,890.96,0,180999,Older People Placements - East,DIRECT PAYMENTS,R,2022,7
936,Community and Housing,REDACTED PERSONAL DATA,888527,12-Oct-22,3238.48,0,181128,Older People Placements - East,DIRECT PAYMENTS,R,2022,7
937,Community and Housing,REDACTED PERSONAL DATA,888518,12-Oct-22,2227.4,0,181129,Older People Placements - East,DIRECT PAYMENTS,R,2022,7
938,Community and Housing,Community Equipment Services,9100000645,18-Oct-22,630,105,181238,Pooled Equipment,410000              Social Community Care Supplies & Services,A,2022,7
939,Community and Housing,REDACTED PERSONAL DATA,888577,12-Oct-22,1400.08,0,181418,Phys/Sens Placements - East,DIRECT PAYMENTS,R,2022,7
940,"Children, Schools and Family",KIKI'S CHILDREN'S CLINIC,15455,20-Oct-22,620,0,181849,Non-Delegated Statements,310000              Healthcare                                                                                Confirmed,A,2022,7
941,Environment and Regeneration,METIS CONSULTANTS LIMITED,3803,24-Oct-22,3360,560,181960,TRAF & HWYS CAPITAL PROJECTS,150000              Consultancy,A,2022,7
942,Community and Housing,REDACTED PERSONAL DATA,888370,12-Oct-22,549.52,0,182083,Learning Disabilities Placemnt,DIRECT PAYMENTS,R,2022,7
943,Unassigned,SHARPE PRITCHARD SOLICITORS,132539,20-Oct-22,1775.9,0,182165,Corporate Accountancy,280000              Legal Services                                                                            Confirmed,A,2022,7
944,Corporate Services,SHARPE PRITCHARD SOLICITORS,132842,27-Oct-22,1728,288,182165,SLLP - Disbursements,280000              Legal Services                                                                            Confirmed,A,2022,7
945,Corporate Services,REDACTED PERSONAL DATA,1196/JN,27-Oct-22,1050,175,182247,SLLP - Disbursements,280000              Legal Services                                                                            Confirmed,R,2022,7
946,Community and Housing,REDACTED PERSONAL DATA,888410,12-Oct-22,954.6,0,182317,Phys/Sens Placements - East,DIRECT PAYMENTS,R,2022,7
947,Community and Housing,REDACTED PERSONAL DATA,888414,12-Oct-22,4454.8,0,182348,Older People Placements - East,DIRECT PAYMENTS,R,2022,7
948,Capital,WEIR BUILDING SERVICES,1295,11-Oct-22,8692,0,182364,Disabled Facilities Grant,200000              Financial Services,A,2022,7
949,Environment and Regeneration,BIRKIN CLEANING SERVICES LTD,25748,12-Oct-22,632.6,105.43,182414,Durnsford industrial estate,130000              Cleaning & Janitorial,A,2022,7
950,Corporate Services,BIRKIN CLEANING SERVICES LTD,25746,04-Oct-22,1312.31,218.72,182414,Corporate Contracts - FM,130000              Cleaning & Janitorial,A,2022,7
951,Community and Housing,BIRKIN CLEANING SERVICES LTD,25755,12-Oct-22,558.96,93.16,182414,West Barnes Lib,130000              Cleaning & Janitorial,A,2022,7
952,Community and Housing,BIRKIN CLEANING SERVICES LTD,25754,12-Oct-22,950.88,158.48,182414,Raynes Park Library,130000              Cleaning & Janitorial,A,2022,7
953,Community and Housing,BIRKIN CLEANING SERVICES LTD,25751,12-Oct-22,966.26,161.04,182414,Wimbledon Library,130000              Cleaning & Janitorial,A,2022,7
954,Community and Housing,BIRKIN CLEANING SERVICES LTD,25752,12-Oct-22,1585.7,264.28,182414,Mitcham Library,130000              Cleaning & Janitorial,A,2022,7
955,Community and Housing,BIRKIN CLEANING SERVICES LTD,25744,12-Oct-22,1629.23,271.54,182414,Morden Library,130000              Cleaning & Janitorial,A,2022,7
956,Environment and Regeneration,BIRKIN CLEANING SERVICES LTD,25747,12-Oct-22,2894.94,482.49,182414,Vestry Hall,130000              Cleaning & Janitorial,A,2022,7
957,Corporate Services,BIRKIN CLEANING SERVICES LTD,25745,04-Oct-22,2213.82,368.97,182414,Corporate Contracts - FM,130000              Cleaning & Janitorial,A,2022,7
958,Corporate Services,BIRKIN CLEANING SERVICES LTD,25749,04-Oct-22,7869.83,1311.64,182414,Corporate Contracts - FM,130000              Cleaning & Janitorial,A,2022,7
959,Corporate Services,BIRKIN CLEANING SERVICES LTD,25743,03-Oct-22,24732.96,4122.16,182414,Corporate Contracts - FM,130000              Cleaning & Janitorial,A,2022,7
960,Community and Housing,BIRKIN CLEANING SERVICES LTD,25750,12-Oct-22,3193.69,532.28,182414,Wimbledon Library,130000              Cleaning & Janitorial,A,2022,7
961,Community and Housing,BIRKIN CLEANING SERVICES LTD,25753,12-Oct-22,1920.73,320.12,182414,Pollards Hill Library,130000              Cleaning & Janitorial,A,2022,7
962,"Children, Schools and Family",BIRKIN CLEANING SERVICES LTD,25819,20-Oct-22,2233.45,372.24,182414,Steers Mead BuildingManagement,130000              Cleaning & Janitorial,A,2022,7
963,Community and Housing,BIRKIN CLEANING SERVICES LTD,26943,24-Oct-22,1629.23,271.54,182414,Morden Library,130000              Cleaning & Janitorial,A,2022,7
964,Corporate Services,BIRKIN CLEANING SERVICES LTD,26942,24-Oct-22,24732.96,4122.16,182414,Corporate Contracts - FM,130000              Cleaning & Janitorial,A,2022,7
965,Corporate Services,BIRKIN CLEANING SERVICES LTD,26743,21-Oct-22,614.52,102.42,182414,Corporate Contracts - FM,130000              Cleaning & Janitorial,A,2022,7
966,Corporate Services,BIRKIN CLEANING SERVICES LTD,26744,21-Oct-22,1106.4,184.4,182414,Corporate Contracts - FM,130000              Cleaning & Janitorial,A,2022,7
967,Community and Housing,VENTURE HOUSING(LONDON)LTD,VHG/A423522,17-Oct-22,23271,0,182482,Bed & Breakfast - accomm,321000              Social Community Care Supplies & Services - Adult,A,2022,7
968,"Children, Schools and Family",REDACTED PERSONAL DATA,888812,10-Oct-22,829.8,0,182494,Child Disabilities - Placement,DIRECT PAYMENTS,R,2022,7
969,"Children, Schools and Family",REDACTED PERSONAL DATA,888000,07-Oct-22,584,0,182558,UASC LAC Under 18,321100              Social Community Care Supplies & Services - Children,R,2022,7
970,"Children, Schools and Family",REDACTED PERSONAL DATA,888035,07-Oct-22,584,0,182558,Placements Under 18,321100              Social Community Care Supplies & Services - Children,R,2022,7
971,"Children, Schools and Family",REDACTED PERSONAL DATA,895446,28-Oct-22,1278.3,0,182558,UASC Care Leavers Over 18,321100              Social Community Care Supplies & Services - Children,R,2022,7
972,Community and Housing,REDACTED PERSONAL DATA,888484,12-Oct-22,1877.4,0,182584,Phys/Sens Placements - East,DIRECT PAYMENTS,R,2022,7
973,"Children, Schools and Family",REDACTED PERSONAL DATA,895427,28-Oct-22,940.8,0,182648,UASC LAC Under 18,321100              Social Community Care Supplies & Services - Children,R,2022,7
974,Community and Housing,REDACTED PERSONAL DATA,888694,12-Oct-22,5223.56,0,182894,Learning Disabilities Placemnt,DIRECT PAYMENTS,R,2022,7
975,Corporate Services,PELLINGS LLP,SI9032364,24-Oct-22,1200,200,182945,SLLP - Disbursements,280000              Legal Services                                                                            Confirmed,A,2022,7
976,Community and Housing,REDACTED PERSONAL DATA,888416,12-Oct-22,4103.12,0,183167,Older People Placements - East,DIRECT PAYMENTS,R,2022,7
977,Community and Housing,ST ANTONYS CARE HOME,891080,13-Oct-22,1850,0,183206,Older People Placements - East,321017              Nursing & Residential Care Homes,A,2022,7
978,Community and Housing,ST ANTONYS CARE HOME,894723,26-Oct-22,2838.12,0,183206,Older People Placements - East,321017              Nursing & Residential Care Homes,A,2022,7
979,Community and Housing,ST ANTONYS CARE HOME,894736,26-Oct-22,2838.12,0,183206,Older People Placements - East,321017              Nursing & Residential Care Homes,A,2022,7
980,Community and Housing,ST ANTONYS CARE HOME,894741,26-Oct-22,3600,0,183206,Older People Placements - East,321017              Nursing & Residential Care Homes,A,2022,7
981,Community and Housing,ST ANTONYS CARE HOME,894746,26-Oct-22,1850,0,183206,Older People Placements - East,321017              Nursing & Residential Care Homes,A,2022,7
982,Community and Housing,ST ANTONYS CARE HOME,894818,26-Oct-22,714.29,0,183206,Older People Placements - East,321017              Nursing & Residential Care Homes,A,2022,7
983,Community and Housing,ST ANTONYS CARE HOME,894950,26-Oct-22,3071.12,0,183206,Older People Placements - East,321017              Nursing & Residential Care Homes,A,2022,7
984,Community and Housing,ST ANTONYS CARE HOME,895001,26-Oct-22,2617.84,0,183206,Older People Placements - East,321017              Nursing & Residential Care Homes,A,2022,7
985,Unassigned,HARRIS ACADEMY MORDEN,SCHOOLS 2223/7 A,06-Oct-22,51509.12,0,183257,Schools,170000              Education,A,2022,7
986,"Children, Schools and Family",CRESSEY OASIS EDUCATION LTD,1866,05-Oct-22,28615.38,0,183299,Non-Delegated Statements,170000              Education,A,2022,7
987,Community and Housing,BARKERS CHEMIST,DQCB/00000063,21-Oct-22,639.87,5.62,183398,PH - Sexual Health,310000              Healthcare,A,2022,7
988,Community and Housing,REDACTED PERSONAL DATA,888404,12-Oct-22,1170.44,0,183460,Learning Disabilities Placemnt,DIRECT PAYMENTS,R,2022,7
989,Community and Housing,REDACTED PERSONAL DATA,888329,12-Oct-22,795.52,0,183464,Phys/Sens Placements - East,DIRECT PAYMENTS,R,2022,7
990,Community and Housing,CREST MANOR LTD,CM0780,25-Oct-22,7807.5,0,183548,Bed & Breakfast - accomm,250000              Housing Management,A,2022,7
991,"Children, Schools and Family",REDACTED PERSONAL DATA,889020,10-Oct-22,3847.5,0,183558,Child Disabilities - Placement,CSF-DIRECT PAYMENTS,R,2022,7
992,Community and Housing,Kent House Care Home,894890,26-Oct-22,2884,0,183560,Older People Placements - East,321017              Nursing & Residential Care Homes,A,2022,7
993,Community and Housing,REDACTED PERSONAL DATA,2175,20-Oct-22,2100,0,183599,Adult Safeguarding,321000              Social Community Care Supplies & Services - Adult                                         Confirmed,R,2022,7
994,Community and Housing,DICKSONS ESTATE AGENTS,RNWL  57 DALTON,31-Oct-22,2000,0,183623,Homelessness Prevention,200000              Financial Services,A,2022,7
995,Community and Housing,DICKSONS ESTATE AGENTS,RNWL29COLLEGE,31-Oct-22,2000,0,183623,Homelessness Prevention,200000              Financial Services,A,2022,7
996,Community and Housing,RENTOKIL INITIAL UK LTD,34466463,21-Oct-22,1983.96,330.66,183672,All Saints Day Centre,130000              Cleaning & Janitorial,A,2022,7
997,Community and Housing,REDACTED PERSONAL DATA,888593,12-Oct-22,540.92,0,183690,Older People Placements - East,DIRECT PAYMENTS,R,2022,7
998,Community and Housing,REDACTED PERSONAL DATA,888698,12-Oct-22,679.2,0,184011,Older People Placements - East,DIRECT PAYMENTS,R,2022,7
999,Corporate Services,LEXTOX,266328,21-Oct-22,618,103,184053,SLLP - Disbursements,280000              Legal Services,A,2022,7
1000,Community and Housing,REDACTED PERSONAL DATA,888520,12-Oct-22,2530.08,0,184175,Older People Placements - East,DIRECT PAYMENTS,R,2022,7
1001,Community and Housing,CROWNWISE LTD,SH/167/091,13-Oct-22,1950,0,184360,Mental Health Placements,321000              Social Community Care Supplies & Services - Adult,A,2022,7
1002,Community and Housing,CROWNWISE LTD,MP/167/105,13-Oct-22,1160,0,184360,Mental Health Placements,321000              Social Community Care Supplies & Services - Adult,A,2022,7
1003,Community and Housing,MARIAN HOUSE NURSING HOME,894671,26-Oct-22,2834.56,0,184385,Older People Placements - East,321017              Nursing & Residential Care Homes,A,2022,7
1004,"Children, Schools and Family",REDACTED PERSONAL DATA,888089,07-Oct-22,549.61,0,184386,Placements Under 18,321100              Social Community Care Supplies & Services - Children,R,2022,7
1005,"Children, Schools and Family",REDACTED PERSONAL DATA,891332,14-Oct-22,549.61,0,184386,Placements Under 18,321100              Social Community Care Supplies & Services - Children,R,2022,7
1006,"Children, Schools and Family",REDACTED PERSONAL DATA,893508,21-Oct-22,549.61,0,184386,Placements Under 18,321100              Social Community Care Supplies & Services - Children,R,2022,7
1007,"Children, Schools and Family",REDACTED PERSONAL DATA,895540,28-Oct-22,549.61,0,184386,Placements Under 18,321100              Social Community Care Supplies & Services - Children,R,2022,7
1008,Community and Housing,REDACTED PERSONAL DATA,888548,12-Oct-22,4109.84,0,184580,Older People Placements - East,DIRECT PAYMENTS,R,2022,7
1009,Unassigned,PENSION TOP-UP FUND (LBM),CAPITALCOST,10-Oct-22,1452.04,0,184583,Super Fund - New Pension Regs,PENSIONS,A,2022,7
1010,Community and Housing,REDACTED PERSONAL DATA,888470,12-Oct-22,802.6,0,184608,Older People Placements - East,DIRECT PAYMENTS,R,2022,7
1011,Corporate Services,SEARCHFLOW LTD,INV9257733,24-Oct-22,834.42,135.57,184757,SLLP - Disbursements,190000              Facilities & Management Services,A,2022,7
1012,Community and Housing,SK HOUSING LTD,6276,17-Oct-22,19422,3237,184774,Bed & Breakfast - accomm,321000              Social Community Care Supplies & Services - Adult,A,2022,7
1013,Community and Housing,CROHAM PLACE,894622,26-Oct-22,9007.52,0,184807,Learning Disabilities Placemnt,321017              Nursing & Residential Care Homes,A,2022,7
1014,Community and Housing,REDACTED PERSONAL DATA,888381,12-Oct-22,898.32,0,184819,Older People Placements - East,DIRECT PAYMENTS,R,2022,7
1015,"Children, Schools and Family",HIGHER LEVEL CARE (HLC) LTD,14245,10-Oct-22,3717.75,0,184822,Placements Under 18,321100              Social Community Care Supplies & Services - Children Residential,A,2022,7
1016,"Children, Schools and Family",HIGHER LEVEL CARE (HLC) LTD,14245A,10-Oct-22,3717.75,0,184822,Placements Under 18,321100              Social Community Care Supplies & Services - Children Residential,A,2022,7
1017,"Children, Schools and Family",HIGHER LEVEL CARE (HLC) LTD,14256,10-Oct-22,1928.7,0,184822,UASC Care Leavers Over 18,321100              Social Community Care Supplies & Services - Children Residential,A,2022,7
1018,"Children, Schools and Family",HIGHER LEVEL CARE (HLC) LTD,14253,10-Oct-22,2357.1,0,184822,UASC Care Leavers Over 18,321100              Social Community Care Supplies & Services - Children Residential,A,2022,7
1019,"Children, Schools and Family",HIGHER LEVEL CARE (HLC) LTD,14255,10-Oct-22,3642.6,0,184822,UASC Care Leavers Over 18,321100              Social Community Care Supplies & Services - Children Residential,A,2022,7
1020,Community and Housing,QUARTZ PROPERTIES,LBMGIPN3,03-Oct-22,4500,0,184919,Galpins Road Support,321000              Social Community Care Supplies & Services - Adult,A,2022,7
1021,Community and Housing,QUARTZ PROPERTIES,LBM108,17-Oct-22,11162,0,184919,Bed & Breakfast - accomm,321000              Social Community Care Supplies & Services - Adult,A,2022,7
1022,Community and Housing,REDACTED PERSONAL DATA,888417,12-Oct-22,572.76,0,184950,Phys/Sens Placements - East,DIRECT PAYMENTS,R,2022,7
1023,Community and Housing,LONDON CARE LTD,016-5189684,07-Oct-22,4454.8,0,185026,Older People Placements - East,321000              Social Community Care Supplies & Services - Adult,A,2022,7
1024,Community and Housing,LONDON CARE LTD,0101/38,11-Oct-22,995.64,0,185026,Older People Placements - East,321000              Social Community Care Supplies & Services - Adult,A,2022,7
1025,Community and Housing,LONDON CARE LTD,0101/6,11-Oct-22,1211.46,0,185026,Older People Placements - East,321000              Social Community Care Supplies & Services - Adult,A,2022,7
1026,Community and Housing,LONDON CARE LTD,0101/18,11-Oct-22,2213.55,0,185026,Older People Placements - East,321000              Social Community Care Supplies & Services - Adult,A,2022,7
1027,Community and Housing,LONDON CARE LTD,0101/17,11-Oct-22,627.31,0,185026,Older People Placements - East,321000              Social Community Care Supplies & Services - Adult,A,2022,7
1028,Community and Housing,LONDON CARE LTD,0101/40,11-Oct-22,1857.19,0,185026,Older People Placements - East,321000              Social Community Care Supplies & Services - Adult,A,2022,7
1029,Community and Housing,LONDON CARE LTD,0101/23,11-Oct-22,772.43,0,185026,Older People Placements - East,321000              Social Community Care Supplies & Services - Adult,A,2022,7
1030,Community and Housing,LONDON CARE LTD,0101/39,11-Oct-22,1057.49,0,185026,Older People Placements - East,321000              Social Community Care Supplies & Services - Adult,A,2022,7
1031,Community and Housing,LONDON CARE LTD,0101/22,11-Oct-22,728.23,0,185026,Older People Placements - East,321000              Social Community Care Supplies & Services - Adult,A,2022,7
1032,Community and Housing,LONDON CARE LTD,0101/33,11-Oct-22,652.95,0,185026,Older People Placements - East,321000              Social Community Care Supplies & Services - Adult,A,2022,7
1033,Community and Housing,LONDON CARE LTD,0101/44,11-Oct-22,543.25,0,185026,Older People Placements - East,321000              Social Community Care Supplies & Services - Adult,A,2022,7
1034,Community and Housing,LONDON CARE LTD,0101/42,11-Oct-22,621.87,0,185026,Older People Placements - East,321000              Social Community Care Supplies & Services - Adult,A,2022,7
1035,Community and Housing,LONDON CARE LTD,0101/1,11-Oct-22,921.81,0,185026,Older People Placements - East,321000              Social Community Care Supplies & Services - Adult,A,2022,7
1036,Community and Housing,LONDON CARE LTD,0101/30,11-Oct-22,1221.17,0,185026,Older People Placements - East,321000              Social Community Care Supplies & Services - Adult,A,2022,7
1037,Community and Housing,LONDON CARE LTD,0101/4,11-Oct-22,1378.24,0,185026,Older People Placements - East,321000              Social Community Care Supplies & Services - Adult,A,2022,7
1038,Community and Housing,LONDON CARE LTD,0101/49,11-Oct-22,2205.32,0,185026,Older People Placements - East,321000              Social Community Care Supplies & Services - Adult,A,2022,7
1039,Community and Housing,LONDON CARE LTD,0101/31,11-Oct-22,630.85,0,185026,Older People Placements - East,321000              Social Community Care Supplies & Services - Adult,A,2022,7
1040,Community and Housing,LONDON CARE LTD,0101/20,11-Oct-22,531.36,0,185026,Phys/Sens Placements - East,321000              Social Community Care Supplies & Services - Adult,A,2022,7
1041,Community and Housing,LONDON CARE LTD,0101/43,11-Oct-22,1126.48,0,185026,Older People Placements - East,321000              Social Community Care Supplies & Services - Adult,A,2022,7
1042,Community and Housing,LONDON CARE LTD,0101/34,11-Oct-22,1061.72,0,185026,Older People Placements - East,321000              Social Community Care Supplies & Services - Adult,A,2022,7
1043,Community and Housing,REDACTED PERSONAL DATA,888338,12-Oct-22,1877.4,0,185066,Older People Placements - East,DIRECT PAYMENTS,R,2022,7
1044,Community and Housing,CHELSEA AND WESTMINSTER HOSPITAL,N0050770,11-Oct-22,1237.26,0,185106,PH - Sexual Health,310000              Healthcare,A,2022,7
1045,Community and Housing,CHELSEA AND WESTMINSTER HOSPITAL,N0050455,28-Oct-22,17383.05,0,185106,PH - Sexual Health,310000              Healthcare,A,2022,7
1046,Community and Housing,CHELSEA AND WESTMINSTER HOSPITAL,N0051011,28-Oct-22,17383.05,0,185106,PH - Sexual Health,310000              Healthcare,A,2022,7
1047,"Children, Schools and Family",REDACTED PERSONAL DATA,3,28-Oct-22,1115.88,0,185145,Placements Over 18,321100              Social Community Care Supplies & Services - Children,R,2022,7
1048,"Children, Schools and Family",REDACTED PERSONAL DATA,4,28-Oct-22,1115.88,0,185145,Placements Over 18,321100              Social Community Care Supplies & Services - Children,R,2022,7
1049,Community and Housing,REDACTED PERSONAL DATA,888375,12-Oct-22,1220.76,0,185250,Older People Placements - East,DIRECT PAYMENTS,R,2022,7
1050,"Children, Schools and Family",ORCHARD HILL COLLEGE,DI2020100166,03-Oct-22,12960.91,0,185253,Non-Maintained Post 16 SEN,170000              Education,A,2022,7
1051,"Children, Schools and Family",ORCHARD HILL COLLEGE,DI2020100165,03-Oct-22,17716.06,0,185253,Non-Maintained Post 16 SEN,170000              Education,A,2022,7
1052,"Children, Schools and Family",ORCHARD HILL COLLEGE,DI2020100154,03-Oct-22,12172.11,0,185253,Non-Maintained Post 16 SEN,170000              Education,A,2022,7
1053,"Children, Schools and Family",ORCHARD HILL COLLEGE,DI2020100162,03-Oct-22,17708.05,0,185253,Non-Maintained Post 16 SEN,170000              Education,A,2022,7
1054,"Children, Schools and Family",ORCHARD HILL COLLEGE,DI2020100168,03-Oct-22,17182.72,0,185253,Non-Maintained Post 16 SEN,170000              Education,A,2022,7
1055,"Children, Schools and Family",ORCHARD HILL COLLEGE,DI202A100153,03-Oct-22,12247.04,0,185253,Non-Maintained Post 16 SEN,170000              Education,A,2022,7
1056,"Children, Schools and Family",ORCHARD HILL COLLEGE,DI2020100164,03-Oct-22,14180.76,0,185253,Non-Maintained Post 16 SEN,170000              Education,A,2022,7
1057,"Children, Schools and Family",ORCHARD HILL COLLEGE,DI2020100163,03-Oct-22,12943.18,0,185253,Non-Maintained Post 16 SEN,170000              Education,A,2022,7
1058,"Children, Schools and Family",ORCHARD HILL COLLEGE,DI2020100167,03-Oct-22,11810.89,0,185253,Non-Maintained Post 16 SEN,170000              Education,A,2022,7
1059,"Children, Schools and Family",ORCHARD HILL COLLEGE,DI2020100158,03-Oct-22,12787.41,0,185253,Non-Maintained Post 16 SEN,170000              Education,A,2022,7
1060,"Children, Schools and Family",ORCHARD HILL COLLEGE,DI2020100157,05-Oct-22,12737.72,0,185253,Non-Maintained Post 16 SEN,170000              Education,A,2022,7
1061,"Children, Schools and Family",ORCHARD HILL COLLEGE,DI2020100159,05-Oct-22,11833.67,0,185253,Non-Maintained Post 16 SEN,170000              Education,A,2022,7
1062,"Children, Schools and Family",ORCHARD HILL COLLEGE,DI2020100155,05-Oct-22,17095.76,0,185253,Non-Maintained Post 16 SEN,170000              Education,A,2022,7
1063,"Children, Schools and Family",ORCHARD HILL COLLEGE,DI2020100161,05-Oct-22,14209.56,0,185253,Non-Maintained Post 16 SEN,170000              Education,A,2022,7
1064,"Children, Schools and Family",ORCHARD HILL COLLEGE,DI2030100152,05-Oct-22,12714.9,0,185253,Non-Maintained Post 16 SEN,170000              Education,A,2022,7
1065,"Children, Schools and Family",ORCHARD HILL COLLEGE,DI2020100156,05-Oct-22,12039.17,0,185253,Non-Maintained Post 16 SEN,170000              Education,A,2022,7
1066,"Children, Schools and Family",ORCHARD HILL COLLEGE,DI2030100151,05-Oct-22,13936.63,0,185253,Non-Maintained Post 16 SEN,170000              Education,A,2022,7
1067,"Children, Schools and Family",ORCHARD HILL COLLEGE,DI2020100160,05-Oct-22,16088.02,0,185253,Non-Maintained Post 16 SEN,170000              Education,A,2022,7
1068,"Children, Schools and Family",ORCHARD HILL COLLEGE,DI202B100287,06-Oct-22,4400,0,185253,Non-Maintained Post 16 SEN,170000              Education,A,2022,7
1069,"Children, Schools and Family",ORCHARD HILL COLLEGE,DI202B100286,06-Oct-22,4400,0,185253,Non-Maintained Post 16 SEN,170000              Education,A,2022,7
1070,"Children, Schools and Family",ORCHARD HILL COLLEGE,DI2030100301,11-Oct-22,4400,0,185253,Non-Maintained Post 16 SEN,170000              Education,A,2022,7
1071,Community and Housing,ROOMS AND  STUDIOS MANAGEMENT,1232,25-Oct-22,5652,942,185280,Bed & Breakfast - accomm,321000              Social Community Care Supplies & Services - Adult,A,2022,7
1072,Community and Housing,ROOMS AND  STUDIOS MANAGEMENT,1230,21-Oct-22,127920,21320,185280,Bed & Breakfast - accomm,321000              Social Community Care Supplies & Services - Adult,A,2022,7
1073,Community and Housing,REDACTED PERSONAL DATA,888314,12-Oct-22,1369.4,0,185353,Mental Health Placements,DIRECT PAYMENTS,R,2022,7
1074,Corporate Services,INFORM CPI LTD,AL64762,03-Oct-22,9540,1590,185356,Local Taxation Services,270000              Information Communication Technology,A,2022,7
1075,Corporate Services,REDACTED PERSONAL DATA,914092911,06-Oct-22,810,135,185360,SLLP - Disbursements,280000              Legal Services                                                                            Confirmed,R,2022,7
1076,Corporate Services,REDACTED PERSONAL DATA,INV/JDO40,20-Oct-22,540,90,185360,SLLP - Disbursements,280000              Legal Services                                                                            Confirmed,R,2022,7
1077,Corporate Services,REDACTED PERSONAL DATA,INV/JDO41,20-Oct-22,2700,450,185360,SLLP - Disbursements,280000              Legal Services                                                                            Confirmed,R,2022,7
1078,Community and Housing,WISDOM SUPPORT SERVICES LTD,12301,13-Oct-22,4150.17,0,185366,Learning Disabilities Placemnt,321000              Social Community Care Supplies & Services - Adult,A,2022,7
1079,Community and Housing,WISDOM SUPPORT SERVICES LTD,12302,13-Oct-22,1211.52,0,185366,Learning Disabilities Placemnt,321000              Social Community Care Supplies & Services - Adult,A,2022,7
1080,Community and Housing,WISDOM SUPPORT SERVICES LTD,12303,13-Oct-22,2085.3,0,185366,Older People Placements - East,321000              Social Community Care Supplies & Services - Adult,A,2022,7
1081,Community and Housing,WATERBURY HOUSE,894732,26-Oct-22,9991.08,0,185414,Learning Disabilities Placemnt,321017              Nursing & Residential Care Homes,A,2022,7
1082,Community and Housing,THORNBECK COLLEGE,894725,26-Oct-22,10320.52,0,185470,Learning Disabilities Placemnt,321100              Social Community Care Supplies & Services - Children,A,2022,7
1083,Community and Housing,REDACTED PERSONAL DATA,888440,12-Oct-22,1055.96,0,185557,Learning Disabilities Placemnt,DIRECT PAYMENTS,R,2022,7
1084,Corporate Services,REDACTED PERSONAL DATA,1633,20-Oct-22,1440,240,185649,SLLP - Disbursements,280000              Legal Services,R,2022,7
1085,Community and Housing,REDACTED PERSONAL DATA,888524,12-Oct-22,969,0,185653,Older People Placements - East,DIRECT PAYMENTS,R,2022,7
1086,Community and Housing,REDACTED PERSONAL DATA,888492,12-Oct-22,714.4,0,185709,Learning Disabilities Placemnt,DIRECT PAYMENTS,R,2022,7
1087,Unassigned,BENEDICT PRIMARY ACADEMY,SCHOOLS 2223/7 A,06-Oct-22,15623.89,0,185720,Schools,170000              Education,A,2022,7
1088,"Children, Schools and Family",M K ACCOMMODATION,MK5679,06-Oct-22,2400,0,185816,Family Supp SafeGuard - Place,321000              Social Community Care Supplies & Services - Adult,A,2022,7
1089,"Children, Schools and Family",M K ACCOMMODATION,MK 5684 JH,28-Oct-22,2400,0,185816,Family Supp SafeGuard - Place,321000              Social Community Care Supplies & Services - Adult,A,2022,7
1090,Corporate Services,REDACTED PERSONAL DATA,INVCRE418,20-Oct-22,840,140,185835,SLLP - Disbursements,280000              Legal Services                                                                            Confirmed,R,2022,7
1091,"Children, Schools and Family",MITCHAM TOWN COMMUNITY TRUST,HAFOCT22-P1,25-Oct-22,1000,0,185878,Holiday Act Food Prog grntfnd,170000              Education,A,2022,7
1092,Community and Housing,REDACTED PERSONAL DATA,891425,18-Oct-22,1519.96,0,185946,Mental Health Placements,321000              Social Community Care Supplies & Services - Adult,R,2022,7
1093,Community and Housing,REDACTED PERSONAL DATA,891457,18-Oct-22,2240,0,185946,Mental Health Placements,321000              Social Community Care Supplies & Services - Adult,R,2022,7
1094,Community and Housing,E HOMES AND SHELTERS,EHSL1575,10-Oct-22,26303,0,185995,Bed & Breakfast - accomm,321000              Social Community Care Supplies & Services - Adult,A,2022,7
1095,"Children, Schools and Family",REDACTED PERSONAL DATA,888984,10-Oct-22,1538.92,0,186027,Child Disabilities - Placement,CSF-DIRECT PAYMENTS,R,2022,7
1096,Community and Housing,REDACTED PERSONAL DATA,888569,12-Oct-22,1378.6,0,186071,Older People Placements - East,DIRECT PAYMENTS,R,2022,7
1097,"Children, Schools and Family",REDACTED PERSONAL DATA,891272,14-Oct-22,798,0,186169,Placements Under 18,321100              Social Community Care Supplies & Services - Children,R,2022,7
1098,Unassigned,LA (Local Authority) Support Ltd,SER-00032671INV,17-Oct-22,4935.74,822.62,186193,Environment and Regeneration,180000              Environmental Services,A,2022,7
1099,Community and Housing,LA (Local Authority) Support Ltd,SER00034260INV,24-Oct-22,2034.92,339.16,186193,Galpins Road Support,180000              Environmental Services,A,2022,7
1100,Community and Housing,LA (Local Authority) Support Ltd,5ER-00034261KV,24-Oct-22,4675.95,779.31,186193,Galpins Road Support,180000              Environmental Services,A,2022,7
1101,Community and Housing,LA (Local Authority) Support Ltd,SER000342611NV,25-Oct-22,4675.95,779.31,186193,Galpins Road Support,180000              Environmental Services,A,2022,7
1102,Corporate Services,Partner Abuse Interventions Ltd,2193,14-Oct-22,588.36,98.06,186250,SLLP - Disbursements,280000              Legal Services                                                                            Confirmed,A,2022,7
1103,Capital,MICHAEL BROWN BUILDERS LTD,4004,11-Oct-22,7529.15,0,186468,Disabled Facilities Grant,200000              Financial Services,A,2022,7
1104,"Children, Schools and Family",CARE O LINE,19633,13-Oct-22,870.42,0,186615,Family Assessmt & Intervention,321100              Social Community Care Supplies & Services - Children,A,2022,7
1105,"Children, Schools and Family",CARE O LINE,19598,13-Oct-22,1086.87,0,186615,Family Assessmt & Intervention,321100              Social Community Care Supplies & Services - Children,A,2022,7
1106,"Children, Schools and Family",CARE O LINE,19561,14-Oct-22,598.15,0,186615,Family Assessmt & Intervention,321100              Social Community Care Supplies & Services - Children,A,2022,7
1107,Community and Housing,REDACTED PERSONAL DATA,RNWL 12 GAYTON,17-Oct-22,2000,0,186649,Homelessness Prevention,250000              Housing Management,R,2022,7
1108,"Children, Schools and Family",COMPASS FOSTERING LONDON LTD,33157,04-Oct-22,3685.67,0,186716,Placements Under 18,321100              Social Community Care Supplies & Services - Children,A,2022,7
1109,"Children, Schools and Family",COMPASS FOSTERING LONDON LTD,33031,05-Oct-22,4641,0,186716,Placements Under 18,321100              Social Community Care Supplies & Services - Children,A,2022,7
1110,Community and Housing,SUPREME HOMES LTD,894848,26-Oct-22,1956.8,0,186763,Mental Health Placements,321100              Social Community Care Supplies & Services - Children,A,2022,7
1111,Community and Housing,REDACTED PERSONAL DATA,888485,12-Oct-22,1336.44,0,186789,Phys/Sens Placements - East,DIRECT PAYMENTS,R,2022,7
1112,"Children, Schools and Family",YOUNG LONDON TODAY,INV-26134,13-Oct-22,1616.34,0,186890,UASC Care Leavers Over 18,321100              Social Community Care Supplies & Services - Children,A,2022,7
1113,"Children, Schools and Family",YOUNG LONDON TODAY,INV-26091,18-Oct-22,771.68,0,186890,UASC Care Leavers Over 18,321100              Social Community Care Supplies & Services - Children,A,2022,7
1114,"Children, Schools and Family",REDACTED PERSONAL DATA,889068,10-Oct-22,968,0,186894,Fostering Recruit/Assessment,321100              Social Community Care Supplies & Services - Adult,R,2022,7
1115,"Children, Schools and Family",REDACTED PERSONAL DATA,893688,24-Oct-22,968,0,186894,Fostering Recruit/Assessment,321100              Social Community Care Supplies & Services - Adult,R,2022,7
1116,"Children, Schools and Family",REDACTED PERSONAL DATA,889205,10-Oct-22,500.42,0,186941,Fostering Recruit/Assessment,321100              Social Community Care Supplies & Services - Children,R,2022,7
1117,"Children, Schools and Family",REDACTED PERSONAL DATA,893824,24-Oct-22,500.42,0,186941,Fostering Recruit/Assessment,321100              Social Community Care Supplies & Services - Children,R,2022,7
1118,Community and Housing,BLUEBIRD CARE,BS2609,04-Oct-22,546.01,0,186946,Older People Placements - East,321000              Social Community Care Supplies & Services - Adult,A,2022,7
1119,Community and Housing,BLUEBIRD CARE,BS1010,14-Oct-22,506.17,0,186946,Older People Placements - East,321000              Social Community Care Supplies & Services - Adult,A,2022,7
1120,Community and Housing,BLUEBIRD CARE,BS0310,18-Oct-22,506.17,0,186946,Older People Placements - East,321000              Social Community Care Supplies & Services - Adult,A,2022,7
1121,Community and Housing,EPSOM AND ST. HELIER UNI HOSP,19780462,11-Oct-22,31818.73,0,187023,PH - Sexual Health,310000              Healthcare,A,2022,7
1122,"Children, Schools and Family",PROFESSIONAL CARE SERVICES LTD,4387,05-Oct-22,639.68,0,187171,Child Disabilities - Placement,321100              Social Community Care Supplies & Services - Children,A,2022,7
1123,"Children, Schools and Family",PROFESSIONAL CARE SERVICES LTD,4384,06-Oct-22,959.52,0,187171,CWD Placements,321100              Social Community Care Supplies & Services - Children,A,2022,7
1124,"Children, Schools and Family",PROFESSIONAL CARE SERVICES LTD,4420-A,20-Oct-22,639.68,0,187171,Child Disabilities - Placement,321100              Social Community Care Supplies & Services - Children,A,2022,7
1125,"Children, Schools and Family",PROFESSIONAL CARE SERVICES LTD,4417,25-Oct-22,1599.2,0,187171,CWD Placements,321100              Social Community Care Supplies & Services - Children,A,2022,7
1126,Community and Housing,GUY'S AND ST THOMAS' NHS FND'TN,3327231,11-Oct-22,6894.77,0,187184,PH - Sexual Health,310000              Healthcare,A,2022,7
1127,Community and Housing,GUY'S AND ST THOMAS' NHS FND'TN,3327414,11-Oct-22,5885.08,0,187184,PH - Sexual Health,310000              Healthcare,A,2022,7
1128,Community and Housing,GUY'S AND ST THOMAS' NHS FND'TN,3327958,11-Oct-22,9224.67,0,187184,PH - Sexual Health,310000              Healthcare,A,2022,7
1129,Corporate Services,IDOX SOFTWARE LIMITED,7039536,20-Oct-22,7590,1265,187190,Electoral Registration,270000              Information Communication Technology,A,2022,7
1130,Corporate Services,IDOX SOFTWARE LIMITED,7039298,11-Oct-22,1020,170,187190,Electoral Registration,270000              Information Communication Technology,A,2022,7
1131,Corporate Services,PSYCHOLOGY EXPERTS LTD,INV-006341,20-Oct-22,1690.16,281.69,187236,SLLP - Disbursements,280000              Legal Services                                                                            Confirmed,A,2022,7
1132,Community and Housing,KINGS COLLEGE NHS FNDAT'N TST,4210017864,28-Oct-22,758.92,0,187326,PH - Sexual Health,310000              Healthcare,A,2022,7
1133,Unassigned,HARRIS PRIMARY ACADEMY MERTON,SCHOOLS 2223/7 A,06-Oct-22,113221.12,0,187329,Schools,170000              Education,A,2022,7
1134,"Children, Schools and Family",REDACTED PERSONAL DATA,888927,10-Oct-22,763.68,0,187336,Child Disabilities - Placement,CSF-DIRECT PAYMENTS,R,2022,7
1135,Community and Housing,REDACTED PERSONAL DATA,888663,12-Oct-22,1733.94,0,187347,Phys/Sens Placements - East,DIRECT PAYMENTS,R,2022,7
1136,Community and Housing,REDACTED PERSONAL DATA,888574,12-Oct-22,856.36,0,187457,Learning Disabilities Placemnt,DIRECT PAYMENTS,R,2022,7
1137,"Children, Schools and Family",OWN LIFE LTD - FC,221092,24-Oct-22,2828.57,471.43,187567,Placements Over 18,321100              Social Community Care Supplies & Services - Children Residential,A,2022,7
1138,"Children, Schools and Family",HORIZON FOSTERING SERVICES,15279,24-Oct-22,1476.41,0,187568,UASC LAC Under 18,321100              Social Community Care Supplies & Services - Children,A,2022,7
1139,Community and Housing,REDACTED PERSONAL DATA,888636,12-Oct-22,785.64,0,187597,Phys/Sens Placements - East,DIRECT PAYMENTS,R,2022,7
1140,Community and Housing,REDACTED PERSONAL DATA,888449,12-Oct-22,4454.8,0,187729,Phys/Sens Placements - East,DIRECT PAYMENTS,R,2022,7
1141,Community and Housing,CONSENSUS - WALLACE CRESCENT,894893,26-Oct-22,9811.52,0,187792,Learning Disabilities Placemnt,321017              Nursing & Residential Care Homes,A,2022,7
1142,Community and Housing,CONSENSUS - WALLACE CRESCENT,894928,26-Oct-22,13337.4,0,187792,Learning Disabilities Placemnt,321017              Nursing & Residential Care Homes,A,2022,7
1143,Community and Housing,CONSENSUS - WALLACE CRESCENT,894960,26-Oct-22,13016.28,0,187792,Learning Disabilities Placemnt,321017              Nursing & Residential Care Homes,A,2022,7
1144,Community and Housing,REDACTED PERSONAL DATA,888697,12-Oct-22,556.88,0,187842,Phys/Sens Placements - East,DIRECT PAYMENTS,R,2022,7
1145,Community and Housing,HOMERTON UNI HOSP NHS FND'N TR,61311394,28-Oct-22,2369.16,0,187856,PH - Sexual Health,310000              Healthcare,A,2022,7
1146,Community and Housing,ENHANCEABLE DAY CENTRE,300922NC,13-Oct-22,824.11,137.35,187936,Learning Disabilities Placemnt,321000              Social Community Care Supplies & Services - Adult,A,2022,7
1147,Community and Housing,REDACTED PERSONAL DATA,888318,12-Oct-22,557.04,0,188010,Learning Disabilities Placemnt,DIRECT PAYMENTS,R,2022,7
1148,Community and Housing,REDACTED PERSONAL DATA,888539,12-Oct-22,3419.16,0,188043,Phys/Sens Placements - East,DIRECT PAYMENTS,R,2022,7
1149,"Children, Schools and Family",REDACTED PERSONAL DATA,887980,07-Oct-22,514.75,0,188093,Placements Under 18,321100              Social Community Care Supplies & Services - Children,R,2022,7
1150,"Children, Schools and Family",REDACTED PERSONAL DATA,888090,07-Oct-22,793.72,0,188093,Placements Under 18,321100              Social Community Care Supplies & Services - Children,R,2022,7
1151,"Children, Schools and Family",REDACTED PERSONAL DATA,891221,14-Oct-22,514.75,0,188093,Placements Under 18,321100              Social Community Care Supplies & Services - Children,R,2022,7
1152,"Children, Schools and Family",REDACTED PERSONAL DATA,891333,14-Oct-22,793.72,0,188093,Placements Under 18,321100              Social Community Care Supplies & Services - Children,R,2022,7
1153,"Children, Schools and Family",REDACTED PERSONAL DATA,893394,21-Oct-22,514.75,0,188093,Placements Under 18,321100              Social Community Care Supplies & Services - Children,R,2022,7
1154,"Children, Schools and Family",REDACTED PERSONAL DATA,893509,21-Oct-22,793.72,0,188093,Placements Under 18,321100              Social Community Care Supplies & Services - Children,R,2022,7
1155,"Children, Schools and Family",REDACTED PERSONAL DATA,895428,28-Oct-22,514.75,0,188093,Placements Under 18,321100              Social Community Care Supplies & Services - Children,R,2022,7
1156,"Children, Schools and Family",REDACTED PERSONAL DATA,895541,28-Oct-22,793.72,0,188093,Placements Under 18,321100              Social Community Care Supplies & Services - Children,R,2022,7
1157,"Children, Schools and Family",REDACTED PERSONAL DATA,888088,07-Oct-22,584,0,188094,Placements Under 18,321100              Social Community Care Supplies & Services - Children,R,2022,7
